Service Area Categorisation,Service Division Categorisation,Responsible Unit,Expenses Type,Expenses sub-Type,Detailed Expenses Type,Capital/Revenue,Date,Transaction number,Amount,Supplier Name
Housing Services,Homelessness,Homelessness Prevention,Transfer Payments,Housing Benefits,Rent Deposits,Revenue,01/12/2010,1,1018.33,LONDON RENTALS
Childrens & Education Services,Family Support Services,CL Travel E-Parent Visiting T1,Third Party Payments,Private Contractors,Miscellaneous Agency Services,Revenue,01/12/2010,2,665,ORCHID CELLMARK LTD
Adult Social Care,Older People 65&Over inc OP-MH,OP East - Residential Care Ext,Third Party Payments,Private Contractors,Miscellaneous Agency Services,Revenue,01/12/2010,3,944.88,REDACTED
Cultural Env Reg&Plan Services,Cemetery Cremation & Mortuary,Gap Road Cemetery,Customer and client receipts,Fees,Internment Fees E,Revenue,01/12/2010,4,510,REDACTED
Adult Social Care,Adult u65 Phys/Sensory Impair,PD EAST TEAM-Residential,Customer and client receipts,Charges,Bd&Acc-contrib coll by home X,Revenue,01/12/2010,5,-1157.9,RNIB REDHILL COLLEGE
Adult Social Care,Adult u65 Phys/Sensory Impair,PD EAST TEAM-Other Services,Third Party Payments,Private Contractors,Miscellaneous Agency Services,Revenue,01/12/2010,6,867.6,RNIB REDHILL COLLEGE
Adult Social Care,Adult u65 Mental Health Needs,MH ResidentialCare Ext - Wim,Third Party Payments,Private Contractors,Miscellaneous Agency Services,Revenue,01/12/2010,7,3366.72,RNIB REDHILL COLLEGE
Adult Social Care,Adult u65 Phys/Sensory Impair,PD EAST TEAM-Residential,Third Party Payments,Private Contractors,Miscellaneous Agency Services,Revenue,01/12/2010,8,19091.58,RNIB REDHILL COLLEGE
Adult Social Care,Older People 65&Over inc OP-MH,HC Meals-in-the-Home,Customer and client receipts,Sales,Miscellaneous Sales  X,Revenue,01/12/2010,9,-19692.19,SODEXO HEALTHCARE SERVICES LT
Housing Services,Homelessness,Overcrowding - Grant,Transfer Payments,Housing Benefits,Under Occupation Payments,Revenue,01/12/2010,10,1971.25,REDACTED
Childrens & Education Services,Children Looked After (24hrs+),CS Brightwell,Supplies & Services,Services,General Office Expenses,Revenue,03/12/2010,11,701.03,REDACTED
Housing Services,Homelessness,Overcrowding - Grant,Transfer Payments,Housing Benefits,Under Occupation Payments,Revenue,06/12/2010,12,1000,REDACTED
Childrens & Education Services,Family Support Services,CS Children in Need Section 17,Transfer Payments,Social Services clients,Childr Act 1989 S17,Revenue,06/12/2010,13,550,SAINSBURY'S BUSINESS DIRECT
Childrens & Education Services,Family Support Services,CS Referral & Assessment Sec17,Transfer Payments,Social Services clients,Childr Act 1989 S17,Revenue,06/12/2010,14,550,SAINSBURY'S BUSINESS DIRECT
Childrens & Education Services,Other Ch's & Family Services,CL Childr Act 1989 - Section17,Transfer Payments,Social Services clients,Childr Act 1989 S17,Revenue,06/12/2010,15,600,SAINSBURY'S BUSINESS DIRECT
Childrens & Education Services,Other Ch's & Family Services,CL Setting Up Home Allowance,Third Party Payments,Private Contractors,Miscellaneous Agency Services,Revenue,13/12/2010,16,792.51,REDACTED
Housing Services,Homelessness,Homelessness Prevention,Transfer Payments,Housing Benefits,Rent Deposits,Revenue,06/12/2010,17,849.98,REDACTED
Housing Services,Homelessness,Homelessness Prevention,Transfer Payments,Housing Benefits,Rent Deposits,Revenue,06/12/2010,18,1312,NORTHWOOD
Housing Services,Homelessness,Homelessness Prevention,Transfer Payments,Housing Benefits,Sanctuary Scheme Rent Rescue,Revenue,06/12/2010,19,1844,REDACTED
,No FE Detail,Lavender CC - Nursery Deposits,Fund Balances,,Xfer to/from Rev A/C   X,Revenue,07/12/2010,20,1115.97,SURESTART IMPREST BANK ACCOUNT
Cultural Env Reg&Plan Services,Development Control,Development Control,Customer and client receipts,Fees,Application Fees X,Revenue,08/12/2010,21,3350,REDACTED
CS -Oth Operating Inc & Expend,Trading A/c Surpluses/Deficits,Transport-Workshop,Transport Related Expenditure,Direct Transport Costs,Vehicle MOTs,Revenue,08/12/2010,22,1000,V.O.S.A
,No FE Detail,Insurance Fund,Fund Balances,,Payment of Claims,Revenue,09/12/2010,23,72000,HARROWELLS LLP
,No FE Detail,Payroll Summary Account,Fund Balances,,Salary Sacrifice,Revenue,10/12/2010,24,8634.67,ACCOR SERVICES
Childrens & Education Services,Youth Service,Youth Service,Supplies & Services,Miscellaneous Expenses,Young Peoples Expenses,Revenue,20/12/2010,25,6357.22,BODYPOWER SPORTS PLC
Childrens & Education Services,Youth Service,Youth Service,Supplies & Services,Miscellaneous Expenses,Young Peoples Expenses,Revenue,20/12/2010,26,6355.75,BODYPOWER SPORTS PLC
Childrens & Education Services,Other Ch's & Family Services,CL Setting Up Home Allowance,Third Party Payments,Private Contractors,Miscellaneous Agency Services,Revenue,15/12/2010,27,746.17,REDACTED
Adult Social Care,Older People 65&Over inc OP-MH,OP East - Carer Services,Third Party Payments,Private Contractors,Miscellaneous Agency Services,Revenue,15/12/2010,28,1500,ENARA COMMUNITY CARE
Adult Social Care,Older People 65&Over inc OP-MH,OP West - Carer Services,Third Party Payments,Private Contractors,Miscellaneous Agency Services,Revenue,15/12/2010,29,1500,ENARA COMMUNITY CARE
,No FE Detail,Rent Rebates,Fund Balances,,Payments X,Revenue,15/12/2010,30,4151.02,MERTON PRIORY HOMES - HB
,No FE Detail,"4 Cobham Court, Mitcham",Fund Balances,,Payments X,Revenue,15/12/2010,31,3570,REDACTED
,No FE Detail,Bldng Sub-Cntrctrs Tax Acc,Fund Balances,,Payments X,Revenue,15/12/2010,32,1175,HM REVENUE & CUSTOMS
Central Services,Fully rechargeable Overheads,Legal Services,Supplies & Services,Miscellaneous Expenses,Court Fees,Revenue,15/12/2010,33,750,REDACTED
Housing Services,Homelessness,Homelessness Prevention,Transfer Payments,Housing Benefits,Rent Deposits,Revenue,15/12/2010,34,850,MITCHELLS
Cultural Env Reg&Plan Services,Development Control,Development Control,Supplies & Services,Grants and Subscriptions,External legal expenses,Revenue,16/12/2010,35,3750,REDACTED
Central Services,Local Tax Collection,Local Taxation Services,Supplies & Services,Services,Bailiffs' fees,Revenue,16/12/2010,36,784.98,REDACTED
Childrens & Education Services,Assuring Access To Schools,Retained Schools Budgets,Supplies & Services,Miscellaneous Expenses,Advances,Revenue,16/12/2010,37,4050,REDACTED
Cultural Env Reg&Plan Services,Building Control,Building Control,Customer and client receipts,Fees,Building Regs Fees S,Revenue,16/12/2010,38,909.14,REDACTED
Childrens & Education Services,Other Ch's & Family Services,CL Setting Up Home Allowance,Third Party Payments,Private Contractors,Miscellaneous Agency Services,Revenue,20/12/2010,39,761.51,REDACTED
Housing Services,Homelessness,Overcrowding - Grant,Transfer Payments,Housing Benefits,Under Occupation Payments,Revenue,20/12/2010,40,5000,REDACTED
Housing Services,Homelessness,Homelessness Prevention,Transfer Payments,Housing Benefits,Rent Deposits,Revenue,22/12/2010,41,784.6,REDACTED
Childrens & Education Services,Adult Education,AE-Learner Support Fund-Access,Supplies & Services,Services,Miscellaneous Fees,Revenue,22/12/2010,42,609,REDACTED
Housing Services,Homelessness,Homelessness Prevention,Transfer Payments,Housing Benefits,Rent Deposits,Revenue,22/12/2010,43,531.25,REDACTED
Housing Services,Homelessness,Homelessness Prevention,Transfer Payments,Housing Benefits,Rent Deposits,Revenue,22/12/2010,44,749.98,REDACTED
,No FE Detail,Payroll Summary Account,Fund Balances,,Advances- Chqs Drawn,Revenue,22/12/2010,45,777.73,REDACTED
Cultural Env Reg&Plan Services,Building Control,Building Control,Customer and client receipts,Fees,Building Regs Fees S,Revenue,22/12/2010,46,528.16,REDACTED
Central Services,Fully rechargeable Overheads,Chief Exec's Office,Supplies & Services,Expenses,Conferences,Revenue,22/12/2010,47,530,BARNSLEY METROPOLITAN BOR COUN
,No FE Detail,Payroll Summary Account,Fund Balances,,Advances- Chqs Drawn,Revenue,23/12/2010,48,1161,REDACTED
Childrens & Education Services,Pre-School Ed (inc Nursery),GSSG Workforce Development,Employees,Indirect Employee Expenses,Post Entry training-creditors,Revenue,23/12/2010,49,585.11,SURREY FIRST AID TRAINING LTD
Adult Social Care,Older People 65&Over inc OP-MH,HC Meals-in-the-Home,Customer and client receipts,Sales,Miscellaneous Sales  X,Revenue,29/12/2010,50,-18603.42,SODEXO HEALTHCARE SERVICES LT
,No FE Detail,Payroll Summary Account,Fund Balances,,Extl Payees Monthly,Revenue,29/12/2010,51,5327.22,REDACTED
,No FE Detail,Payroll Summary Account,Fund Balances,,Extl Payees Monthly,Revenue,29/12/2010,52,919.21,REDACTED
,No FE Detail,Payroll Summary Account,Fund Balances,,Extl Payees Monthly,Revenue,29/12/2010,53,8615.39,REDACTED
,No FE Detail,Payroll Summary Account,Fund Balances,,Extl Payees Monthly,Revenue,29/12/2010,54,2756.79,REDACTED
,No FE Detail,Tiffin Boys,Fund Balances,,Other Deductions,Revenue,29/12/2010,55,17638.5,LONDON BOROUGH OF KINGSTON
,No FE Detail,Tiffin Boys,Fund Balances,,Other Deductions,Revenue,29/12/2010,56,51726.4,ROYAL BOROUGH OF KINGSTON
,No FE Detail,Payroll Summary Account,Fund Balances,,Extl Payees Monthly,Revenue,29/12/2010,57,1679.35,REDACTED
,No FE Detail,Payroll Summary Account,Fund Balances,,Extl Payees Monthly,Revenue,29/12/2010,58,1660.26,REDACTED
,No FE Detail,Payroll Summary Account,Fund Balances,,Extl Payees Monthly,Revenue,29/12/2010,59,1044.97,REDACTED
,No FE Detail,Payroll Summary Account,Fund Balances,,Extl Payees Monthly,Revenue,29/12/2010,60,9997.6,REDACTED
,No FE Detail,Ursuline  - Payroll Contract,Fund Balances,,Other Deductions,Revenue,29/12/2010,61,1004.93,PRUDENTIAL (TEACHERS)
,No FE Detail,Payroll Summary Account,Fund Balances,,Extl Payees Monthly,Revenue,29/12/2010,62,1059.5,REDACTED
,No FE Detail,Payroll Summary Account,Fund Balances,,Extl Payees Monthly,Revenue,29/12/2010,63,9584.19,REDACTED
Childrens & Education Services,Other Ch's & Family Services,CL Childr Act 1989 - Section17,Transfer Payments,Social Services clients,Childr Act 1989 S17,Revenue,30/12/2010,64,912.67,REDACTED
Childrens & Education Services,Other Ch's & Family Services,CL Setting Up Home Allowance,Third Party Payments,Private Contractors,Miscellaneous Agency Services,Revenue,30/12/2010,65,1387.81,REDACTED
Housing Services,Repairs and Maintenance,Disrepair cases (non repairs),Supplies & Services,Miscellaneous Expenses,Compensation Payments,Revenue,30/12/2010,66,13500,ANTHONY GOLD SOLICITORS
,No FE Detail,Payroll Summary Account,Fund Balances,,Replacements,Revenue,30/12/2010,67,1746.63,REDACTED
,No FE Detail,Agency Hays Contract A/c,Fund Balances,,Payments X,Revenue,16/12/2010,68,272697.55,HAYS EXECUTIVE
,No FE Detail,Payroll Summary Account,Fund Balances,,Extl Payees Monthly,Revenue,01/12/2010,69,1636.7,REDACTED
,No FE Detail,Superannuation creditors,Fund Balances,,Payments X,Revenue,06/12/2010,70,664.55,REDACTED
CS -Oth Operating Inc & Expend,Precepts and Levies,Flood Defence,,,Expenditure,Revenue,22/12/2010,71,36923.5,ENVIRONMENT AGENCY
,No FE Detail,Crossrail BRS,Fund Balances,,Payments X,Revenue,22/12/2010,72,206410,GREATER LONDON AUTHORITY
CS -Oth Operating Inc & Expend,Precepts and Levies,Lee Valley Regional Park,,,Expenditure,Revenue,17/12/2010,73,18879.11,LEE VALLEY REGIONAL PARK AUTH.
CS -Oth Operating Inc & Expend,Precepts and Levies,London Pens Fund Auth,,,Expenditure,Revenue,29/12/2010,74,28343.7,LONDON PENSIONS FUND AUTHORITY
CS -Oth Operating Inc & Expend,Precepts and Levies,WPCC,,,Expenditure,Revenue,23/12/2010,75,25761.29,WPCC
,No FE Detail,Payroll Summary Account,Fund Balances,,Replacements,Revenue,13/12/2010,76,549.05,REDACTED
,No FE Detail,Precepts,Fund Balances,,Greate London Authority S,Revenue,29/12/2010,77,2365039.2,GREATER LONDON AUTHORITY
,No FE Detail,Annual Season Ticket Loans,Fund Balances,,Payments X,Revenue,15/12/2010,78,4692,LONDON MIDLAND
,No FE Detail,Payroll Summary Account,Fund Balances,,Salary Sacrifice,Revenue,14/12/2010,79,12356.73,ACCOR SERVICES
,No FE Detail,Payroll Summary Account,Fund Balances,,Salary Sacrifice,Revenue,14/12/2010,80,679.62,ACCOR SERVICES
,No FE Detail,Payroll Summary Account,Fund Balances,,Salary Sacrifice,Revenue,21/12/2010,81,1701,ACCOR SERVICES
,No FE Detail,Payroll Summary Account,Fund Balances,,Advances- Chqs Drawn,Revenue,21/12/2010,82,1773.35,REDACTED
,No FE Detail,Annual Season Ticket Loans,Fund Balances,,Payments X,Revenue,22/12/2010,83,1196,SOUTHERN RAILWAY
,No FE Detail,Annual Season Ticket Loans,Fund Balances,,Payments X,Revenue,22/12/2010,84,760,LONDON UNDERGROUND LTD
,No FE Detail,Car Loans Account,Fund Balances,,Loan Advances,Revenue,22/12/2010,85,4057.6,EAST LONDON CAR SALES
Adult Social Care,Adult u65 Mental Health Needs,MH Hostels/B & B - NRTPF,Third Party Payments,Private Contractors,Miscellaneous Agency Services,Revenue,01/12/2010,86,892.08,ADMINLAND LTD
Adult Social Care,Older People 65&Over inc OP-MH,OP Hosp - Nursing Care,Customer and client receipts,Charges,Bd&Acc-contrib coll by home X,Revenue,20/12/2010,87,-774.47,KELSTONE COURT NURSING HOME
Adult Social Care,Adult u65 Mental Health Needs,MH Res Care Ext- Mitcham West,Third Party Payments,Private Contractors,Miscellaneous Agency Services,Revenue,06/12/2010,88,4928.7,BIBBY FACTORS SLOUGH LTD
Childrens & Education Services,Children Looked After (24hrs+),CL Secure Accommodation,Third Party Payments,Private Contractors,Miscellaneous Agency Services,Revenue,01/12/2010,89,1244,WRIXON CARE SERVICES
Adult Social Care,Adlt u65 Learning Disabilities,LD Residential Care External,Third Party Payments,Private Contractors,Miscellaneous Agency Services,Revenue,06/12/2010,90,-993.43,CARE MANAGEMENT GROUP
Adult Social Care,Adlt u65 Learning Disabilities,LD Supported Housing,Third Party Payments,Private Contractors,Miscellaneous Agency Services,Revenue,01/12/2010,91,1617.48,H F TRUST LTD
Adult Social Care,Older People 65&Over inc OP-MH,OP Hosp - Residential Care Ext,Third Party Payments,Private Contractors,Miscellaneous Agency Services,Revenue,01/12/2010,92,2470.75,NIGHTINGALE HOUSE
Adult Social Care,Older People 65&Over inc OP-MH,OP East - Nursing Care,Customer and client receipts,Charges,Bd&Acc-contrib coll by home X,Revenue,01/12/2010,93,-543.5,NIGHTINGALE HOUSE
Adult Social Care,Older People 65&Over inc OP-MH,OP East - Nursing Care,Third Party Payments,Private Contractors,Miscellaneous Agency Services,Revenue,01/12/2010,94,3025.3,NIGHTINGALE HOUSE
Adult Social Care,Adult u65 Phys/Sensory Impair,PD EAST TEAM-Nursing,Third Party Payments,Private Contractors,Miscellaneous Agency Services,Revenue,01/12/2010,95,5302.1,ROYAL HOSP FOR NEURO-DISAB
Adult Social Care,Adult u65 Phys/Sensory Impair,PD EAST TEAM-Nursing,Customer and client receipts,Charges,Bd&Acc-contrib coll by home X,Revenue,01/12/2010,96,-876,VALEWOOD HOUSE CO.LTD
Adult Social Care,Adult u65 Phys/Sensory Impair,PD EAST TEAM-Nursing,Third Party Payments,Private Contractors,Miscellaneous Agency Services,Revenue,01/12/2010,97,2680,VALEWOOD HOUSE CO.LTD
Adult Social Care,Adult u65 Phys/Sensory Impair,PD EAST TEAM-Day Care,Third Party Payments,Private Contractors,Miscellaneous Agency Services,Revenue,01/12/2010,98,1066.4,ACTION FOR BLIND PEOPLE
Adult Social Care,Adlt u65 Learning Disabilities,LD Day Care Agency,Third Party Payments,Private Contractors,Miscellaneous Agency Services,Revenue,01/12/2010,99,954.08,BRIGSTOCK ACTIVITY CENTRE
Childrens & Education Services,Family Support Services,CL Travel E-Parent Visiting T1,Third Party Payments,Private Contractors,Miscellaneous Agency Services,Revenue,01/12/2010,100,2440,PROACTIV CONTACT CENTRE
Childrens & Education Services,Children Looked After (24hrs+),CL Independent Fostering,Supplies & Services,Services,Task Based Fostering,Revenue,01/12/2010,101,3529.4,LLOYDS TSB COMMERCIAL FINANCE
Adult Social Care,Older People 65&Over inc OP-MH,OP Hosp - Residential Care Ext,Third Party Payments,Private Contractors,Miscellaneous Agency Services,Revenue,01/12/2010,102,2200,ABBEY HOUSE RESIDENTIAL HOMES
Adult Social Care,Adult u65 Mental Health Needs,MH ResidentialCare Ext-Morden,Third Party Payments,Private Contractors,Miscellaneous Agency Services,Revenue,01/12/2010,103,2400,ABBEY HOUSE RESIDENTIAL HOMES
Adult Social Care,Adult u65 Phys/Sensory Impair,PD WEST TEAM-Residential Care,Third Party Payments,Private Contractors,Miscellaneous Agency Services,Revenue,01/12/2010,104,3310.72,ABBEY HOUSE RESIDENTIAL HOMES
Adult Social Care,Adlt u65 Learning Disabilities,LD Residential Care External,Third Party Payments,Private Contractors,Miscellaneous Agency Services,Revenue,01/12/2010,105,4157.24,ASHINGTON HOUSE
Adult Social Care,Adlt u65 Learning Disabilities,LD Residential Care External,Third Party Payments,Private Contractors,Miscellaneous Agency Services,Revenue,01/12/2010,106,3798.04,BRIGSTOCK HOUSE
Adult Social Care,Adult u65 Phys/Sensory Impair,PD EAST TEAM-Nursing,Third Party Payments,Private Contractors,Miscellaneous Agency Services,Revenue,01/12/2010,107,5800,BUPA CARE HOMES
Adult Social Care,Adult u65 Phys/Sensory Impair,PS Nursing Care,Customer and client receipts,Charges,Bd&Acc-contrib coll by home X,Revenue,01/12/2010,108,-2179.26,BUPA CARE HOMES
Adult Social Care,Adult u65 Phys/Sensory Impair,PD EAST TEAM-Nursing,Customer and client receipts,Charges,Bd&Acc-contrib coll by home X,Revenue,01/12/2010,109,-1126.02,BUPA CARE HOMES
Adult Social Care,Older People 65&Over inc OP-MH,OP East - Nursing Care,Customer and client receipts,Charges,Bd&Acc-contrib coll by home X,Revenue,01/12/2010,110,-543.5,CLAREMONT CARE SVS LTD
Adult Social Care,Older People 65&Over inc OP-MH,OP East - Nursing Care,Third Party Payments,Private Contractors,Miscellaneous Agency Services,Revenue,01/12/2010,111,3024.7,CLAREMONT CARE SVS LTD
Adult Social Care,Adlt u65 Learning Disabilities,LD Residential Care External,Third Party Payments,Private Contractors,Miscellaneous Agency Services,Revenue,01/12/2010,112,2853.92,THE GRANGE & WALTON COTTAGE
Adult Social Care,Adlt u65 Learning Disabilities,LD Supported Housing,Third Party Payments,Private Contractors,Miscellaneous Agency Services,Revenue,01/12/2010,113,3234.96,H F TRUST LTD
Adult Social Care,Other Adult Services,MH Residential Care Ext- SM&A,Third Party Payments,Private Contractors,Miscellaneous Agency Services,Revenue,01/12/2010,114,1475,YELDALL CHRISTIAN CENTRES
Adult Social Care,Older People 65&Over inc OP-MH,OP East - Carer Services,Third Party Payments,Private Contractors,Miscellaneous Agency Services,Revenue,02/12/2010,115,686.51,HOLISTIC COMMUNITY CARE LTD
Adult Social Care,Older People 65&Over inc OP-MH,OP Mitcham-Home Care External,Third Party Payments,Private Contractors,Miscellaneous Agency Services,Revenue,02/12/2010,116,1106.21,HOLISTIC COMMUNITY CARE LTD
Adult Social Care,Adult u65 Phys/Sensory Impair,PS Home Care External - NRTPF,Third Party Payments,Private Contractors,Miscellaneous Agency Services,Revenue,02/12/2010,117,1195.79,HOLISTIC COMMUNITY CARE LTD
Adult Social Care,Adult u65 Phys/Sensory Impair,PD WEST TEAM-Homecare,Third Party Payments,Private Contractors,Miscellaneous Agency Services,Revenue,02/12/2010,118,2536.41,HOLISTIC COMMUNITY CARE LTD
Adult Social Care,Older People 65&Over inc OP-MH,OP West - Carer Services,Third Party Payments,Private Contractors,Miscellaneous Agency Services,Revenue,02/12/2010,119,2694.06,HOLISTIC COMMUNITY CARE LTD
Adult Social Care,Older People 65&Over inc OP-MH,OP West - Home Care External,Third Party Payments,Private Contractors,Miscellaneous Agency Services,Revenue,02/12/2010,120,9752.38,HOLISTIC COMMUNITY CARE LTD
Adult Social Care,Older People 65&Over inc OP-MH,OP East - Home Care External,Third Party Payments,Private Contractors,Miscellaneous Agency Services,Revenue,02/12/2010,121,10268.7,HOLISTIC COMMUNITY CARE LTD
Adult Social Care,Older People 65&Over inc OP-MH,OP East - Carer Services,Third Party Payments,Private Contractors,Miscellaneous Agency Services,Revenue,02/12/2010,122,645.07,HOLISTIC COMMUNITY CARE LTD
Adult Social Care,Adult u65 Phys/Sensory Impair,PS Home Care External - NRTPF,Third Party Payments,Private Contractors,Miscellaneous Agency Services,Revenue,02/12/2010,123,1179.98,HOLISTIC COMMUNITY CARE LTD
Adult Social Care,Adult u65 Phys/Sensory Impair,PD WEST TEAM-Homecare,Third Party Payments,Private Contractors,Miscellaneous Agency Services,Revenue,02/12/2010,124,2644.72,HOLISTIC COMMUNITY CARE LTD
Adult Social Care,Older People 65&Over inc OP-MH,OP West - Carer Services,Third Party Payments,Private Contractors,Miscellaneous Agency Services,Revenue,02/12/2010,125,2753.23,HOLISTIC COMMUNITY CARE LTD
Adult Social Care,Older People 65&Over inc OP-MH,OP East - Home Care External,Third Party Payments,Private Contractors,Miscellaneous Agency Services,Revenue,02/12/2010,126,10298.06,HOLISTIC COMMUNITY CARE LTD
Adult Social Care,Older People 65&Over inc OP-MH,OP West - Home Care External,Third Party Payments,Private Contractors,Miscellaneous Agency Services,Revenue,02/12/2010,127,10613.16,HOLISTIC COMMUNITY CARE LTD
Adult Social Care,Older People 65&Over inc OP-MH,OP Hosp -Direct Payment Scheme,Third Party Payments,Private Contractors,Direct Payments,Revenue,02/12/2010,128,904.4,REDACTED
Adult Social Care,Adlt u65 Learning Disabilities,LD Direct Payment Scheme,Third Party Payments,Private Contractors,Direct Payments,Revenue,02/12/2010,129,1065,REDACTED
Adult Social Care,Older People 65&Over inc OP-MH,OP East -Direct Payment Scheme,Third Party Payments,Private Contractors,Direct Payments,Revenue,02/12/2010,130,1142.2,REDACTED
Adult Social Care,Older People 65&Over inc OP-MH,OP East -Direct Payment Scheme,Third Party Payments,Private Contractors,Direct Payments,Revenue,02/12/2010,131,1625,REDACTED
Adult Social Care,Adult u65 Phys/Sensory Impair,PD EAST TEAM-Direct Payment,Third Party Payments,Private Contractors,Direct Payments,Revenue,02/12/2010,132,1144.85,REDACTED
Adult Social Care,Older People 65&Over inc OP-MH,OP West -Direct Payment Scheme,Third Party Payments,Private Contractors,Direct Payments,Revenue,02/12/2010,133,523.5,REDACTED
Adult Social Care,Older People 65&Over inc OP-MH,OP East -Direct Payment Scheme,Third Party Payments,Private Contractors,Direct Payments,Revenue,02/12/2010,134,2629.75,REDACTED
Adult Social Care,Older People 65&Over inc OP-MH,OP East -Direct Payment Scheme,Third Party Payments,Private Contractors,Direct Payments,Revenue,02/12/2010,135,927.7,REDACTED
Adult Social Care,Older People 65&Over inc OP-MH,OP West -Direct Payment Scheme,Third Party Payments,Private Contractors,Direct Payments,Revenue,02/12/2010,136,639,REDACTED
Adult Social Care,Older People 65&Over inc OP-MH,OP West -Direct Payment Scheme,Third Party Payments,Private Contractors,Direct Payments,Revenue,02/12/2010,137,505.85,REDACTED
Adult Social Care,Adult u65 Phys/Sensory Impair,PD EAST TEAM-Direct Payment,Third Party Payments,Private Contractors,Direct Payments,Revenue,02/12/2010,138,1649,REDACTED
Adult Social Care,Adult u65 Phys/Sensory Impair,PD EAST TEAM-Direct Payment,Third Party Payments,Private Contractors,Direct Payments,Revenue,02/12/2010,139,665.6,REDACTED
Adult Social Care,Adult u65 Mental Health Needs,MH Direct Payment Scheme-MSAOR,Third Party Payments,Private Contractors,Direct Payments,Revenue,02/12/2010,140,898.1,REDACTED
Adult Social Care,Adlt u65 Learning Disabilities,LD Direct Payment Scheme,Third Party Payments,Private Contractors,Direct Payments,Revenue,02/12/2010,141,532.5,REDACTED
Adult Social Care,Older People 65&Over inc OP-MH,OP West -Direct Payment Scheme,Third Party Payments,Private Contractors,Direct Payments,Revenue,02/12/2010,142,628.2,REDACTED
Adult Social Care,Older People 65&Over inc OP-MH,OP West -Direct Payment Scheme,Third Party Payments,Private Contractors,Direct Payments,Revenue,02/12/2010,143,2298,REDACTED
Adult Social Care,Older People 65&Over inc OP-MH,OP West -Direct Payment Scheme,Third Party Payments,Private Contractors,Direct Payments,Revenue,02/12/2010,144,812.05,REDACTED
Adult Social Care,Adult u65 Mental Health Needs,MH Adult Placement Cont-Wim,Third Party Payments,Private Contractors,Accommodation Based Support,Revenue,02/12/2010,145,1470.68,THE CAMPHILL VILLAGE TRUST
Adult Social Care,Adlt u65 Learning Disabilities,LD Direct Payment Scheme,Third Party Payments,Private Contractors,Direct Payments,Revenue,02/12/2010,146,532.5,REDACTED
Adult Social Care,Adult u65 Mental Health Needs,MH Direct Payment Scheme- West,Third Party Payments,Private Contractors,Direct Payments,Revenue,02/12/2010,147,1047.5,REDACTED
Adult Social Care,Adult u65 Phys/Sensory Impair,PD EAST TEAM-Direct Payment,Third Party Payments,Private Contractors,Direct Payments,Revenue,02/12/2010,148,639,REDACTED
Adult Social Care,Adult u65 Phys/Sensory Impair,PD EAST TEAM-Direct Payment,Third Party Payments,Private Contractors,Direct Payments,Revenue,02/12/2010,149,612.4,REDACTED
Adult Social Care,Adult u65 Phys/Sensory Impair,PD WEST TEAM-Direct Payment,Third Party Payments,Private Contractors,Direct Payments,Revenue,02/12/2010,150,1820.5,REDACTED
Adult Social Care,Older People 65&Over inc OP-MH,OP East -Direct Payment Scheme,Third Party Payments,Private Contractors,Direct Payments,Revenue,02/12/2010,151,2991.75,REDACTED
Adult Social Care,Older People 65&Over inc OP-MH,OP West -Direct Payment Scheme,Third Party Payments,Private Contractors,Direct Payments,Revenue,02/12/2010,152,549.75,REDACTED
Adult Social Care,Adult u65 Phys/Sensory Impair,PD WEST TEAM-Direct Payment,Third Party Payments,Private Contractors,Direct Payments,Revenue,02/12/2010,153,889.95,REDACTED
Adult Social Care,Adult u65 Phys/Sensory Impair,PD EAST TEAM-Direct Payment,Third Party Payments,Private Contractors,Direct Payments,Revenue,02/12/2010,154,532.5,REDACTED
Adult Social Care,Older People 65&Over inc OP-MH,OP East -Direct Payment Scheme,Third Party Payments,Private Contractors,Direct Payments,Revenue,02/12/2010,155,1794.3,REDACTED
Adult Social Care,Adult u65 Phys/Sensory Impair,PD EAST TEAM-Direct Payment,Third Party Payments,Private Contractors,Direct Payments,Revenue,02/12/2010,156,545.8,REDACTED
Adult Social Care,Older People 65&Over inc OP-MH,OP East -Direct Payment Scheme,Third Party Payments,Private Contractors,Direct Payments,Revenue,02/12/2010,157,1753.7,REDACTED
Adult Social Care,Adult u65 Phys/Sensory Impair,PD WEST TEAM-Direct Payment,Third Party Payments,Private Contractors,Direct Payments,Revenue,02/12/2010,158,1555.05,REDACTED
Adult Social Care,Adult u65 Phys/Sensory Impair,PD EAST TEAM-Direct Payment,Third Party Payments,Private Contractors,Direct Payments,Revenue,02/12/2010,159,559.1,REDACTED
Adult Social Care,Older People 65&Over inc OP-MH,OP West -Direct Payment Scheme,Third Party Payments,Private Contractors,Direct Payments,Revenue,02/12/2010,160,818.1,REDACTED
Adult Social Care,Older People 65&Over inc OP-MH,OP East -Direct Payment Scheme,Third Party Payments,Private Contractors,Direct Payments,Revenue,02/12/2010,161,2982,REDACTED
Adult Social Care,Older People 65&Over inc OP-MH,OP East -Direct Payment Scheme,Third Party Payments,Private Contractors,Direct Payments,Revenue,02/12/2010,162,3663.8,REDACTED
Adult Social Care,Adlt u65 Learning Disabilities,LD Direct Payment Scheme,Third Party Payments,Private Contractors,Direct Payments,Revenue,02/12/2010,163,1114.3,REDACTED
Adult Social Care,Older People 65&Over inc OP-MH,OP East -Direct Payment Scheme,Third Party Payments,Private Contractors,Direct Payments,Revenue,02/12/2010,164,2130,REDACTED
Adult Social Care,Adlt u65 Learning Disabilities,LD Direct Payment Scheme,Third Party Payments,Private Contractors,Direct Payments,Revenue,02/12/2010,165,502.1,REDACTED
Adult Social Care,Adult u65 Phys/Sensory Impair,PD EAST TEAM-Direct Payment,Third Party Payments,Private Contractors,Direct Payments,Revenue,02/12/2010,166,1118.25,REDACTED
Adult Social Care,Older People 65&Over inc OP-MH,OP East -Direct Payment Scheme,Third Party Payments,Private Contractors,Direct Payments,Revenue,02/12/2010,167,1041.5,REDACTED
Adult Social Care,Adult u65 Phys/Sensory Impair,PD EAST TEAM-Direct Payment,Third Party Payments,Private Contractors,Direct Payments,Revenue,02/12/2010,168,639,REDACTED
Adult Social Care,Older People 65&Over inc OP-MH,OP West -Direct Payment Scheme,Third Party Payments,Private Contractors,Direct Payments,Revenue,02/12/2010,169,1118.25,REDACTED
Adult Social Care,Adlt u65 Learning Disabilities,LD Direct Payment Scheme,Third Party Payments,Private Contractors,Direct Payments,Revenue,02/12/2010,170,500,REDACTED
Adult Social Care,Older People 65&Over inc OP-MH,OP West -Direct Payment Scheme,Third Party Payments,Private Contractors,Direct Payments,Revenue,02/12/2010,171,1198.1,REDACTED
Adult Social Care,Adult u65 Phys/Sensory Impair,PD EAST TEAM-Direct Payment,Third Party Payments,Private Contractors,Direct Payments,Revenue,02/12/2010,172,1031.15,REDACTED
Adult Social Care,Older People 65&Over inc OP-MH,OP East -Direct Payment Scheme,Third Party Payments,Private Contractors,Direct Payments,Revenue,02/12/2010,173,1413.45,REDACTED
Adult Social Care,Older People 65&Over inc OP-MH,OP West -Direct Payment Scheme,Third Party Payments,Private Contractors,Direct Payments,Revenue,02/12/2010,174,1465.8,REDACTED
Adult Social Care,Older People 65&Over inc OP-MH,OP East -Direct Payment Scheme,Third Party Payments,Private Contractors,Direct Payments,Revenue,02/12/2010,175,1597.5,REDACTED
Adult Social Care,Older People 65&Over inc OP-MH,OP Hosp -Direct Payment Scheme,Third Party Payments,Private Contractors,Direct Payments,Revenue,02/12/2010,176,5048.35,REDACTED
Adult Social Care,Adlt u65 Learning Disabilities,LD Direct Payment Scheme,Third Party Payments,Private Contractors,Direct Payments,Revenue,02/12/2010,177,6690.65,REDACTED
Adult Social Care,Older People 65&Over inc OP-MH,OP East -Direct Payment Scheme,Third Party Payments,Private Contractors,Direct Payments,Revenue,02/12/2010,178,625.65,REDACTED
Adult Social Care,Older People 65&Over inc OP-MH,OP West -Direct Payment Scheme,Third Party Payments,Private Contractors,Direct Payments,Revenue,02/12/2010,179,931.85,REDACTED
Adult Social Care,Older People 65&Over inc OP-MH,OP West -Direct Payment Scheme,Third Party Payments,Private Contractors,Direct Payments,Revenue,02/12/2010,180,958.1,REDACTED
Adult Social Care,Older People 65&Over inc OP-MH,OP East -Direct Payment Scheme,Third Party Payments,Private Contractors,Direct Payments,Revenue,02/12/2010,181,1068.65,REDACTED
Adult Social Care,Adult u65 Phys/Sensory Impair,PD WEST TEAM-Direct Payment,Third Party Payments,Private Contractors,Direct Payments,Revenue,02/12/2010,182,4214.5,REDACTED
Adult Social Care,Older People 65&Over inc OP-MH,OP West -Direct Payment Scheme,Third Party Payments,Private Contractors,Direct Payments,Revenue,02/12/2010,183,523.5,REDACTED
Adult Social Care,Adult u65 Phys/Sensory Impair,PD EAST TEAM-Direct Payment,Third Party Payments,Private Contractors,Direct Payments,Revenue,02/12/2010,184,1278,REDACTED
Adult Social Care,Adlt u65 Learning Disabilities,LD Direct Payment Scheme,Third Party Payments,Private Contractors,Direct Payments,Revenue,02/12/2010,185,1894.45,REDACTED
Adult Social Care,Adult u65 Phys/Sensory Impair,PD EAST TEAM-Direct Payment,Third Party Payments,Private Contractors,Direct Payments,Revenue,02/12/2010,186,538.3,REDACTED
Adult Social Care,Older People 65&Over inc OP-MH,OP East -Direct Payment Scheme,Third Party Payments,Private Contractors,Direct Payments,Revenue,02/12/2010,187,758.8,REDACTED
Adult Social Care,Adlt u65 Learning Disabilities,LD Direct Payment Scheme,Third Party Payments,Private Contractors,Direct Payments,Revenue,02/12/2010,188,639,REDACTED
Adult Social Care,Adult u65 Mental Health Needs,MH Direct Payment Sche -Morden,Third Party Payments,Private Contractors,Direct Payments,Revenue,02/12/2010,189,1491,REDACTED
Adult Social Care,Adult u65 Phys/Sensory Impair,PD WEST TEAM-Direct Payment,Third Party Payments,Private Contractors,Direct Payments,Revenue,02/12/2010,190,1083.8,REDACTED
Adult Social Care,Older People 65&Over inc OP-MH,OP East -Direct Payment Scheme,Third Party Payments,Private Contractors,Direct Payments,Revenue,02/12/2010,191,1105,REDACTED
Adult Social Care,Older People 65&Over inc OP-MH,OP West -Direct Payment Scheme,Third Party Payments,Private Contractors,Direct Payments,Revenue,02/12/2010,192,2143.3,REDACTED
Adult Social Care,Older People 65&Over inc OP-MH,OP East -Direct Payment Scheme,Third Party Payments,Private Contractors,Direct Payments,Revenue,02/12/2010,193,745.5,REDACTED
Adult Social Care,Adult u65 Phys/Sensory Impair,PD WEST TEAM-Direct Payment,Third Party Payments,Private Contractors,Direct Payments,Revenue,02/12/2010,194,1384.5,REDACTED
Adult Social Care,Older People 65&Over inc OP-MH,OP West -Direct Payment Scheme,Third Party Payments,Private Contractors,Direct Payments,Revenue,02/12/2010,195,671.9,REDACTED
Adult Social Care,Older People 65&Over inc OP-MH,OP East -Direct Payment Scheme,Third Party Payments,Private Contractors,Direct Payments,Revenue,02/12/2010,196,1119.05,REDACTED
Adult Social Care,Older People 65&Over inc OP-MH,OP West -Direct Payment Scheme,Third Party Payments,Private Contractors,Direct Payments,Revenue,02/12/2010,197,2216.8,REDACTED
Adult Social Care,Older People 65&Over inc OP-MH,OP Hosp -Direct Payment Scheme,Third Party Payments,Private Contractors,Direct Payments,Revenue,02/12/2010,198,2011.85,REDACTED
Adult Social Care,Older People 65&Over inc OP-MH,OP East -Direct Payment Scheme,Third Party Payments,Private Contractors,Direct Payments,Revenue,02/12/2010,199,1677.35,REDACTED
Childrens & Education Services,Children Looked After (24hrs+),CL Independent Fostering,Supplies & Services,Services,Task Based Fostering,Revenue,02/12/2010,200,3258.4,BANYA
Childrens & Education Services,Children Looked After (24hrs+),CL Independent Fostering,Supplies & Services,Services,Task Based Fostering,Revenue,02/12/2010,201,1648.32,CROHAM SERV.FOR CHILDREN LTD
Childrens & Education Services,Children Looked After (24hrs+),CL Independent Fostering,Supplies & Services,Services,Task Based Fostering,Revenue,02/12/2010,202,784.63,CORNERWAYS FOSTERING SERV.LTD
Childrens & Education Services,Children Looked After (24hrs+),CL Independent Fostering,Supplies & Services,Services,Task Based Fostering,Revenue,02/12/2010,203,784.63,CORNERWAYS FOSTERING SERV.LTD
Childrens & Education Services,Other Ch's & Family Services,CL Setting Up Home Allowance,Third Party Payments,Private Contractors,Miscellaneous Agency Services,Revenue,02/12/2010,204,984,REDACTED
Childrens & Education Services,Other Ch's & Family Services,CL Leaving Care/Supp Lodgings,Third Party Payments,Private Contractors,Supported Lodgings,Revenue,02/12/2010,205,600,REDACTED
Childrens & Education Services,Other Ch's & Family Services,CL Setting Up Home Allowance,Third Party Payments,Private Contractors,Miscellaneous Agency Services,Revenue,03/12/2010,206,500,REDACTED
Childrens & Education Services,Other Ch's & Family Services,CL Adoption Allowances,Transfer Payments,Social Services clients,Adoption Allowances,Revenue,03/12/2010,207,553.84,REDACTED
Childrens & Education Services,Other Ch's & Family Services,CL Adoption Allowances,Transfer Payments,Social Services clients,Adoption Allowances,Revenue,03/12/2010,208,562.88,REDACTED
Childrens & Education Services,Other Ch's & Family Services,CL Adoption Allowances,Transfer Payments,Social Services clients,Adoption Allowances,Revenue,03/12/2010,209,607.08,REDACTED
Childrens & Education Services,Other Ch's & Family Services,CL Adoption Allowances,Transfer Payments,Social Services clients,Adoption Allowances,Revenue,03/12/2010,210,653.65,REDACTED
Childrens & Education Services,Family Support Services,CL Residence Orders,Supplies & Services,Grants and Subscriptions,Residence Orders,Revenue,03/12/2010,211,606.9,REDACTED
Childrens & Education Services,Other Ch's & Family Services,CL Adoption Allowances,Transfer Payments,Social Services clients,Adoption Allowances,Revenue,03/12/2010,212,912.4,REDACTED
Childrens & Education Services,Family Support Services,CS Referral & Assessment Sec17,Transfer Payments,Social Services clients,Childr Act 1989 S17,Revenue,03/12/2010,213,1350,THE NEW LEVEL OF LIFE
Childrens & Education Services,Family Support Services,CL Residence Orders,Supplies & Services,Grants and Subscriptions,Residence Orders,Revenue,03/12/2010,214,779.02,REDACTED
Childrens & Education Services,Other Ch's & Family Services,CL Leaving Care/Supp Lodgings,Third Party Payments,Private Contractors,Supported Lodgings,Revenue,03/12/2010,215,600,REDACTED
Childrens & Education Services,Children Looked After (24hrs+),CL Independent Fostering,Supplies & Services,Services,Task Based Fostering,Revenue,03/12/2010,216,1648.32,CROHAM SERV.FOR CHILDREN LTD
Childrens & Education Services,Children Looked After (24hrs+),CL Independent Fostering,Supplies & Services,Services,Task Based Fostering,Revenue,03/12/2010,217,4800,RPSPV RE FOSTERCARE UK LTD
Adult Social Care,Adult u65 Mental Health Needs,MH Hostels/B & B - NRTPF,Third Party Payments,Private Contractors,Miscellaneous Agency Services,Revenue,03/12/2010,218,1380.4,ASTRA HOMES
Adult Social Care,Adlt u65 Learning Disabilities,LD Supported Housing,Third Party Payments,Private Contractors,Miscellaneous Agency Services,Revenue,03/12/2010,219,1360,ASTRA HOMES
Adult Social Care,Adult u65 Mental Health Needs,MH Hostels/ B & B - Wim,Third Party Payments,Private Contractors,Miscellaneous Agency Services,Revenue,03/12/2010,220,1222.04,ASTRA HOMES
Adult Social Care,Adult u65 Mental Health Needs,MH Hostels/ B & B - Wim,Third Party Payments,Private Contractors,Miscellaneous Agency Services,Revenue,03/12/2010,221,763.24,ASTRA HOMES
Adult Social Care,Adult u65 Mental Health Needs,MH Res Care Ext- Mitcham West,Third Party Payments,Private Contractors,Miscellaneous Agency Services,Revenue,03/12/2010,222,2074.72,ASTRA HOMES
Adult Social Care,Adlt u65 Learning Disabilities,LD Supported Housing,Third Party Payments,Private Contractors,Miscellaneous Agency Services,Revenue,03/12/2010,223,965.68,ASTRA HOMES
Adult Social Care,Adlt u65 Learning Disabilities,LD Supported Housing,Third Party Payments,Private Contractors,Miscellaneous Agency Services,Revenue,03/12/2010,224,1287.68,ASTRA HOMES
Adult Social Care,Adult u65 Mental Health Needs,MH ResidentialCare Ext-Morden,Third Party Payments,Private Contractors,Miscellaneous Agency Services,Revenue,03/12/2010,225,6117,BROOKDALE HEALTH CARE
Adult Social Care,Adlt u65 Learning Disabilities,LD Residential Care External,Third Party Payments,Private Contractors,Miscellaneous Agency Services,Revenue,06/12/2010,226,2471.6,CANTERBURY OAST TRUST LTD
Adult Social Care,Adlt u65 Learning Disabilities,LD Residential Care External,Third Party Payments,Private Contractors,Miscellaneous Agency Services,Revenue,03/12/2010,227,7182.16,CARE ASPIRATIONS LIMITED
Adult Social Care,Older People 65&Over inc OP-MH,OP Hosp - Nursing Care,Third Party Payments,Private Contractors,Miscellaneous Agency Services,Revenue,06/12/2010,228,2400,REDACTED
Adult Social Care,Older People 65&Over inc OP-MH,OP Hosp - Nursing Care,Third Party Payments,Private Contractors,Miscellaneous Agency Services,Revenue,06/12/2010,229,2341.84,REDACTED
Adult Social Care,Older People 65&Over inc OP-MH,OP East - Nursing Care,Third Party Payments,Private Contractors,Miscellaneous Agency Services,Revenue,06/12/2010,230,2221.84,REDACTED
Adult Social Care,Older People 65&Over inc OP-MH,OP Hosp - Nursing Care,Third Party Payments,Private Contractors,Miscellaneous Agency Services,Revenue,06/12/2010,231,2341.84,REDACTED
Adult Social Care,Adult u65 Phys/Sensory Impair,PD WEST TEAM-Residential Care,Third Party Payments,Private Contractors,Miscellaneous Agency Services,Revenue,03/12/2010,232,3399.76,THE FRANCES TAYLOR FOUNDATION
Adult Social Care,Adult u65 Phys/Sensory Impair,PD WEST TEAM-Residential Care,Third Party Payments,Private Contractors,Miscellaneous Agency Services,Revenue,03/12/2010,233,3399.76,THE FRANCES TAYLOR FOUNDATION
Adult Social Care,Adult u65 Phys/Sensory Impair,PD EAST TEAM-Residential,Third Party Payments,Private Contractors,Miscellaneous Agency Services,Revenue,03/12/2010,234,5142.6,HIGHVIEW CARE SERVICES LTD
Adult Social Care,Adlt u65 Learning Disabilities,LD Residential Care External,Third Party Payments,Private Contractors,Miscellaneous Agency Services,Revenue,03/12/2010,235,7308,INDEPENDENCE HOMES LTD
Adult Social Care,Adlt u65 Learning Disabilities,LD Residential Care External,Third Party Payments,Private Contractors,Miscellaneous Agency Services,Revenue,06/12/2010,236,5288.83,KENT AUTISTIC TRUST
Adult Social Care,Adlt u65 Learning Disabilities,LD Residential Care External,Third Party Payments,Private Contractors,Miscellaneous Agency Services,Revenue,06/12/2010,237,2087.64,LINKAGE COMMUNITY TR.LONG-STAY
Adult Social Care,Adult u65 Mental Health Needs,MH ResidentialCare Ext - Wim,Third Party Payments,Private Contractors,Miscellaneous Agency Services,Revenue,03/12/2010,238,3171.08,MENTAL HEALTH CARE (UK) LTD
Adult Social Care,Adult u65 Mental Health Needs,MH ResidentialCare Ext - Wim,Third Party Payments,Private Contractors,Miscellaneous Agency Services,Revenue,03/12/2010,239,2247.52,QUALITY CARE CHOICE LTD
Adult Social Care,Adult u65 Phys/Sensory Impair,PD EAST TEAM-Residential,Third Party Payments,Private Contractors,Miscellaneous Agency Services,Revenue,03/12/2010,240,8311.5,THE RICHARDSON PARTNERSHIP FOR
Adult Social Care,Older People 65&Over inc OP-MH,OP East - Residential Care Ext,Third Party Payments,Private Contractors,Miscellaneous Agency Services,Revenue,03/12/2010,241,3032.24,SCOPE
Adult Social Care,Older People 65&Over inc OP-MH,OP Hosp - Residential Care Ext,Third Party Payments,Private Contractors,Miscellaneous Agency Services,Revenue,06/12/2010,242,1812.4,ST MARY'S LODGE
Adult Social Care,Older People 65&Over inc OP-MH,OP East - Residential Care Ext,Third Party Payments,Private Contractors,Miscellaneous Agency Services,Revenue,06/12/2010,243,1812.4,ST MARY'S LODGE
Adult Social Care,Older People 65&Over inc OP-MH,OP Hosp - Residential Care Ext,Third Party Payments,Private Contractors,Miscellaneous Agency Services,Revenue,06/12/2010,244,1812.4,ST MARY'S LODGE
Adult Social Care,Adlt u65 Learning Disabilities,LD Home Care External,Third Party Payments,Private Contractors,Miscellaneous Agency Services,Revenue,03/12/2010,245,655.3,BEECH HOME CARE SERVICES
Adult Social Care,Adult u65 Mental Health Needs,MH Home Care External-MitWest,Third Party Payments,Private Contractors,Miscellaneous Agency Services,Revenue,03/12/2010,246,640.14,SANCTUARY HOME CARE
Adult Social Care,Adult u65 Phys/Sensory Impair,PD EAST TEAM-Homecare,Third Party Payments,Private Contractors,Miscellaneous Agency Services,Revenue,03/12/2010,247,1423.29,SANCTUARY HOME CARE
Adult Social Care,Older People 65&Over inc OP-MH,OP East - Home Care External,Third Party Payments,Private Contractors,Miscellaneous Agency Services,Revenue,03/12/2010,248,4217.3,SANCTUARY HOME CARE
Adult Social Care,Older People 65&Over inc OP-MH,OP West - Home Care External,Third Party Payments,Private Contractors,Miscellaneous Agency Services,Revenue,03/12/2010,249,27599.83,SANCTUARY HOME CARE
Adult Social Care,Older People 65&Over inc OP-MH,OP West -Direct Payment Scheme,Third Party Payments,Private Contractors,Direct Payments,Revenue,03/12/2010,250,692.25,REDACTED
Adult Social Care,Older People 65&Over inc OP-MH,OP East -Direct Payment Scheme,Third Party Payments,Private Contractors,Direct Payments,Revenue,03/12/2010,251,4233.35,REDACTED
Adult Social Care,Adlt u65 Learning Disabilities,LD Direct Payment Scheme,Third Party Payments,Private Contractors,Direct Payments,Revenue,03/12/2010,252,524.2,REDACTED
Adult Social Care,Adult u65 Phys/Sensory Impair,PD WEST TEAM-Direct Payment,Third Party Payments,Private Contractors,Direct Payments,Revenue,03/12/2010,253,706.7,REDACTED
Adult Social Care,Older People 65&Over inc OP-MH,OP West -Direct Payment Scheme,Third Party Payments,Private Contractors,Direct Payments,Revenue,03/12/2010,254,865.3,REDACTED
Adult Social Care,Older People 65&Over inc OP-MH,OP West -Direct Payment Scheme,Third Party Payments,Private Contractors,Direct Payments,Revenue,03/12/2010,255,1610.65,REDACTED
Adult Social Care,Adlt u65 Learning Disabilities,LD Direct Payment Scheme,Third Party Payments,Private Contractors,Direct Payments,Revenue,03/12/2010,256,505.85,REDACTED
Adult Social Care,Adult u65 Phys/Sensory Impair,PD WEST TEAM-Direct Payment,Third Party Payments,Private Contractors,Direct Payments,Revenue,03/12/2010,257,3727.5,REDACTED
Adult Social Care,Adult u65 Phys/Sensory Impair,PD WEST TEAM-Direct Payment,Third Party Payments,Private Contractors,Direct Payments,Revenue,14/12/2010,258,2047.55,REDACTED
Adult Social Care,Adult u65 Phys/Sensory Impair,PD WEST TEAM-Direct Payment,Third Party Payments,Private Contractors,Direct Payments,Revenue,03/12/2010,259,624.1,REDACTED
Adult Social Care,Older People 65&Over inc OP-MH,OP West -Direct Payment Scheme,Third Party Payments,Private Contractors,Direct Payments,Revenue,03/12/2010,260,1728.85,REDACTED
Adult Social Care,Older People 65&Over inc OP-MH,OP Hosp -Direct Payment Scheme,Third Party Payments,Private Contractors,Direct Payments,Revenue,03/12/2010,261,1820.45,REDACTED
Adult Social Care,Adlt u65 Learning Disabilities,LD Direct Payment Scheme,Third Party Payments,Private Contractors,Direct Payments,Revenue,06/12/2010,262,905.25,REDACTED
Adult Social Care,Adult u65 Phys/Sensory Impair,PD EAST TEAM-Direct Payment,Third Party Payments,Private Contractors,Direct Payments,Revenue,03/12/2010,263,1863.75,REDACTED
Adult Social Care,Adult u65 Phys/Sensory Impair,PD EAST TEAM-Direct Payment,Third Party Payments,Private Contractors,Direct Payments,Revenue,03/12/2010,264,798.75,REDACTED
Adult Social Care,Adult u65 Phys/Sensory Impair,PD WEST TEAM-Direct Payment,Third Party Payments,Private Contractors,Direct Payments,Revenue,03/12/2010,265,3487.85,REDACTED
Adult Social Care,Adult u65 Phys/Sensory Impair,PD WEST TEAM-Direct Payment,Third Party Payments,Private Contractors,Direct Payments,Revenue,03/12/2010,266,747.7,REDACTED
Adult Social Care,Older People 65&Over inc OP-MH,OP West -Direct Payment Scheme,Third Party Payments,Private Contractors,Direct Payments,Revenue,03/12/2010,267,1436.85,REDACTED
Adult Social Care,Older People 65&Over inc OP-MH,OP Hosp -Direct Payment Scheme,Third Party Payments,Private Contractors,Direct Payments,Revenue,03/12/2010,268,1091.6,REDACTED
Adult Social Care,Adlt u65 Learning Disabilities,LD Direct Payment Scheme,Third Party Payments,Private Contractors,Direct Payments,Revenue,03/12/2010,269,1196.5,REDACTED
Adult Social Care,Older People 65&Over inc OP-MH,OP West -Direct Payment Scheme,Third Party Payments,Private Contractors,Direct Payments,Revenue,03/12/2010,270,2105.6,REDACTED
Adult Social Care,Older People 65&Over inc OP-MH,OP East -Direct Payment Scheme,Third Party Payments,Private Contractors,Direct Payments,Revenue,03/12/2010,271,628.2,REDACTED
Adult Social Care,Older People 65&Over inc OP-MH,OP West -Direct Payment Scheme,Third Party Payments,Private Contractors,Direct Payments,Revenue,03/12/2010,272,1479.05,REDACTED
Adult Social Care,Older People 65&Over inc OP-MH,OP East -Direct Payment Scheme,Third Party Payments,Private Contractors,Direct Payments,Revenue,03/12/2010,273,968.5,REDACTED
Adult Social Care,Adult u65 Phys/Sensory Impair,PD EAST TEAM-Direct Payment,Third Party Payments,Private Contractors,Direct Payments,Revenue,03/12/2010,274,715.55,REDACTED
Adult Social Care,Older People 65&Over inc OP-MH,OP West -Direct Payment Scheme,Third Party Payments,Private Contractors,Direct Payments,Revenue,03/12/2010,275,630.55,REDACTED
Adult Social Care,Adlt u65 Learning Disabilities,LD Direct Payment Scheme,Third Party Payments,Private Contractors,Direct Payments,Revenue,03/12/2010,276,630,REDACTED
Adult Social Care,Adult u65 Phys/Sensory Impair,PD WEST TEAM-Direct Payment,Third Party Payments,Private Contractors,Direct Payments,Revenue,03/12/2010,277,2223.2,REDACTED
Adult Social Care,Adult u65 Phys/Sensory Impair,PD EAST TEAM-Direct Payment,Third Party Payments,Private Contractors,Direct Payments,Revenue,03/12/2010,278,1001,REDACTED
Adult Social Care,Older People 65&Over inc OP-MH,OP East -Direct Payment Scheme,Third Party Payments,Private Contractors,Direct Payments,Revenue,03/12/2010,279,1236.2,REDACTED
Adult Social Care,Adult u65 Phys/Sensory Impair,PD EAST TEAM-Direct Payment,Third Party Payments,Private Contractors,Direct Payments,Revenue,03/12/2010,280,758.8,REDACTED
Adult Social Care,Older People 65&Over inc OP-MH,OP East -Direct Payment Scheme,Third Party Payments,Private Contractors,Direct Payments,Revenue,03/12/2010,281,1171.5,REDACTED
Adult Social Care,Older People 65&Over inc OP-MH,OP Hosp -Direct Payment Scheme,Third Party Payments,Private Contractors,Direct Payments,Revenue,03/12/2010,282,1486.75,REDACTED
Adult Social Care,Older People 65&Over inc OP-MH,OP West -Direct Payment Scheme,Third Party Payments,Private Contractors,Direct Payments,Revenue,03/12/2010,283,751.7,REDACTED
Adult Social Care,Older People 65&Over inc OP-MH,OP East -Direct Payment Scheme,Third Party Payments,Private Contractors,Direct Payments,Revenue,03/12/2010,284,905.25,REDACTED
Adult Social Care,Older People 65&Over inc OP-MH,OP East -Direct Payment Scheme,Third Party Payments,Private Contractors,Direct Payments,Revenue,03/12/2010,285,2010.9,REDACTED
Adult Social Care,Older People 65&Over inc OP-MH,OP Hosp -Direct Payment Scheme,Third Party Payments,Private Contractors,Direct Payments,Revenue,03/12/2010,286,1478.85,REDACTED
Adult Social Care,Older People 65&Over inc OP-MH,OP West -Direct Payment Scheme,Third Party Payments,Private Contractors,Direct Payments,Revenue,03/12/2010,287,523.5,REDACTED
Adult Social Care,Adult u65 Phys/Sensory Impair,PD EAST TEAM-Direct Payment,Third Party Payments,Private Contractors,Direct Payments,Revenue,03/12/2010,288,2436.35,REDACTED
Adult Social Care,Adlt u65 Learning Disabilities,LD Direct Payment Scheme,Third Party Payments,Private Contractors,Direct Payments,Revenue,03/12/2010,289,575,REDACTED
Adult Social Care,Adult u65 Phys/Sensory Impair,PD EAST TEAM-Direct Payment,Third Party Payments,Private Contractors,Direct Payments,Revenue,03/12/2010,290,1081.4,REDACTED
Adult Social Care,Adult u65 Phys/Sensory Impair,PD WEST TEAM-Direct Payment,Third Party Payments,Private Contractors,Direct Payments,Revenue,03/12/2010,291,958.5,REDACTED
Adult Social Care,Older People 65&Over inc OP-MH,OP East -Direct Payment Scheme,Third Party Payments,Private Contractors,Direct Payments,Revenue,03/12/2010,292,865.3,REDACTED
Adult Social Care,Older People 65&Over inc OP-MH,OP East -Direct Payment Scheme,Third Party Payments,Private Contractors,Direct Payments,Revenue,03/12/2010,293,742,REDACTED
Adult Social Care,Adlt u65 Learning Disabilities,LD Direct Payment Scheme,Third Party Payments,Private Contractors,Direct Payments,Revenue,03/12/2010,294,1118.25,REDACTED
Adult Social Care,Adult u65 Phys/Sensory Impair,PD EAST TEAM-Direct Payment,Third Party Payments,Private Contractors,Direct Payments,Revenue,03/12/2010,295,1198.1,REDACTED
Adult Social Care,Older People 65&Over inc OP-MH,OP West -Direct Payment Scheme,Third Party Payments,Private Contractors,Direct Payments,Revenue,03/12/2010,296,1956.95,REDACTED
Adult Social Care,Adult u65 Phys/Sensory Impair,PD EAST TEAM-Direct Payment,Third Party Payments,Private Contractors,Direct Payments,Revenue,03/12/2010,297,905.25,REDACTED
Adult Social Care,Adlt u65 Learning Disabilities,LD Direct Payment Scheme,Third Party Payments,Private Contractors,Direct Payments,Revenue,03/12/2010,298,746,REDACTED
Adult Social Care,Older People 65&Over inc OP-MH,OP East -Direct Payment Scheme,Third Party Payments,Private Contractors,Direct Payments,Revenue,03/12/2010,299,931.9,REDACTED
Adult Social Care,Adult u65 Phys/Sensory Impair,PD WEST TEAM-Direct Payment,Third Party Payments,Private Contractors,Direct Payments,Revenue,03/12/2010,300,693.35,REDACTED
Adult Social Care,Adlt u65 Learning Disabilities,LD Direct Payment Scheme,Third Party Payments,Private Contractors,Direct Payments,Revenue,03/12/2010,301,3024.85,REDACTED
Adult Social Care,Adult u65 Phys/Sensory Impair,PD WEST TEAM-Direct Payment,Third Party Payments,Private Contractors,Direct Payments,Revenue,03/12/2010,302,779.2,REDACTED
Adult Social Care,Adult u65 Mental Health Needs,MH Direct Payment Sche -Morden,Third Party Payments,Private Contractors,Direct Payments,Revenue,03/12/2010,303,523.5,REDACTED
Adult Social Care,Adult u65 Mental Health Needs,MH Direct Payment Scheme- West,Third Party Payments,Private Contractors,Direct Payments,Revenue,03/12/2010,304,1233.25,REDACTED
Adult Social Care,Adult u65 Phys/Sensory Impair,PD EAST TEAM-Direct Payment,Third Party Payments,Private Contractors,Direct Payments,Revenue,03/12/2010,305,870.6,REDACTED
Adult Social Care,Older People 65&Over inc OP-MH,OP West -Direct Payment Scheme,Third Party Payments,Private Contractors,Direct Payments,Revenue,03/12/2010,306,1397.9,REDACTED
Adult Social Care,Older People 65&Over inc OP-MH,OP East -Direct Payment Scheme,Third Party Payments,Private Contractors,Direct Payments,Revenue,03/12/2010,307,4038.45,REDACTED
Adult Social Care,Older People 65&Over inc OP-MH,OP West -Direct Payment Scheme,Third Party Payments,Private Contractors,Direct Payments,Revenue,03/12/2010,308,719.4,REDACTED
Adult Social Care,Adult u65 Phys/Sensory Impair,PD EAST TEAM-Direct Payment,Third Party Payments,Private Contractors,Direct Payments,Revenue,03/12/2010,309,559.1,REDACTED
Adult Social Care,Older People 65&Over inc OP-MH,OP Hosp -Direct Payment Scheme,Third Party Payments,Private Contractors,Direct Payments,Revenue,03/12/2010,310,891.9,REDACTED
Adult Social Care,Older People 65&Over inc OP-MH,OP Hosp -Direct Payment Scheme,Third Party Payments,Private Contractors,Direct Payments,Revenue,03/12/2010,311,891.9,REDACTED
Adult Social Care,Older People 65&Over inc OP-MH,OP East -Direct Payment Scheme,Third Party Payments,Private Contractors,Direct Payments,Revenue,03/12/2010,312,2266.75,REDACTED
Adult Social Care,Adlt u65 Learning Disabilities,LD Direct Payment Scheme,Third Party Payments,Private Contractors,Direct Payments,Revenue,03/12/2010,313,808.6,REDACTED
Adult Social Care,Adult u65 Phys/Sensory Impair,PD EAST TEAM-Direct Payment,Third Party Payments,Private Contractors,Direct Payments,Revenue,03/12/2010,314,745.5,REDACTED
Adult Social Care,Adlt u65 Learning Disabilities,LD Day Care Agency,Third Party Payments,Private Contractors,Miscellaneous Agency Services,Revenue,06/12/2010,315,2953.44,ACT TOO
Adult Social Care,Adlt u65 Learning Disabilities,LD Home Care External,Third Party Payments,Private Contractors,Miscellaneous Agency Services,Revenue,06/12/2010,316,655.3,BEECH HOME CARE SERVICES
Adult Social Care,Older People 65&Over inc OP-MH,OP East - Daycare,Third Party Payments,Private Contractors,Miscellaneous Agency Services,Revenue,06/12/2010,317,779.6,ENTERPRISE CARE SUPPORT LTD
Adult Social Care,Older People 65&Over inc OP-MH,OP West - Daycare,Third Party Payments,Private Contractors,Miscellaneous Agency Services,Revenue,06/12/2010,318,779.6,ENTERPRISE CARE SUPPORT LTD
Adult Social Care,Adult u65 Mental Health Needs,MH Day Care - Morden,Third Party Payments,Private Contractors,Miscellaneous Agency Services,Revenue,06/12/2010,319,623.68,ENTERPRISE CARE SUPPORT LTD
Adult Social Care,Older People 65&Over inc OP-MH,OP East - Daycare,Third Party Payments,Private Contractors,Miscellaneous Agency Services,Revenue,06/12/2010,320,779.6,ENTERPRISE CARE SUPPORT LTD
Adult Social Care,Older People 65&Over inc OP-MH,OP West - Daycare,Third Party Payments,Private Contractors,Miscellaneous Agency Services,Revenue,06/12/2010,321,779.6,ENTERPRISE CARE SUPPORT LTD
Adult Social Care,Older People 65&Over inc OP-MH,OP East - Daycare,Third Party Payments,Private Contractors,Miscellaneous Agency Services,Revenue,06/12/2010,322,779.6,ENTERPRISE CARE SUPPORT LTD
Adult Social Care,Older People 65&Over inc OP-MH,OP East - Daycare,Third Party Payments,Private Contractors,Miscellaneous Agency Services,Revenue,06/12/2010,323,779.6,ENTERPRISE CARE SUPPORT LTD
Adult Social Care,Adult u65 Phys/Sensory Impair,PD EAST TEAM-Homecare,Third Party Payments,Private Contractors,Miscellaneous Agency Services,Revenue,06/12/2010,324,3714.92,HOMECARE SERVICES LTD
Adult Social Care,Adult u65 Mental Health Needs,MH Home Care External-MitWest,Third Party Payments,Private Contractors,Miscellaneous Agency Services,Revenue,06/12/2010,325,871.36,COMFORT CARE SERVICES (UK) LTD
Childrens & Education Services,Children Looked After (24hrs+),CL Secure Accommodation,Third Party Payments,Private Contractors,Miscellaneous Agency Services,Revenue,06/12/2010,326,21700,DEVON COUNTY COUNCIL
Childrens & Education Services,Children Looked After (24hrs+),CL Independent Fostering,Supplies & Services,Services,Long Term Fostering,Revenue,06/12/2010,327,2685.76,FOSTERPLUS LTD
Childrens & Education Services,Children Looked After (24hrs+),CL Independent Fostering,Supplies & Services,Services,Task Based Fostering,Revenue,06/12/2010,328,4296.25,LLOYDS TSB COMMERCIAL FINANCE
Adult Social Care,Adult u65 Mental Health Needs,MH ResidentialCare Ext - Wim,Third Party Payments,Private Contractors,Miscellaneous Agency Services,Revenue,06/12/2010,329,2756.36,ASRA G.LONDON HOUSING ASS.LTD
Adult Social Care,Adlt u65 Learning Disabilities,LD Nursing Care,Third Party Payments,Private Contractors,Miscellaneous Agency Services,Revenue,06/12/2010,330,3696.28,BARONS LODGE NURSING HOME
Adult Social Care,Adlt u65 Learning Disabilities,LD Residential Care External,Third Party Payments,Private Contractors,Miscellaneous Agency Services,Revenue,06/12/2010,331,6865.71,CARRICKS BROOK
Adult Social Care,Adlt u65 Learning Disabilities,LD Residential Care External,Third Party Payments,Private Contractors,Miscellaneous Agency Services,Revenue,06/12/2010,332,7285.71,CARRICKS BROOK
Adult Social Care,Adult u65 Mental Health Needs,MH Nursing Care - Morden,Third Party Payments,Private Contractors,Miscellaneous Agency Services,Revenue,06/12/2010,333,2866.36,BROOME PARK NURSING HOME
Adult Social Care,Adult u65 Mental Health Needs,MH Nursing Care - Morden,Third Party Payments,Private Contractors,Miscellaneous Agency Services,Revenue,06/12/2010,334,2716.52,CARE UNLIMITED
Adult Social Care,Adult u65 Phys/Sensory Impair,PD EAST TEAM-Hostel,Third Party Payments,Private Contractors,Miscellaneous Agency Services,Revenue,06/12/2010,335,1042,CARE MANAGEMENT GROUP
Adult Social Care,Adlt u65 Learning Disabilities,LD Residential Care External,Third Party Payments,Private Contractors,Miscellaneous Agency Services,Revenue,06/12/2010,336,7468.76,CORICH COMMUNITY CARE LTD
Adult Social Care,Adult u65 Phys/Sensory Impair,PD EAST TEAM-Residential,Third Party Payments,Private Contractors,Miscellaneous Agency Services,Revenue,06/12/2010,337,4226.28,THE DISABILITIES TRUST
Adult Social Care,Older People 65&Over inc OP-MH,OP Hosp - Residential Care Ext,Third Party Payments,Private Contractors,Miscellaneous Agency Services,Revenue,06/12/2010,338,1800,EDMUND HOUSE
Adult Social Care,Adult u65 Phys/Sensory Impair,PD WEST TEAM-Nursing,Third Party Payments,Private Contractors,Miscellaneous Agency Services,Revenue,06/12/2010,339,4800,HAVERING COURT NURSING HOME
Adult Social Care,Adlt u65 Learning Disabilities,LD Residential Care External,Third Party Payments,Private Contractors,Miscellaneous Agency Services,Revenue,06/12/2010,340,7699.76,HEALTHLINC INDIVIDUAL CARE LTD
Adult Social Care,Adult u65 Mental Health Needs,MH Res Care Ext- Mitcham West,Third Party Payments,Private Contractors,Miscellaneous Agency Services,Revenue,06/12/2010,341,857.14,LAGLIN LODGE
Adult Social Care,Older People 65&Over inc OP-MH,OP East - Residential Care Ext,Third Party Payments,Private Contractors,Miscellaneous Agency Services,Revenue,06/12/2010,342,1880,'LA LUZ'
Adult Social Care,Adlt u65 Learning Disabilities,LD Residential Care External,Third Party Payments,Private Contractors,Miscellaneous Agency Services,Revenue,06/12/2010,343,3406.6,L'ARCHE
Adult Social Care,Adlt u65 Learning Disabilities,LD Residential Care External,Third Party Payments,Private Contractors,Miscellaneous Agency Services,Revenue,06/12/2010,344,5230.77,MACINTYRE
Adult Social Care,Adult u65 Phys/Sensory Impair,PD WEST TEAM-Nursing,Third Party Payments,Private Contractors,Miscellaneous Agency Services,Revenue,06/12/2010,345,2801.4,MEADBANK NURSING CENTRE
Adult Social Care,Older People 65&Over inc OP-MH,OP West - Residential Care Ext,Third Party Payments,Private Contractors,Miscellaneous Agency Services,Revenue,06/12/2010,346,1692,METHODIST HOMES FOR THE AGED
Adult Social Care,Adlt u65 Learning Disabilities,LD Residential Care External,Third Party Payments,Private Contractors,Miscellaneous Agency Services,Revenue,06/12/2010,347,2904.56,ST MICHAEL'S ADULT SERVICES
Adult Social Care,Older People 65&Over inc OP-MH,OP Hosp - Residential Care Ext,Third Party Payments,Private Contractors,Miscellaneous Agency Services,Revenue,06/12/2010,348,1976.6,NIGHTINGALE HOUSE
Adult Social Care,Older People 65&Over inc OP-MH,OP East - Nursing Care,Third Party Payments,Private Contractors,Miscellaneous Agency Services,Revenue,06/12/2010,349,2420.24,NIGHTINGALE HOUSE
Adult Social Care,Adlt u65 Learning Disabilities,LD Residential Care External,Third Party Payments,Private Contractors,Miscellaneous Agency Services,Revenue,06/12/2010,350,3182.08,ODYSSEY CARE SOLUTIONS
Adult Social Care,Adlt u65 Learning Disabilities,LD Residential Care External,Third Party Payments,Private Contractors,Miscellaneous Agency Services,Revenue,06/12/2010,351,4984.6,ODYSSEY CARE SOLUTIONS
Adult Social Care,Adlt u65 Learning Disabilities,LD Residential Care External,Customer and client receipts,Charges,Bd&Acc-contrib coll by home X,Revenue,06/12/2010,352,-777.8,TRACESCENT LIMITED
Adult Social Care,Adlt u65 Learning Disabilities,LD Residential Care External,Third Party Payments,Private Contractors,Miscellaneous Agency Services,Revenue,06/12/2010,353,9350.12,TRACESCENT LIMITED
Adult Social Care,Adlt u65 Learning Disabilities,LD Residential Care External,Third Party Payments,Private Contractors,Miscellaneous Agency Services,Revenue,06/12/2010,354,5535.52,THE REGARD PARTNERSHIP LTD
Adult Social Care,Adlt u65 Learning Disabilities,LD Residential Care External,Third Party Payments,Private Contractors,Miscellaneous Agency Services,Revenue,06/12/2010,355,5536,THE REGARD PARTNERSHIP LTD
Adult Social Care,Adlt u65 Learning Disabilities,LD Residential Care External,Third Party Payments,Private Contractors,Miscellaneous Agency Services,Revenue,06/12/2010,356,4920,THE REGARD PARTNERSHIP LTD
Adult Social Care,Adlt u65 Learning Disabilities,LD Residential Care External,Third Party Payments,Private Contractors,Miscellaneous Agency Services,Revenue,06/12/2010,357,5200,THE REGARD PARTNERSHIP LTD
Adult Social Care,Adult u65 Phys/Sensory Impair,PD WEST TEAM-Residential Care,Third Party Payments,Private Contractors,Miscellaneous Agency Services,Revenue,06/12/2010,358,3811.6,VIRIDIAN HOUSING
Adult Social Care,Adult u65 Phys/Sensory Impair,PD EAST TEAM-Residential,Third Party Payments,Private Contractors,Miscellaneous Agency Services,Revenue,06/12/2010,359,840.29,RNIB REDHILL COLLEGE
Adult Social Care,Adlt u65 Learning Disabilities,LD Residential Care External,Third Party Payments,Private Contractors,Miscellaneous Agency Services,Revenue,06/12/2010,360,7505.56,SOLAR CARE GROUP LTD - ROBINIA
Adult Social Care,Adlt u65 Learning Disabilities,LD Residential Care External,Third Party Payments,Private Contractors,Miscellaneous Agency Services,Revenue,06/12/2010,361,5192,SOLAR CARE GROUP LTD - ROBINIA
Adult Social Care,Adlt u65 Learning Disabilities,LD Residential Care External,Third Party Payments,Private Contractors,Miscellaneous Agency Services,Revenue,06/12/2010,362,2593.4,THE SONS OF DIVINE PROVIDENCE
Adult Social Care,Older People 65&Over inc OP-MH,OP West - Nursing Care,Customer and client receipts,Charges,Bd&Acc-contrib coll by home X,Revenue,06/12/2010,363,-543.5,TRINITY COURT NURSING HOME
Adult Social Care,Older People 65&Over inc OP-MH,OP West - Nursing Care,Third Party Payments,Private Contractors,Miscellaneous Agency Services,Revenue,06/12/2010,364,3552.5,TRINITY COURT NURSING HOME
Adult Social Care,Adlt u65 Learning Disabilities,LD Residential Care External,Third Party Payments,Private Contractors,Miscellaneous Agency Services,Revenue,06/12/2010,365,5717.76,WINSLOW COURT
Adult Social Care,Other Adult Services,Fixed & Variable Client Paymen,Third Party Payments,Private Contractors,Miscellaneous Agency Services,Revenue,06/12/2010,366,39666.25,ABILITY HOUSING ASSOCIATION
Adult Social Care,Other Adult Services,Fixed & Variable Client Paymen,Third Party Payments,Private Contractors,Miscellaneous Agency Services,Revenue,06/12/2010,367,5833.33,AGE CONCERN (MERTON)
Adult Social Care,Other Adult Services,Fixed & Variable Client Paymen,Third Party Payments,Private Contractors,Miscellaneous Agency Services,Revenue,06/12/2010,368,3041.56,ANCHOR SP PAYMENT FROM SEP'03
Adult Social Care,Other Adult Services,Fixed & Variable Client Paymen,Third Party Payments,Private Contractors,Miscellaneous Agency Services,Revenue,06/12/2010,369,1691.66,ASIAN ELDERLY GROUP OF MERTON
Adult Social Care,Other Adult Services,Fixed & Variable Client Paymen,Third Party Payments,Private Contractors,Miscellaneous Agency Services,Revenue,06/12/2010,370,1300.49,CENTRAL & CECIL HOUSING TRUST
Adult Social Care,Other Adult Services,Fixed & Variable Client Paymen,Third Party Payments,Private Contractors,Miscellaneous Agency Services,Revenue,06/12/2010,371,2785.67,CROYDON CHURCHES HOUSING ASSOC
Adult Social Care,Other Adult Services,Fixed & Variable Client Paymen,Third Party Payments,Private Contractors,Miscellaneous Agency Services,Revenue,06/12/2010,372,11278.43,EQUINOX
Adult Social Care,Other Adult Services,Fixed & Variable Client Paymen,Third Party Payments,Private Contractors,Miscellaneous Agency Services,Revenue,06/12/2010,373,13842.59,FAMILY HOUSING ASSOCIATION
Adult Social Care,Other Adult Services,Fixed & Variable Client Paymen,Third Party Payments,Private Contractors,Miscellaneous Agency Services,Revenue,06/12/2010,374,22844.13,GRENFELL HOUSING ASSOCIATION
Adult Social Care,Other Adult Services,Fixed & Variable Client Paymen,Third Party Payments,Private Contractors,Miscellaneous Agency Services,Revenue,06/12/2010,375,1588.44,HANOVER HOUSING ASSOCIATION
Adult Social Care,Other Adult Services,Fixed & Variable Client Paymen,Third Party Payments,Private Contractors,Miscellaneous Agency Services,Revenue,06/12/2010,376,12073.1,HESTIA HOUSING AND SUPPORT
Adult Social Care,Other Adult Services,Fixed & Variable Client Paymen,Third Party Payments,Private Contractors,Miscellaneous Agency Services,Revenue,06/12/2010,377,1558.4,HORIZON HOUSING GROUP LIMITED
Adult Social Care,Other Adult Services,Fixed & Variable Client Paymen,Third Party Payments,Private Contractors,Miscellaneous Agency Services,Revenue,06/12/2010,378,1714.1,HOUSING21
Adult Social Care,Other Adult Services,Fixed & Variable Client Paymen,Third Party Payments,Private Contractors,Miscellaneous Agency Services,Revenue,06/12/2010,379,600.42,KINGSTON CHURCHES ACTION ON HO
Adult Social Care,Other Adult Services,Fixed & Variable Client Paymen,Third Party Payments,Private Contractors,Miscellaneous Agency Services,Revenue,06/12/2010,380,13256.54,MERTON ACT.FOR SINGLE HOMELESS
Adult Social Care,Other Adult Services,Fixed & Variable Client Paymen,Third Party Payments,Private Contractors,Miscellaneous Agency Services,Revenue,06/12/2010,381,9544.01,MERTON REFUGE
Adult Social Care,Other Adult Services,Fixed & Variable Client Paymen,Third Party Payments,Private Contractors,Miscellaneous Agency Services,Revenue,06/12/2010,382,3436.09,MERTON PRIORY HOMES
Adult Social Care,Other Adult Services,Fixed & Variable Client Paymen,Third Party Payments,Private Contractors,Miscellaneous Agency Services,Revenue,06/12/2010,383,1136.45,MERTON PRIORY HOMES
Adult Social Care,Other Adult Services,Fixed & Variable Client Paymen,Third Party Payments,Private Contractors,Miscellaneous Agency Services,Revenue,06/12/2010,384,2043.68,METROPOLITAN SUPPORT TRUST
Adult Social Care,Other Adult Services,Fixed & Variable Client Paymen,Third Party Payments,Private Contractors,Miscellaneous Agency Services,Revenue,06/12/2010,385,7734,NOTTING HILL HOUSING
Adult Social Care,Other Adult Services,Fixed & Variable Client Paymen,Third Party Payments,Private Contractors,Miscellaneous Agency Services,Revenue,06/12/2010,386,5550.15,SANCTUARY CARE
Adult Social Care,Other Adult Services,Fixed & Variable Client Paymen,Third Party Payments,Private Contractors,Miscellaneous Agency Services,Revenue,06/12/2010,387,9757.75,SERVITE HOUSES
Adult Social Care,Other Adult Services,Fixed & Variable Client Paymen,Third Party Payments,Private Contractors,Miscellaneous Agency Services,Revenue,06/12/2010,388,27435,COMFORT CARE SERVICES (UK) LTD
Adult Social Care,Other Adult Services,Fixed & Variable Client Paymen,Third Party Payments,Private Contractors,Miscellaneous Agency Services,Revenue,06/12/2010,389,620.5,SHAFTESBURY HOUSING ASSOC.
Adult Social Care,Other Adult Services,Fixed & Variable Client Paymen,Third Party Payments,Private Contractors,Miscellaneous Agency Services,Revenue,06/12/2010,390,1676.32,REDACTED
Adult Social Care,Other Adult Services,Fixed & Variable Client Paymen,Third Party Payments,Private Contractors,Miscellaneous Agency Services,Revenue,06/12/2010,391,709.45,THRESHOLD CENTRE LTD
Adult Social Care,Other Adult Services,Fixed & Variable Client Paymen,Third Party Payments,Private Contractors,Miscellaneous Agency Services,Revenue,06/12/2010,392,19895.2,WANDLE HOUSING ASSOCIATION LTD
Adult Social Care,Other Adult Services,Fixed & Variable Client Paymen,Third Party Payments,Private Contractors,Miscellaneous Agency Services,Revenue,06/12/2010,393,505.59,WILBERFORCE HOUSING ASSOC
Adult Social Care,Other Adult Services,Fixed & Variable Client Paymen,Third Party Payments,Private Contractors,Miscellaneous Agency Services,Revenue,06/12/2010,394,39749.19,WIMBLEDON & DISTRICT YMCA
Childrens & Education Services,Other Ch's & Family Services,CL Leaving Care/Supp Lodgings,Third Party Payments,Private Contractors,Miscellaneous Agency Services,Revenue,07/12/2010,395,3180,KEYA SUPPORT LTD
Adult Social Care,Asylum seekers,AS Child Res Care  (No Grant),Third Party Payments,Private Contractors,Private Tenant/Landlord,Revenue,07/12/2010,396,692.28,REDACTED
Childrens & Education Services,Other Ch's & Family Services,CL Leaving Care/Supp Lodgings,Third Party Payments,Private Contractors,Supported Lodgings,Revenue,07/12/2010,397,600,REDACTED
Childrens & Education Services,Other Ch's & Family Services,CL Leaving Care/Supp Lodgings,Third Party Payments,Private Contractors,Supported Lodgings,Revenue,07/12/2010,398,700,REDACTED
Adult Social Care,Adlt u65 Learning Disabilities,LD Residential Care External,Third Party Payments,Private Contractors,Miscellaneous Agency Services,Revenue,08/12/2010,399,1830.8,ASRA G.LONDON HOUSING ASS.LTD
Adult Social Care,Older People 65&Over inc OP-MH,OP Wim - Residential Care Ext,Third Party Payments,Private Contractors,Miscellaneous Agency Services,Revenue,07/12/2010,400,-6779.17,DEEPDENE CARE LIMITED
Adult Social Care,Older People 65&Over inc OP-MH,OP West - Residential Care Ext,Customer and client receipts,Charges,Bd&Acc-contrib coll by home X,Revenue,07/12/2010,401,-2079.94,DEEPDENE CARE LIMITED
Adult Social Care,Older People 65&Over inc OP-MH,OP Wim - Residential Care Ext,Customer and client receipts,Charges,Bd&Acc-contrib coll by home X,Revenue,07/12/2010,402,1638.74,DEEPDENE CARE LIMITED
Adult Social Care,Older People 65&Over inc OP-MH,OP West - Residential Care Ext,Third Party Payments,Private Contractors,Miscellaneous Agency Services,Revenue,07/12/2010,403,8604.33,DEEPDENE CARE LIMITED
Adult Social Care,Older People 65&Over inc OP-MH,OP Hosp - Residential Care Ext,Third Party Payments,Private Contractors,Miscellaneous Agency Services,Revenue,07/12/2010,404,776.74,EAST HILL HOUSE
Adult Social Care,Older People 65&Over inc OP-MH,OP West - Residential Care Ext,Third Party Payments,Private Contractors,Miscellaneous Agency Services,Revenue,07/12/2010,405,2265.5,THE ELDERS
Adult Social Care,Adlt u65 Learning Disabilities,LD Residential Care External,Third Party Payments,Private Contractors,Miscellaneous Agency Services,Revenue,07/12/2010,406,6890.99,EVERGREEN PARTNERSHIP
Adult Social Care,Older People 65&Over inc OP-MH,OP Hosp - Residential Care Ext,Third Party Payments,Private Contractors,Miscellaneous Agency Services,Revenue,07/12/2010,407,1800,GABLE LODGE
Adult Social Care,Adlt u65 Learning Disabilities,LD Residential Care External,Third Party Payments,Private Contractors,Miscellaneous Agency Services,Revenue,07/12/2010,408,3941.9,PROVIDENCE CARE UK LTD
Adult Social Care,Older People 65&Over inc OP-MH,OP East - Residential Care Ext,Third Party Payments,Private Contractors,Miscellaneous Agency Services,Revenue,07/12/2010,409,1806.12,THORNTON LODGE
Adult Social Care,Older People 65&Over inc OP-MH,OP Hosp - Home Care External,Third Party Payments,Private Contractors,Miscellaneous Agency Services,Revenue,07/12/2010,410,862.5,ADVANCE CARE&SUPP. IN THE COM.
Adult Social Care,Adult u65 Phys/Sensory Impair,PD WEST TEAM-Homecare,Third Party Payments,Private Contractors,Miscellaneous Agency Services,Revenue,07/12/2010,411,1115.82,BELGRAVIA NURS. & CARE BUREAU
Adult Social Care,Older People 65&Over inc OP-MH,OP Hosp - Home Care External,Third Party Payments,Private Contractors,Miscellaneous Agency Services,Revenue,07/12/2010,412,1490.62,BELGRAVIA NURS. & CARE BUREAU
Adult Social Care,Adult u65 Mental Health Needs,MH Home Care External-MitWest,Third Party Payments,Private Contractors,Miscellaneous Agency Services,Revenue,07/12/2010,413,2116.24,BELGRAVIA NURS. & CARE BUREAU
Adult Social Care,Older People 65&Over inc OP-MH,OP West - Home Care External,Third Party Payments,Private Contractors,Miscellaneous Agency Services,Revenue,07/12/2010,414,8193.85,BELGRAVIA NURS. & CARE BUREAU
Adult Social Care,Older People 65&Over inc OP-MH,OP East - Home Care External,Third Party Payments,Private Contractors,Miscellaneous Agency Services,Revenue,07/12/2010,415,12178.3,BELGRAVIA NURS. & CARE BUREAU
Adult Social Care,Adlt u65 Learning Disabilities,LD Home Care External,Third Party Payments,Private Contractors,Miscellaneous Agency Services,Revenue,07/12/2010,416,7400.4,COMMUNITY HOME CARE PROVIDER
Adult Social Care,Older People 65&Over inc OP-MH,OP East - Carer Services,Third Party Payments,Private Contractors,Miscellaneous Agency Services,Revenue,07/12/2010,417,557.74,COMMUNITY HOME CARE PROVIDER
Adult Social Care,Adult u65 Phys/Sensory Impair,PD EAST TEAM-Homecare,Third Party Payments,Private Contractors,Miscellaneous Agency Services,Revenue,07/12/2010,418,614.58,COMMUNITY HOME CARE PROVIDER
Adult Social Care,Older People 65&Over inc OP-MH,OP East - Home Care External,Third Party Payments,Private Contractors,Miscellaneous Agency Services,Revenue,07/12/2010,419,1752.78,COMMUNITY HOME CARE PROVIDER
Adult Social Care,Adult u65 Mental Health Needs,MH Home Care External-MitWest,Third Party Payments,Private Contractors,Miscellaneous Agency Services,Revenue,07/12/2010,420,805.87,GOLDSBOROUGH HOMECARE
Adult Social Care,Adult u65 Phys/Sensory Impair,PD WEST TEAM-Homecare,Third Party Payments,Private Contractors,Miscellaneous Agency Services,Revenue,07/12/2010,421,1086.82,GOLDSBOROUGH HOMECARE
Adult Social Care,Older People 65&Over inc OP-MH,OP West - Carer Services,Third Party Payments,Private Contractors,Miscellaneous Agency Services,Revenue,07/12/2010,422,1225.27,GOLDSBOROUGH HOMECARE
Adult Social Care,Older People 65&Over inc OP-MH,OP East - Carer Services,Third Party Payments,Private Contractors,Miscellaneous Agency Services,Revenue,07/12/2010,423,2102.77,GOLDSBOROUGH HOMECARE
Adult Social Care,Older People 65&Over inc OP-MH,OP Hosp - Home Care External,Third Party Payments,Private Contractors,Miscellaneous Agency Services,Revenue,07/12/2010,424,2794.65,GOLDSBOROUGH HOMECARE
Adult Social Care,Adult u65 Phys/Sensory Impair,PD EAST TEAM-Homecare,Third Party Payments,Private Contractors,Miscellaneous Agency Services,Revenue,07/12/2010,425,2904.21,GOLDSBOROUGH HOMECARE
Adult Social Care,Older People 65&Over inc OP-MH,OP West - Home Care External,Third Party Payments,Private Contractors,Miscellaneous Agency Services,Revenue,07/12/2010,426,17392.55,GOLDSBOROUGH HOMECARE
Adult Social Care,Older People 65&Over inc OP-MH,OP East - Home Care External,Third Party Payments,Private Contractors,Miscellaneous Agency Services,Revenue,07/12/2010,427,37499.1,GOLDSBOROUGH HOMECARE
Adult Social Care,Older People 65&Over inc OP-MH,OP East - Home Care External,Third Party Payments,Private Contractors,Miscellaneous Agency Services,Revenue,07/12/2010,428,683.22,HFH HOMECARE LTD
Adult Social Care,Older People 65&Over inc OP-MH,OP West - Home Care External,Third Party Payments,Private Contractors,Miscellaneous Agency Services,Revenue,07/12/2010,429,963.65,HFH HOMECARE LTD
Adult Social Care,Adult u65 Phys/Sensory Impair,PD EAST TEAM-Homecare,Third Party Payments,Private Contractors,Miscellaneous Agency Services,Revenue,07/12/2010,430,1405.63,SANCTUARY HOME CARE
Adult Social Care,Adult u65 Phys/Sensory Impair,PD EAST TEAM-Other Services,Third Party Payments,Private Contractors,Miscellaneous Agency Services,Revenue,07/12/2010,431,1048.2,SUPREME FOODS
Childrens & Education Services,Children Looked After (24hrs+),CL Fostering Services,Supplies & Services,Services,Task Based Fostering,Revenue,07/12/2010,432,1018.38,REDACTED
Childrens & Education Services,Children Looked After (24hrs+),CL Fostering Services,Supplies & Services,Services,Task Based Fostering,Revenue,07/12/2010,433,510.72,REDACTED
Childrens & Education Services,Children Looked After (24hrs+),CL Fostering Services,Supplies & Services,Services,Task Based Fostering,Revenue,07/12/2010,434,932.96,REDACTED
Childrens & Education Services,Children Looked After (24hrs+),CL Fostering Services,Supplies & Services,Services,Task Based Fostering,Revenue,07/12/2010,435,1475.91,REDACTED
Childrens & Education Services,Children Looked After (24hrs+),CL Fostering Services,Supplies & Services,Services,Task Based Fostering,Revenue,07/12/2010,436,1411.45,REDACTED
Childrens & Education Services,Children Looked After (24hrs+),CL Fostering Services,Supplies & Services,Services,Task Based Fostering,Revenue,07/12/2010,437,965.19,REDACTED
Adult Social Care,Asylum seekers,AS Child - Foster Care(Grant),Supplies & Services,Services,Task Based Fostering,Revenue,07/12/2010,438,510.72,REDACTED
Childrens & Education Services,Children Looked After (24hrs+),CL Fostering Services,Supplies & Services,Services,Task Based Fostering,Revenue,07/12/2010,439,510.72,REDACTED
Childrens & Education Services,Children Looked After (24hrs+),CL Fostering Services,Supplies & Services,Services,Task Based Fostering,Revenue,07/12/2010,440,932.96,REDACTED
Childrens & Education Services,Children Looked After (24hrs+),CL Fostering Services,Supplies & Services,Services,Task Based Fostering,Revenue,07/12/2010,441,1588.2,REDACTED
Childrens & Education Services,Children Looked After (24hrs+),CL Fostering Services,Supplies & Services,Services,Task Based Fostering,Revenue,07/12/2010,442,510.72,REDACTED
Childrens & Education Services,Children Looked After (24hrs+),CL Fostering Services,Supplies & Services,Services,Task Based Fostering,Revenue,07/12/2010,443,1338.71,REDACTED
Childrens & Education Services,Children Looked After (24hrs+),CL Fostering Services,Supplies & Services,Services,Task Based Fostering,Revenue,07/12/2010,444,1079.78,REDACTED
Childrens & Education Services,Children Looked After (24hrs+),CL Fostering Services,Supplies & Services,Services,Task Based Fostering,Revenue,07/12/2010,445,1534.25,REDACTED
Childrens & Education Services,Children Looked After (24hrs+),CL Fostering Services,Supplies & Services,Services,Task Based Fostering,Revenue,07/12/2010,446,908.94,REDACTED
Childrens & Education Services,Children Looked After (24hrs+),CL Fostering Services,Supplies & Services,Services,Long Term Fostering,Revenue,07/12/2010,447,539.89,REDACTED
Childrens & Education Services,Children Looked After (24hrs+),CL Fostering Services,Supplies & Services,Services,Long Term Fostering,Revenue,07/12/2010,448,539.89,REDACTED
Childrens & Education Services,Children Looked After (24hrs+),CL Fostering Services,Supplies & Services,Services,Task Based Fostering,Revenue,07/12/2010,449,1021.44,REDACTED
Childrens & Education Services,Children Looked After (24hrs+),CL Fostering Services,Supplies & Services,Services,Task Based Fostering,Revenue,07/12/2010,450,908.94,REDACTED
Childrens & Education Services,Children Looked After (24hrs+),CL Fostering Services,Supplies & Services,Services,Task Based Fostering,Revenue,07/12/2010,451,824.07,REDACTED
Childrens & Education Services,Children Looked After (24hrs+),CL Fostering Services,Supplies & Services,Services,Task Based Fostering,Revenue,07/12/2010,452,510.72,REDACTED
Childrens & Education Services,Children Looked After (24hrs+),CL Fostering Services,Supplies & Services,Services,Long Term Fostering,Revenue,08/12/2010,453,539.89,REDACTED
Childrens & Education Services,Children Looked After (24hrs+),CL Fostering Services,Supplies & Services,Services,Task Based Fostering,Revenue,07/12/2010,454,932.96,REDACTED
Childrens & Education Services,Children Looked After (24hrs+),CL Fostering Services,Supplies & Services,Services,Task Based Fostering,Revenue,07/12/2010,455,539.89,REDACTED
Childrens & Education Services,Children Looked After (24hrs+),CL Fostering Services,Supplies & Services,Services,Task Based Fostering,Revenue,07/12/2010,456,956.18,REDACTED
Childrens & Education Services,Children Looked After (24hrs+),CL Fostering Services,Supplies & Services,Services,Task Based Fostering,Revenue,07/12/2010,457,1363.41,REDACTED
Childrens & Education Services,Children Looked After (24hrs+),CL Fostering Services,Supplies & Services,Services,Task Based Fostering,Revenue,07/12/2010,458,510.72,REDACTED
Childrens & Education Services,Other Ch's & Family Services,CL Adoption Allowances,Transfer Payments,Social Services clients,Adoption Allowances,Revenue,08/12/2010,459,564,REDACTED
Adult Social Care,Asylum seekers,AS Child-Discret Pay (NoGrant),Third Party Payments,Private Contractors,Miscellaneous Agency Services,Revenue,08/12/2010,460,1467.06,QUEEN MARY UNIVERSITY OF LDN
Adult Social Care,Adult u65 Phys/Sensory Impair,PD EAST TEAM-Homecare,Third Party Payments,Private Contractors,Miscellaneous Agency Services,Revenue,08/12/2010,461,981.96,ACCESS CARE LTD
Adult Social Care,Older People 65&Over inc OP-MH,OP Hosp - Home Care External,Third Party Payments,Private Contractors,Miscellaneous Agency Services,Revenue,08/12/2010,462,1136.2,BELGRAVIA NURS. & CARE BUREAU
Adult Social Care,Older People 65&Over inc OP-MH,OP West - Home Care External,Third Party Payments,Private Contractors,Miscellaneous Agency Services,Revenue,08/12/2010,463,9439.79,BELGRAVIA NURS. & CARE BUREAU
Adult Social Care,Older People 65&Over inc OP-MH,OP East - Home Care External,Third Party Payments,Private Contractors,Miscellaneous Agency Services,Revenue,08/12/2010,464,12802.96,BELGRAVIA NURS. & CARE BUREAU
Adult Social Care,Older People 65&Over inc OP-MH,OP Mitcham-Residential CareExt,Third Party Payments,Private Contractors,Miscellaneous Agency Services,Revenue,08/12/2010,465,-2609.95,BUPA CARE HOMES
Adult Social Care,Older People 65&Over inc OP-MH,OP East - Nursing Care,Third Party Payments,Private Contractors,Miscellaneous Agency Services,Revenue,08/12/2010,466,5414.85,BUPA CARE HOMES
Adult Social Care,Older People 65&Over inc OP-MH,OP East - Nursing Care,Third Party Payments,Private Contractors,Miscellaneous Agency Services,Revenue,08/12/2010,467,2406.6,BUPA CARE HOMES
Adult Social Care,Older People 65&Over inc OP-MH,OP Mitcham-Residential CareExt,Third Party Payments,Private Contractors,Miscellaneous Agency Services,Revenue,08/12/2010,468,-3057.37,BUPA CARE HOMES
Adult Social Care,Older People 65&Over inc OP-MH,OP East - Nursing Care,Third Party Payments,Private Contractors,Miscellaneous Agency Services,Revenue,08/12/2010,469,2406.6,BUPA CARE HOMES
Adult Social Care,Older People 65&Over inc OP-MH,OP East - Residential Care Ext,Third Party Payments,Private Contractors,Miscellaneous Agency Services,Revenue,08/12/2010,470,3057.37,BUPA CARE HOMES
Adult Social Care,Older People 65&Over inc OP-MH,OP East - Nursing Care,Third Party Payments,Private Contractors,Miscellaneous Agency Services,Revenue,08/12/2010,471,2592.6,CLAREMONT CARE SVS LTD
Adult Social Care,Older People 65&Over inc OP-MH,OP Hosp - Nursing Care,Third Party Payments,Private Contractors,Miscellaneous Agency Services,Revenue,08/12/2010,472,2337.2,CLARENDON LS
Adult Social Care,Adlt u65 Learning Disabilities,LD Residential Care External,Third Party Payments,Private Contractors,Miscellaneous Agency Services,Revenue,08/12/2010,473,4688.88,CRAEGMOOR FACILITIES CO LTD
Adult Social Care,Adlt u65 Learning Disabilities,LD Residential Care External,Third Party Payments,Private Contractors,Miscellaneous Agency Services,Revenue,08/12/2010,474,3210.36,CRAEGMOOR FACILITIES CO LTD
Adult Social Care,Older People 65&Over inc OP-MH,OP East - Residential Care Ext,Third Party Payments,Private Contractors,Miscellaneous Agency Services,Revenue,08/12/2010,475,1812.24,GRANGE COTTAGE LIMITED
Adult Social Care,Older People 65&Over inc OP-MH,OP West - Residential Care Ext,Third Party Payments,Private Contractors,Miscellaneous Agency Services,Revenue,08/12/2010,476,3612.76,GRANGE COTTAGE LIMITED
Adult Social Care,Adult u65 Phys/Sensory Impair,PD EAST TEAM-Residential,Third Party Payments,Private Contractors,Miscellaneous Agency Services,Revenue,08/12/2010,477,4602.24,GRANGE COTTAGE LIMITED
Adult Social Care,Adlt u65 Learning Disabilities,LD Residential Care External,Third Party Payments,Private Contractors,Miscellaneous Agency Services,Revenue,08/12/2010,478,5678.2,SUSSEX AUTISTIC COMMUNITY TRUS
Adult Social Care,Adlt u65 Learning Disabilities,LD Residential Care External,Customer and client receipts,Charges,Bd&Acc-contrib coll by home X,Revenue,08/12/2010,479,-1449.64,WHITMORE VALE HOUSING ASS LTD
Adult Social Care,Adlt u65 Learning Disabilities,LD Residential Care External,Third Party Payments,Private Contractors,Miscellaneous Agency Services,Revenue,08/12/2010,480,7055.98,WHITMORE VALE HOUSING ASS LTD
Adult Social Care,Adult u65 Mental Health Needs,MH Other Serv - NRTPF,Third Party Payments,Private Contractors,Miscellaneous Agency Services,Revenue,08/12/2010,481,2899.26,ADMINLAND LTD
Adult Social Care,Adlt u65 Learning Disabilities,LD Residential Care External,Third Party Payments,Private Contractors,Miscellaneous Agency Services,Revenue,09/12/2010,482,3400,BURGH HEATH LODGE
Adult Social Care,Older People 65&Over inc OP-MH,OP East - Nursing Care,Third Party Payments,Private Contractors,Miscellaneous Agency Services,Revenue,09/12/2010,483,1244.29,NIGHTINGALE HOUSE
Adult Social Care,Older People 65&Over inc OP-MH,OP West - Nursing Care,Third Party Payments,Private Contractors,Miscellaneous Agency Services,Revenue,09/12/2010,484,2341.84,SUTTON COURT CARE CENTRE
Adult Social Care,Older People 65&Over inc OP-MH,OP East - Nursing Care,Third Party Payments,Private Contractors,Miscellaneous Agency Services,Revenue,09/12/2010,485,2341.84,SUTTON COURT CARE CENTRE
Adult Social Care,Older People 65&Over inc OP-MH,OP Hosp - Nursing Care,Third Party Payments,Private Contractors,Miscellaneous Agency Services,Revenue,09/12/2010,486,2341.84,SUTTON COURT CARE CENTRE
Adult Social Care,Older People 65&Over inc OP-MH,OP East - Nursing Care,Third Party Payments,Private Contractors,Miscellaneous Agency Services,Revenue,09/12/2010,487,2341.84,SUTTON COURT CARE CENTRE
Adult Social Care,Older People 65&Over inc OP-MH,OP Hosp - Nursing Care,Third Party Payments,Private Contractors,Miscellaneous Agency Services,Revenue,09/12/2010,488,2341.84,SUTTON COURT CARE CENTRE
Adult Social Care,Older People 65&Over inc OP-MH,OP Hosp - Nursing Care,Third Party Payments,Private Contractors,Miscellaneous Agency Services,Revenue,09/12/2010,489,2341.84,SUTTON COURT CARE CENTRE
Adult Social Care,Older People 65&Over inc OP-MH,OP Hosp - Nursing Care,Third Party Payments,Private Contractors,Miscellaneous Agency Services,Revenue,09/12/2010,490,2341.84,SUTTON COURT CARE CENTRE
Adult Social Care,Older People 65&Over inc OP-MH,OP Hosp - Nursing Care,Third Party Payments,Private Contractors,Miscellaneous Agency Services,Revenue,09/12/2010,491,2341.84,SUTTON COURT CARE CENTRE
Adult Social Care,Older People 65&Over inc OP-MH,OP West - Nursing Care,Third Party Payments,Private Contractors,Miscellaneous Agency Services,Revenue,09/12/2010,492,2341.84,SUTTON COURT CARE CENTRE
Adult Social Care,Older People 65&Over inc OP-MH,OP West - Residential Care Ext,Third Party Payments,Private Contractors,Miscellaneous Agency Services,Revenue,09/12/2010,493,2341.84,SUTTON COURT CARE CENTRE
Adult Social Care,Older People 65&Over inc OP-MH,OP Hosp - Nursing Care,Third Party Payments,Private Contractors,Miscellaneous Agency Services,Revenue,09/12/2010,494,2341.84,SUTTON COURT CARE CENTRE
Adult Social Care,Older People 65&Over inc OP-MH,OP West - Nursing Care,Third Party Payments,Private Contractors,Miscellaneous Agency Services,Revenue,09/12/2010,495,2341.84,SUTTON COURT CARE CENTRE
Adult Social Care,Older People 65&Over inc OP-MH,OP East - Nursing Care,Third Party Payments,Private Contractors,Miscellaneous Agency Services,Revenue,09/12/2010,496,2341.84,SUTTON COURT CARE CENTRE
Adult Social Care,Older People 65&Over inc OP-MH,OP Hosp - Nursing Care,Third Party Payments,Private Contractors,Miscellaneous Agency Services,Revenue,09/12/2010,497,2341.84,SUTTON COURT CARE CENTRE
Adult Social Care,Older People 65&Over inc OP-MH,OP Hosp - Nursing Care,Third Party Payments,Private Contractors,Miscellaneous Agency Services,Revenue,09/12/2010,498,2341.84,SUTTON COURT CARE CENTRE
Adult Social Care,Older People 65&Over inc OP-MH,OP East - Residential Care Ext,Third Party Payments,Private Contractors,Miscellaneous Agency Services,Revenue,09/12/2010,499,1806.12,THORNTON LODGE
Adult Social Care,Adult u65 Mental Health Needs,MH Res Care Ext- Mitcham West,Third Party Payments,Private Contractors,Miscellaneous Agency Services,Revenue,09/12/2010,500,7307.32,BIBBY FACTORS SLOUGH LTD
Adult Social Care,Adult u65 Mental Health Needs,MH Other Servs - Mitcham West,Third Party Payments,Private Contractors,Miscellaneous Agency Services,Revenue,09/12/2010,501,553.88,MATRIX PROPERTIES SERVICES LTD
Adult Social Care,Adult u65 Phys/Sensory Impair,PD WEST TEAM-Homecare,Third Party Payments,Private Contractors,Miscellaneous Agency Services,Revenue,09/12/2010,502,2996,ACCESS CARE LTD
Childrens & Education Services,Family Support Services,CL Residence Orders,Supplies & Services,Grants and Subscriptions,Residence Orders,Revenue,09/12/2010,503,1000,REDACTED
Childrens & Education Services,Other Ch's & Family Services,CL Leaving Care/Supp Lodgings,Third Party Payments,Private Contractors,Supported Lodgings,Revenue,09/12/2010,504,836.64,REDACTED
Childrens & Education Services,Children Looked After (24hrs+),CL Independent Fostering,Supplies & Services,Services,Task Based Fostering,Revenue,10/12/2010,505,10021.43,CARE UK CHILDRENS SERVICES
Childrens & Education Services,Children Looked After (24hrs+),CL Residential Care Homes CLA,Third Party Payments,Private Contractors,Miscellaneous Agency Services,Revenue,10/12/2010,506,9282.48,REDACTED
Adult Social Care,Asylum seekers,AS Child - Res Care (Grant),Third Party Payments,Private Contractors,Miscellaneous Agency Services,Revenue,10/12/2010,507,1748.56,YMCA LONDON SOUTH WEST
Childrens & Education Services,Other Ch's & Family Services,CL Leaving Care/Supp Lodgings,Third Party Payments,Private Contractors,Private Tenant/Landlord,Revenue,10/12/2010,508,500,MEDINA CREDIT COMPANY
Childrens & Education Services,Children Looked After (24hrs+),CL Residential Care Homes CLA,Third Party Payments,Private Contractors,Miscellaneous Agency Services,Revenue,10/12/2010,509,11533.58,REDACTED
Adult Social Care,Older People 65&Over inc OP-MH,OP Hosp - Residential Care Ext,Third Party Payments,Private Contractors,Miscellaneous Agency Services,Revenue,10/12/2010,510,1335.71,ABBEY HOUSE RESIDENTIAL HOMES
Adult Social Care,Adult u65 Mental Health Needs,MH ResidentialCare Ext - Wim,Third Party Payments,Private Contractors,Miscellaneous Agency Services,Revenue,13/12/2010,511,1524.76,ALDWICK RESIDENTIAL CARE HOME
Adult Social Care,Adlt u65 Learning Disabilities,LD Residential Care External,Third Party Payments,Private Contractors,Miscellaneous Agency Services,Revenue,10/12/2010,512,4992.52,ASHBROOK HOUSE
Adult Social Care,Older People 65&Over inc OP-MH,OP West - Residential Care Ext,Third Party Payments,Private Contractors,Miscellaneous Agency Services,Revenue,10/12/2010,513,1380,ASHMOUNT RESIDENTIAL & NURSING
Adult Social Care,Adlt u65 Learning Disabilities,LD Residential Care External,Third Party Payments,Private Contractors,Miscellaneous Agency Services,Revenue,10/12/2010,514,4939.16,ASHTEAD HOUSE LIMITED
Adult Social Care,Adult u65 Phys/Sensory Impair,PD WEST TEAM-Nursing,Customer and client receipts,Charges,Miscellaneous Charges X,Revenue,10/12/2010,515,-567.6,BRITISH HOME & HOSP.INCURABLE
Adult Social Care,Adult u65 Phys/Sensory Impair,PD WEST TEAM-Nursing,Third Party Payments,Private Contractors,Miscellaneous Agency Services,Revenue,10/12/2010,516,2935.68,BRITISH HOME & HOSP.INCURABLE
Adult Social Care,Adult u65 Phys/Sensory Impair,PD EAST TEAM-Nursing,Third Party Payments,Private Contractors,Miscellaneous Agency Services,Revenue,10/12/2010,517,3237.64,BRITISH HOME & HOSP.INCURABLE
Adult Social Care,Adult u65 Phys/Sensory Impair,PD WEST TEAM-Nursing,Customer and client receipts,Charges,Bd&Acc-contrib coll by home X,Revenue,10/12/2010,518,-876,BRITISH HOME & HOSP.INCURABLE
Adult Social Care,Adult u65 Phys/Sensory Impair,PD WEST TEAM-Nursing,Third Party Payments,Private Contractors,Miscellaneous Agency Services,Revenue,10/12/2010,519,2775.76,BRITISH HOME & HOSP.INCURABLE
Adult Social Care,Adult u65 Phys/Sensory Impair,PD WEST TEAM-Nursing,Customer and client receipts,Charges,Miscellaneous Charges X,Revenue,10/12/2010,520,-567.6,BRITISH HOME & HOSP.INCURABLE
Adult Social Care,Adult u65 Phys/Sensory Impair,PD WEST TEAM-Nursing,Third Party Payments,Private Contractors,Miscellaneous Agency Services,Revenue,10/12/2010,521,2935.68,BRITISH HOME & HOSP.INCURABLE
Adult Social Care,Adult u65 Phys/Sensory Impair,PD EAST TEAM-Residential,Third Party Payments,Private Contractors,Miscellaneous Agency Services,Revenue,10/12/2010,522,2628.9,BRITISH HOME & HOSP.INCURABLE
Adult Social Care,Adult u65 Phys/Sensory Impair,PD EAST TEAM-Nursing,Third Party Payments,Private Contractors,Miscellaneous Agency Services,Revenue,10/12/2010,523,3565.2,BUPA CARE HOMES (ANS) LTD
Adult Social Care,Adlt u65 Learning Disabilities,LD Residential Care External,Third Party Payments,Private Contractors,Miscellaneous Agency Services,Revenue,13/12/2010,524,2471.6,CANTERBURY OAST TRUST LTD
Adult Social Care,Adlt u65 Learning Disabilities,LD Residential Care External,Third Party Payments,Private Contractors,Miscellaneous Agency Services,Revenue,13/12/2010,525,2928.72,CARE
Adult Social Care,Older People 65&Over inc OP-MH,OP East - Residential Care Ext,Third Party Payments,Private Contractors,Miscellaneous Agency Services,Revenue,10/12/2010,526,1717.8,CHERRY TREE HOUSE
Adult Social Care,Older People 65&Over inc OP-MH,OP Hosp - Residential Care Ext,Third Party Payments,Private Contractors,Miscellaneous Agency Services,Revenue,10/12/2010,527,1812.4,CHERRY TREE HOUSE
Adult Social Care,Older People 65&Over inc OP-MH,OP West - Residential Care Ext,Third Party Payments,Private Contractors,Miscellaneous Agency Services,Revenue,10/12/2010,528,1940,CHERRY TREE HOUSE
Adult Social Care,Adlt u65 Learning Disabilities,LD Residential Care External,Third Party Payments,Private Contractors,Miscellaneous Agency Services,Revenue,10/12/2010,529,4760,CARE MANAGEMENT GROUP
Adult Social Care,Adlt u65 Learning Disabilities,LD Residential Care External,Third Party Payments,Private Contractors,Miscellaneous Agency Services,Revenue,10/12/2010,530,5380,CARE MANAGEMENT GROUP
Adult Social Care,Adult u65 Mental Health Needs,MH ResidentialCare Ext - Wim,Third Party Payments,Private Contractors,Miscellaneous Agency Services,Revenue,10/12/2010,531,3632,CARE MANAGEMENT GROUP
Adult Social Care,Adlt u65 Learning Disabilities,LD Residential Care External,Third Party Payments,Private Contractors,Miscellaneous Agency Services,Revenue,10/12/2010,532,5981.2,CARE MANAGEMENT GROUP
Adult Social Care,Adult u65 Phys/Sensory Impair,PD WEST TEAM-Hostels,Third Party Payments,Private Contractors,Miscellaneous Agency Services,Revenue,10/12/2010,533,5520,CARE MANAGEMENT GROUP
Adult Social Care,Adult u65 Phys/Sensory Impair,PD EAST TEAM-Hostel,Third Party Payments,Private Contractors,Miscellaneous Agency Services,Revenue,10/12/2010,534,4168,CARE MANAGEMENT GROUP
Adult Social Care,Adlt u65 Learning Disabilities,LD Residential Care External,Third Party Payments,Private Contractors,Miscellaneous Agency Services,Revenue,10/12/2010,535,3336,CARE MANAGEMENT GROUP
Adult Social Care,Adlt u65 Learning Disabilities,LD Residential Care External,Third Party Payments,Private Contractors,Miscellaneous Agency Services,Revenue,10/12/2010,536,2352.24,COTTISBRAINE HOUSE
Adult Social Care,Adlt u65 Learning Disabilities,LD Comm-Residential-Surrey Oak,Third Party Payments,Private Contractors,Miscellaneous Agency Services,Revenue,10/12/2010,537,4610.56,COTTISBRAINE HOUSE
Adult Social Care,Adlt u65 Learning Disabilities,LD Supported Housing,Third Party Payments,Private Contractors,Miscellaneous Agency Services,Revenue,10/12/2010,538,3160,CRUSOE CARE RESIDENTIAL HOME
Adult Social Care,Adult u65 Mental Health Needs,MH ResidentialCare Ext - Wim,Third Party Payments,Private Contractors,Miscellaneous Agency Services,Revenue,10/12/2010,539,4440.65,COMMUNITY HOUSING & THERAPY
Adult Social Care,Adult u65 Mental Health Needs,MH Res Care Ext- Mitcham West,Third Party Payments,Private Contractors,Miscellaneous Agency Services,Revenue,10/12/2010,540,4875,COMMUNITY HOUSING & THERAPY
Adult Social Care,Older People 65&Over inc OP-MH,OP West - Residential Care Ext,Third Party Payments,Private Contractors,Miscellaneous Agency Services,Revenue,10/12/2010,541,1825.16,DEEPDENE CARE LIMITED
Adult Social Care,Adult u65 Mental Health Needs,MH Res Care Ext- Mitcham West,Third Party Payments,Private Contractors,Miscellaneous Agency Services,Revenue,10/12/2010,542,2307.14,DEEPDENE CARE LIMITED
Adult Social Care,Adult u65 Mental Health Needs,MH ResidentialCare Ext - Wim,Third Party Payments,Private Contractors,Miscellaneous Agency Services,Revenue,10/12/2010,543,1825.16,DEEPDENE CARE LIMITED
Adult Social Care,Older People 65&Over inc OP-MH,OP West - Residential Care Ext,Third Party Payments,Private Contractors,Miscellaneous Agency Services,Revenue,13/12/2010,544,1717.4,THE ELMS REST HOME LTD
Adult Social Care,Older People 65&Over inc OP-MH,OP Hosp - Residential Care Ext,Third Party Payments,Private Contractors,Miscellaneous Agency Services,Revenue,13/12/2010,545,1880,THE ELMS REST HOME LTD
Adult Social Care,Older People 65&Over inc OP-MH,OP East - Residential Care Ext,Third Party Payments,Private Contractors,Miscellaneous Agency Services,Revenue,13/12/2010,546,1880,THE ELMS REST HOME LTD
Adult Social Care,Adult u65 Mental Health Needs,MH ResidentialCare Ext-Morden,Customer and client receipts,Charges,Bd&Acc-contrib coll by home X,Revenue,10/12/2010,547,-661.8,REDACTED
Adult Social Care,Adult u65 Mental Health Needs,MH ResidentialCare Ext-Morden,Third Party Payments,Private Contractors,Miscellaneous Agency Services,Revenue,10/12/2010,548,2138.34,REDACTED
Adult Social Care,Older People 65&Over inc OP-MH,OP East - Nursing Care,Third Party Payments,Private Contractors,Miscellaneous Agency Services,Revenue,13/12/2010,549,2210.16,GREAT WHEATLEY NURSING HOME
Adult Social Care,Adlt u65 Learning Disabilities,LD Residential Care External,Third Party Payments,Private Contractors,Miscellaneous Agency Services,Revenue,10/12/2010,550,4780,GREENFIELD CARE HOMES LTD
Adult Social Care,Adlt u65 Learning Disabilities,LD Residential Care External,Third Party Payments,Private Contractors,Miscellaneous Agency Services,Revenue,10/12/2010,551,4868,GREENFIELD CARE HOMES LTD
Adult Social Care,Adlt u65 Learning Disabilities,LD Residential Care External,Third Party Payments,Private Contractors,Miscellaneous Agency Services,Revenue,10/12/2010,552,4744,GREENFIELD CARE HOMES LTD
Adult Social Care,Adlt u65 Learning Disabilities,LD Residential Care External,Third Party Payments,Private Contractors,Miscellaneous Agency Services,Revenue,10/12/2010,553,4780,GREENFIELD CARE HOMES LTD
Adult Social Care,Adlt u65 Learning Disabilities,LD Residential Care External,Third Party Payments,Private Contractors,Miscellaneous Agency Services,Revenue,10/12/2010,554,3521.24,HAYDON PARK LODGE
Adult Social Care,Adlt u65 Learning Disabilities,LD Residential Care External,Third Party Payments,Private Contractors,Miscellaneous Agency Services,Revenue,10/12/2010,555,2719.32,HAYDON PARK LODGE
Adult Social Care,Adlt u65 Learning Disabilities,LD Residential Care External,Third Party Payments,Private Contractors,Miscellaneous Agency Services,Revenue,10/12/2010,556,1975.24,HAYDON PARK LODGE
Adult Social Care,Adlt u65 Learning Disabilities,LD Residential Care External,Third Party Payments,Private Contractors,Miscellaneous Agency Services,Revenue,10/12/2010,557,2458.36,HAYDON PARK LODGE
Adult Social Care,Adlt u65 Learning Disabilities,LD Residential Care External,Third Party Payments,Private Contractors,Miscellaneous Agency Services,Revenue,10/12/2010,558,2816,HAYDON PARK LODGE
Adult Social Care,Adlt u65 Learning Disabilities,LD Residential Care External,Third Party Payments,Private Contractors,Miscellaneous Agency Services,Revenue,10/12/2010,559,3532.48,HAYDON PARK LODGE
Adult Social Care,Adlt u65 Learning Disabilities,LD Residential Care External,Third Party Payments,Private Contractors,Miscellaneous Agency Services,Revenue,10/12/2010,560,3451,HAYDON PARK LODGE
Adult Social Care,Adult u65 Mental Health Needs,MH Res Care Ext- Mitcham West,Third Party Payments,Private Contractors,Miscellaneous Agency Services,Revenue,10/12/2010,561,1399.96,HILLDALE AND NORTHVIEW
Adult Social Care,Adlt u65 Learning Disabilities,LD Supported Housing,Third Party Payments,Private Contractors,Miscellaneous Agency Services,Revenue,13/12/2010,562,3234.96,H F TRUST LTD
Adult Social Care,Adult u65 Phys/Sensory Impair,PD WEST TEAM-Residential Care,Third Party Payments,Private Contractors,Miscellaneous Agency Services,Revenue,10/12/2010,563,4149.44,HOTHFIELD MANOR FSHC
Adult Social Care,Adult u65 Mental Health Needs,MH Res Care Ext- Mitcham West,Third Party Payments,Private Contractors,Miscellaneous Agency Services,Revenue,10/12/2010,564,2000,LAGLIN LODGE
Adult Social Care,Older People 65&Over inc OP-MH,OP West - Residential Care Ext,Third Party Payments,Private Contractors,Miscellaneous Agency Services,Revenue,10/12/2010,565,1812.4,LAVENDER LODGE
Adult Social Care,Adlt u65 Learning Disabilities,LD Residential Care External,Third Party Payments,Private Contractors,Miscellaneous Agency Services,Revenue,10/12/2010,566,5230.77,MACINTYRE
Adult Social Care,Adlt u65 Learning Disabilities,LD Residential Care External,Third Party Payments,Private Contractors,Miscellaneous Agency Services,Revenue,10/12/2010,567,3045.24,MACINTYRE
Adult Social Care,Adlt u65 Learning Disabilities,LD Residential Care External,Third Party Payments,Private Contractors,Miscellaneous Agency Services,Revenue,10/12/2010,568,4811.63,MACINTYRE
Adult Social Care,Adult u65 Mental Health Needs,MH ResidentialCare Ext - Wim,Third Party Payments,Private Contractors,Miscellaneous Agency Services,Revenue,10/12/2010,569,3171.08,MENTAL HEALTH CARE (UK) LTD
Adult Social Care,Adlt u65 Learning Disabilities,LD Residential Care External,Third Party Payments,Private Contractors,Miscellaneous Agency Services,Revenue,10/12/2010,570,5535.52,THE REGARD PARTNERSHIP LTD
Adult Social Care,Adlt u65 Learning Disabilities,LD Residential Care External,Third Party Payments,Private Contractors,Miscellaneous Agency Services,Revenue,10/12/2010,571,5536,THE REGARD PARTNERSHIP LTD
Adult Social Care,Adlt u65 Learning Disabilities,LD Residential Care External,Third Party Payments,Private Contractors,Miscellaneous Agency Services,Revenue,10/12/2010,572,4920,THE REGARD PARTNERSHIP LTD
Adult Social Care,Adlt u65 Learning Disabilities,LD Residential Care External,Third Party Payments,Private Contractors,Miscellaneous Agency Services,Revenue,10/12/2010,573,5200,THE REGARD PARTNERSHIP LTD
Adult Social Care,Adlt u65 Learning Disabilities,LD Residential Care External,Third Party Payments,Private Contractors,Miscellaneous Agency Services,Revenue,10/12/2010,574,7840,SOLAR CARE GROUP LTD - ROBINIA
Adult Social Care,Adult u65 Mental Health Needs,MH ResidentialCare Ext - Wim,Third Party Payments,Private Contractors,Miscellaneous Agency Services,Revenue,10/12/2010,575,6500,SIGNHEALTH
Adult Social Care,Older People 65&Over inc OP-MH,OP Hosp - Nursing Care,Third Party Payments,Private Contractors,Miscellaneous Agency Services,Revenue,15/12/2010,576,-1438.4,SOUTHERN CROSS HEALTHCARE LTD
Adult Social Care,Adlt u65 Learning Disabilities,LD Residential Care External,Third Party Payments,Private Contractors,Miscellaneous Agency Services,Revenue,10/12/2010,577,14600,ST LUKE'S HOSPITAL- OLD LEIGH
Adult Social Care,Adlt u65 Learning Disabilities,LD Residential Care External,Third Party Payments,Private Contractors,Miscellaneous Agency Services,Revenue,10/12/2010,578,23905.28,ST LUKE'S HOSPITAL- OLD LEIGH
Adult Social Care,Older People 65&Over inc OP-MH,OP East - Residential Care Ext,Third Party Payments,Private Contractors,Miscellaneous Agency Services,Revenue,10/12/2010,579,6780,SUNRISE SENIOR LIVING RES.HOME
Adult Social Care,Older People 65&Over inc OP-MH,OP East - Residential Care Ext,Third Party Payments,Private Contractors,Miscellaneous Agency Services,Revenue,10/12/2010,580,3164,SUNRISE SENIOR LIVING RES.HOME
Adult Social Care,Adult u65 Mental Health Needs,MH Res Care Ext- Mitcham West,Third Party Payments,Private Contractors,Miscellaneous Agency Services,Revenue,13/12/2010,581,4500,SUPREME HOMES
Adult Social Care,Older People 65&Over inc OP-MH,OP West - Nursing Care,Third Party Payments,Private Contractors,Miscellaneous Agency Services,Revenue,10/12/2010,582,3932.57,SURREY COUNTY COUNCIL
Adult Social Care,Older People 65&Over inc OP-MH,OP R/Park-Residential Care Ext,Third Party Payments,Private Contractors,Miscellaneous Agency Services,Revenue,13/12/2010,583,-8850,THE DEVONSHIRE RESID CARE HOME
Adult Social Care,Older People 65&Over inc OP-MH,OP West - Residential Care Ext,Third Party Payments,Private Contractors,Miscellaneous Agency Services,Revenue,13/12/2010,584,10950,THE DEVONSHIRE RESID CARE HOME
Adult Social Care,Adult u65 Phys/Sensory Impair,PD EAST TEAM-Nursing,Customer and client receipts,Charges,Bd&Acc-contrib coll by home X,Revenue,13/12/2010,585,-876,VALEWOOD HOUSE CO.LTD
Adult Social Care,Adult u65 Phys/Sensory Impair,PD EAST TEAM-Nursing,Third Party Payments,Private Contractors,Miscellaneous Agency Services,Revenue,13/12/2010,586,2680,VALEWOOD HOUSE CO.LTD
Adult Social Care,Older People 65&Over inc OP-MH,OP West - Nursing Care,Third Party Payments,Private Contractors,Miscellaneous Agency Services,Revenue,13/12/2010,587,2173.96,THE WHITE HOUSE NURSING HOME
Adult Social Care,Older People 65&Over inc OP-MH,OP West - Nursing Care,Third Party Payments,Private Contractors,Miscellaneous Agency Services,Revenue,13/12/2010,588,2233,THE WHITE HOUSE NURSING HOME
Adult Social Care,Older People 65&Over inc OP-MH,OP East - Residential Care Ext,Third Party Payments,Private Contractors,Miscellaneous Agency Services,Revenue,13/12/2010,589,1551.84,WILLETT LODGE
Adult Social Care,Adlt u65 Learning Disabilities,LD Residential Care External,Third Party Payments,Private Contractors,Miscellaneous Agency Services,Revenue,10/12/2010,590,2074.68,EL-SHADDAI
Adult Social Care,Adlt u65 Learning Disabilities,LD Residential Care External,Third Party Payments,Private Contractors,Miscellaneous Agency Services,Revenue,10/12/2010,591,1438.44,EL-SHADDAI
Adult Social Care,Older People 65&Over inc OP-MH,OP East - Residential Care Ext,Third Party Payments,Private Contractors,Miscellaneous Agency Services,Revenue,10/12/2010,592,1386.08,EL-SHADDAI
Adult Social Care,Adlt u65 Learning Disabilities,LD Residential Care External,Third Party Payments,Private Contractors,Miscellaneous Agency Services,Revenue,10/12/2010,593,1438.44,EL-SHADDAI
Adult Social Care,Adult u65 Phys/Sensory Impair,PD EAST TEAM-Direct Payment,Third Party Payments,Private Contractors,Direct Payments,Revenue,10/12/2010,594,567.44,REDACTED
Childrens & Education Services,Other Ch's & Family Services,CL Adoption Allowances,Transfer Payments,Social Services clients,Adoption Allowances,Revenue,10/12/2010,595,912.4,REDACTED
Adult Social Care,Adult u65 Mental Health Needs,MH Adult PlacementCont-MitWest,Third Party Payments,Private Contractors,Accommodation Based Support,Revenue,10/12/2010,596,1500,REDACTED
Adult Social Care,Adlt u65 Learning Disabilities,LD Day Care Agency,Third Party Payments,Private Contractors,Miscellaneous Agency Services,Revenue,10/12/2010,597,2953.44,ACT TOO
Adult Social Care,Adlt u65 Learning Disabilities,LD Home Care External,Third Party Payments,Private Contractors,Miscellaneous Agency Services,Revenue,10/12/2010,598,655.3,BEECH HOME CARE SERVICES
Adult Social Care,Adlt u65 Learning Disabilities,LD Home Care External,Third Party Payments,Private Contractors,Miscellaneous Agency Services,Revenue,10/12/2010,599,655.3,BEECH HOME CARE SERVICES
Adult Social Care,Adlt u65 Learning Disabilities,LD Home Care External,Third Party Payments,Private Contractors,Miscellaneous Agency Services,Revenue,10/12/2010,600,655.3,BEECH HOME CARE SERVICES
Adult Social Care,Adult u65 Phys/Sensory Impair,PD EAST TEAM-Homecare,Third Party Payments,Private Contractors,Miscellaneous Agency Services,Revenue,10/12/2010,601,2749.6,BUPA CARE HOMES (ANS) LTD
Adult Social Care,Older People 65&Over inc OP-MH,OP East - Daycare,Third Party Payments,Private Contractors,Miscellaneous Agency Services,Revenue,10/12/2010,602,779.6,ENTERPRISE CARE SUPPORT LTD
Adult Social Care,Older People 65&Over inc OP-MH,OP East - Home Care External,Third Party Payments,Private Contractors,Miscellaneous Agency Services,Revenue,10/12/2010,603,810,ENTERPRISE CARE SUPPORT LTD
Adult Social Care,Older People 65&Over inc OP-MH,OP East - Home Care External,Third Party Payments,Private Contractors,Miscellaneous Agency Services,Revenue,10/12/2010,604,945,ENTERPRISE CARE SUPPORT LTD
Adult Social Care,Adult u65 Phys/Sensory Impair,PD EAST TEAM-Homecare,Third Party Payments,Private Contractors,Miscellaneous Agency Services,Revenue,10/12/2010,605,3714.92,HOMECARE SERVICES LTD
Adult Social Care,Adult u65 Mental Health Needs,MH Day Care - Mitcham West,Third Party Payments,Private Contractors,Miscellaneous Agency Services,Revenue,10/12/2010,606,1305.48,NAS SERVICES LIMITED
Adult Social Care,Adult u65 Phys/Sensory Impair,PD EAST TEAM-Homecare,Third Party Payments,Private Contractors,Miscellaneous Agency Services,Revenue,10/12/2010,607,672,REDACTED
Adult Social Care,Adult u65 Phys/Sensory Impair,PD EAST TEAM-Homecare,Third Party Payments,Private Contractors,Miscellaneous Agency Services,Revenue,10/12/2010,608,867.6,RNIB REDHILL COLLEGE
Adult Social Care,Adlt u65 Learning Disabilities,LD Day Care Agency,Third Party Payments,Private Contractors,Miscellaneous Agency Services,Revenue,13/12/2010,609,986.2,THE SHEILING TRUST
Adult Social Care,Adlt u65 Learning Disabilities,LD Day Care Agency,Third Party Payments,Private Contractors,Miscellaneous Agency Services,Revenue,13/12/2010,610,986.2,THE SHEILING TRUST
Adult Social Care,Older People 65&Over inc OP-MH,OP East - Daycare,Third Party Payments,Private Contractors,Miscellaneous Agency Services,Revenue,10/12/2010,611,779.4,SOLACE COMMUNITY CARE LTD
Childrens & Education Services,Children Looked After (24hrs+),CL Residential Care Homes CLA,Third Party Payments,Private Contractors,Miscellaneous Agency Services,Revenue,13/12/2010,612,9382.48,REDACTED
Adult Social Care,Asylum seekers,AS Child Res Care  (No Grant),Third Party Payments,Private Contractors,Miscellaneous Agency Services,Revenue,13/12/2010,613,680,RBS INVOICE FINANCE LIMITED
Adult Social Care,Asylum seekers,AS Child Res Care  (No Grant),Third Party Payments,Private Contractors,Miscellaneous Agency Services,Revenue,13/12/2010,614,680,RBS INVOICE FINANCE LIMITED
Adult Social Care,Adult u65 Phys/Sensory Impair,PD WEST TEAM-Homecare,Third Party Payments,Private Contractors,Miscellaneous Agency Services,Revenue,13/12/2010,615,1318.48,ABLE COMMUNITY CARE
Adult Social Care,Adult u65 Phys/Sensory Impair,PD WEST TEAM-Homecare,Third Party Payments,Private Contractors,Miscellaneous Agency Services,Revenue,13/12/2010,616,2888,ABLE COMMUNITY CARE
Adult Social Care,Adlt u65 Learning Disabilities,LD Home Care External,Third Party Payments,Private Contractors,Miscellaneous Agency Services,Revenue,13/12/2010,617,2752,ABLE COMMUNITY CARE
Adult Social Care,Adult u65 Phys/Sensory Impair,PD WEST TEAM-Homecare,Third Party Payments,Private Contractors,Miscellaneous Agency Services,Revenue,13/12/2010,618,1895.48,ABLE COMMUNITY CARE
Adult Social Care,Adult u65 Phys/Sensory Impair,PD WEST TEAM-Homecare,Third Party Payments,Private Contractors,Miscellaneous Agency Services,Revenue,13/12/2010,619,2884,ABLE COMMUNITY CARE
Adult Social Care,Adlt u65 Learning Disabilities,LD Home Care External,Third Party Payments,Private Contractors,Miscellaneous Agency Services,Revenue,13/12/2010,620,2800,ABLE COMMUNITY CARE
Adult Social Care,Adlt u65 Learning Disabilities,LD Home Care External,Third Party Payments,Private Contractors,Miscellaneous Agency Services,Revenue,13/12/2010,621,655.3,BEECH HOME CARE SERVICES
Adult Social Care,Older People 65&Over inc OP-MH,OP West - Home Care External,Third Party Payments,Private Contractors,Miscellaneous Agency Services,Revenue,13/12/2010,622,547.92,COMPASSIONATE CARING AGENCY UK
Adult Social Care,Older People 65&Over inc OP-MH,OP East - Home Care External,Third Party Payments,Private Contractors,Miscellaneous Agency Services,Revenue,13/12/2010,623,2170.88,COMPASSIONATE CARING AGENCY UK
Adult Social Care,Adult u65 Phys/Sensory Impair,PD EAST TEAM-Homecare,Third Party Payments,Private Contractors,Miscellaneous Agency Services,Revenue,13/12/2010,624,1828.72,COMPASSIONATE CARING AGENCY UK
Adult Social Care,Older People 65&Over inc OP-MH,OP West - Home Care External,Third Party Payments,Private Contractors,Miscellaneous Agency Services,Revenue,13/12/2010,625,660.52,COMPASSIONATE CARING AGENCY UK
Adult Social Care,Older People 65&Over inc OP-MH,OP West - Home Care External,Third Party Payments,Private Contractors,Miscellaneous Agency Services,Revenue,13/12/2010,626,2171.68,COMPASSIONATE CARING AGENCY UK
Adult Social Care,Older People 65&Over inc OP-MH,OP East - Home Care External,Third Party Payments,Private Contractors,Miscellaneous Agency Services,Revenue,13/12/2010,627,1972.88,COMPASSIONATE CARING AGENCY UK
Adult Social Care,Older People 65&Over inc OP-MH,OP East - Home Care External,Third Party Payments,Private Contractors,Miscellaneous Agency Services,Revenue,13/12/2010,628,2580.28,COMPASSIONATE CARING AGENCY UK
Adult Social Care,Older People 65&Over inc OP-MH,OP East - Carer Services,Third Party Payments,Private Contractors,Miscellaneous Agency Services,Revenue,13/12/2010,629,614.48,HOLISTIC COMMUNITY CARE LTD
Adult Social Care,Adult u65 Phys/Sensory Impair,PS Home Care External - NRTPF,Third Party Payments,Private Contractors,Miscellaneous Agency Services,Revenue,13/12/2010,630,1164.17,HOLISTIC COMMUNITY CARE LTD
Adult Social Care,Adult u65 Phys/Sensory Impair,PD WEST TEAM-Homecare,Third Party Payments,Private Contractors,Miscellaneous Agency Services,Revenue,13/12/2010,631,2302.38,HOLISTIC COMMUNITY CARE LTD
Adult Social Care,Older People 65&Over inc OP-MH,OP West - Carer Services,Third Party Payments,Private Contractors,Miscellaneous Agency Services,Revenue,13/12/2010,632,2728.6,HOLISTIC COMMUNITY CARE LTD
Adult Social Care,Older People 65&Over inc OP-MH,OP East - Home Care External,Third Party Payments,Private Contractors,Miscellaneous Agency Services,Revenue,13/12/2010,633,8593.17,HOLISTIC COMMUNITY CARE LTD
Adult Social Care,Older People 65&Over inc OP-MH,OP West - Home Care External,Third Party Payments,Private Contractors,Miscellaneous Agency Services,Revenue,13/12/2010,634,10334.09,HOLISTIC COMMUNITY CARE LTD
Adult Social Care,Adlt u65 Learning Disabilities,LD Residential Care External,Third Party Payments,Private Contractors,Miscellaneous Agency Services,Revenue,13/12/2010,635,4113.72,ESTHER CARE HOMES LIMITED
Adult Social Care,Older People 65&Over inc OP-MH,OP East - Nursing Care,Third Party Payments,Private Contractors,Miscellaneous Agency Services,Revenue,13/12/2010,636,2176.64,GGIBSON LODGE NURSING HOME
Adult Social Care,Adlt u65 Learning Disabilities,LD Residential Care External,Third Party Payments,Private Contractors,Miscellaneous Agency Services,Revenue,13/12/2010,637,4624,GREENFIELD CARE HOMES LTD
Adult Social Care,Adlt u65 Learning Disabilities,LD Residential Care External,Third Party Payments,Private Contractors,Miscellaneous Agency Services,Revenue,13/12/2010,638,4780,GREENFIELD CARE HOMES LTD
Adult Social Care,Adlt u65 Learning Disabilities,LD Residential Care External,Third Party Payments,Private Contractors,Miscellaneous Agency Services,Revenue,13/12/2010,639,4732,GREENFIELD CARE HOMES LTD
Adult Social Care,Adlt u65 Learning Disabilities,LD Comm -Residential-Orch Hill,Third Party Payments,Private Contractors,Miscellaneous Agency Services,Revenue,13/12/2010,640,851.7,REDACTED
Adult Social Care,Adlt u65 Learning Disabilities,LD Comm -Residential-Orch Hill,Third Party Payments,Private Contractors,Miscellaneous Agency Services,Revenue,13/12/2010,641,5277.72,REDACTED
Adult Social Care,Older People 65&Over inc OP-MH,OP West - Residential Care Ext,Third Party Payments,Private Contractors,Miscellaneous Agency Services,Revenue,13/12/2010,642,1784.2,SOUTHPARK RESIDENTIAL HOME
Adult Social Care,Older People 65&Over inc OP-MH,OP East - Residential Care Ext,Third Party Payments,Private Contractors,Miscellaneous Agency Services,Revenue,13/12/2010,643,1703.44,SOUTHPARK RESIDENTIAL HOME
Adult Social Care,Older People 65&Over inc OP-MH,OP Hosp - Residential Care Ext,Third Party Payments,Private Contractors,Miscellaneous Agency Services,Revenue,13/12/2010,644,1812.4,SOUTHPARK RESIDENTIAL HOME
Adult Social Care,Older People 65&Over inc OP-MH,OP East - Nursing Care,Third Party Payments,Private Contractors,Miscellaneous Agency Services,Revenue,13/12/2010,645,2341.84,ST JOHNS NURSING HOME
Adult Social Care,Adlt u65 Learning Disabilities,LD Direct Payment Scheme,Third Party Payments,Private Contractors,Direct Payments,Revenue,13/12/2010,646,661.09,REDACTED
Adult Social Care,Adult u65 Mental Health Needs,MH Res Care Ext- Mitcham West,Third Party Payments,Private Contractors,Miscellaneous Agency Services,Revenue,13/12/2010,647,733.35,BIBBY FACTORS SLOUGH LTD
Adult Social Care,Adult u65 Mental Health Needs,MH Res Care Ext- Mitcham West,Third Party Payments,Private Contractors,Miscellaneous Agency Services,Revenue,13/12/2010,648,1142.88,BIBBY FACTORS SLOUGH LTD
Childrens & Education Services,Family Support Services,CS DayCare Facilities Children,Third Party Payments,Private Contractors,Daily Childminding,Revenue,14/12/2010,649,540,REDACTED
Adult Social Care,Older People 65&Over inc OP-MH,OP West - Home Care External,Third Party Payments,Private Contractors,Miscellaneous Agency Services,Revenue,14/12/2010,650,1033.66,COMPASSIONATE CARING AGENCY UK
Adult Social Care,Older People 65&Over inc OP-MH,OP West - Home Care External,Third Party Payments,Private Contractors,Miscellaneous Agency Services,Revenue,14/12/2010,651,609.48,COMPASSIONATE CARING AGENCY UK
Adult Social Care,Adult u65 Phys/Sensory Impair,PD EAST TEAM-Homecare,Third Party Payments,Private Contractors,Miscellaneous Agency Services,Revenue,14/12/2010,652,523.04,ODYSSEY CARE SOLUTIONS
Adult Social Care,Adlt u65 Learning Disabilities,LD Home Care External,Third Party Payments,Private Contractors,Miscellaneous Agency Services,Revenue,14/12/2010,653,3446.08,ODYSSEY CARE SOLUTIONS
Adult Social Care,Adult u65 Phys/Sensory Impair,PD EAST TEAM-Homecare,Third Party Payments,Private Contractors,Miscellaneous Agency Services,Revenue,14/12/2010,654,777.6,ODYSSEY CARE SOLUTIONS
Adult Social Care,Adlt u65 Learning Disabilities,LD Residential Care External,Third Party Payments,Private Contractors,Miscellaneous Agency Services,Revenue,14/12/2010,655,5230.77,MACINTYRE
Adult Social Care,Adlt u65 Learning Disabilities,LD Residential Care External,Third Party Payments,Private Contractors,Miscellaneous Agency Services,Revenue,14/12/2010,656,3045.24,MACINTYRE
Adult Social Care,Adlt u65 Learning Disabilities,LD Residential Care External,Third Party Payments,Private Contractors,Miscellaneous Agency Services,Revenue,14/12/2010,657,4811.63,MACINTYRE
Adult Social Care,Older People 65&Over inc OP-MH,OP Hosp - Residential Care Ext,Third Party Payments,Private Contractors,Miscellaneous Agency Services,Revenue,15/12/2010,658,4013.17,ST MARY'S LODGE
Childrens & Education Services,Children Looked After (24hrs+),CL Fostering Services,Supplies & Services,Services,Task Based Fostering,Revenue,14/12/2010,659,771.95,REDACTED
Childrens & Education Services,Children Looked After (24hrs+),CL Fostering Services,Supplies & Services,Services,Task Based Fostering,Revenue,14/12/2010,660,751.33,REDACTED
Childrens & Education Services,Children Looked After (24hrs+),CL Fostering Services,Supplies & Services,Services,Task Based Fostering,Revenue,14/12/2010,661,1150.04,REDACTED
Childrens & Education Services,Children Looked After (24hrs+),CL Fostering Services,Supplies & Services,Services,Task Based Fostering,Revenue,14/12/2010,662,1133.06,REDACTED
Childrens & Education Services,Children Looked After (24hrs+),CL Fostering Services,Supplies & Services,Services,Task Based Fostering,Revenue,14/12/2010,663,759.82,REDACTED
Childrens & Education Services,Children Looked After (24hrs+),CL Fostering Services,Supplies & Services,Services,Task Based Fostering,Revenue,14/12/2010,664,1153.68,REDACTED
Childrens & Education Services,Children Looked After (24hrs+),CL Fostering Services,Supplies & Services,Services,Task Based Fostering,Revenue,14/12/2010,665,1170.66,REDACTED
Childrens & Education Services,Children Looked After (24hrs+),CL Fostering Services,Supplies & Services,Services,Task Based Fostering,Revenue,14/12/2010,666,1145.19,REDACTED
Childrens & Education Services,Children Looked After (24hrs+),CL Fostering Services,Supplies & Services,Services,Task Based Fostering,Revenue,14/12/2010,667,780.44,REDACTED
Childrens & Education Services,Children Looked After (24hrs+),CL Fostering Services,Supplies & Services,Services,Task Based Fostering,Revenue,14/12/2010,668,1150.04,REDACTED
Childrens & Education Services,Children Looked After (24hrs+),CL Fostering Services,Supplies & Services,Services,Task Based Fostering,Revenue,14/12/2010,669,824.07,REDACTED
Childrens & Education Services,Children Looked After (24hrs+),CL Fostering Services,Supplies & Services,Services,Task Based Fostering,Revenue,14/12/2010,670,780.44,REDACTED
Childrens & Education Services,Children Looked After (24hrs+),CL Fostering Services,Supplies & Services,Services,Task Based Fostering,Revenue,14/12/2010,671,739.2,REDACTED
Childrens & Education Services,Children Looked After (24hrs+),CL Fostering Services,Supplies & Services,Services,Task Based Fostering,Revenue,14/12/2010,672,739.2,REDACTED
Childrens & Education Services,Children Looked After (24hrs+),CL Fostering Services,Supplies & Services,Services,Task Based Fostering,Revenue,14/12/2010,673,751.33,REDACTED
Childrens & Education Services,Children Looked After (24hrs+),CL Fostering Services,Supplies & Services,Services,Task Based Fostering,Revenue,14/12/2010,674,1108.8,REDACTED
Adult Social Care,Older People 65&Over inc OP-MH,OP East - Daycare,Third Party Payments,Private Contractors,Miscellaneous Agency Services,Revenue,15/12/2010,675,3764.4,WOODLANDS
Adult Social Care,Adult u65 Mental Health Needs,HS Adult Placements,Third Party Payments,Private Contractors,Accommodation Based Support,Revenue,15/12/2010,676,2055.04,TRISWIT LIMITED
Adult Social Care,Adult u65 Mental Health Needs,MH Adult Placement Cont-Morden,Third Party Payments,Private Contractors,Accommodation Based Support,Revenue,15/12/2010,677,-1167.6,REDACTED
Adult Social Care,Adult u65 Mental Health Needs,MH Adult Placement Cont- NRTPF,Third Party Payments,Private Contractors,Accommodation Based Support,Revenue,15/12/2010,678,1118.92,REDACTED
Adult Social Care,Adult u65 Mental Health Needs,HS Adult Placements,Third Party Payments,Private Contractors,Accommodation Based Support,Revenue,15/12/2010,679,3502.8,REDACTED
Adult Social Care,Adult u65 Mental Health Needs,MH Adult PlacementCont-MitWest,Third Party Payments,Private Contractors,Accommodation Based Support,Revenue,15/12/2010,680,778.4,REDACTED
Adult Social Care,Adlt u65 Learning Disabilities,LD AdultPlacementCont,Third Party Payments,Private Contractors,Accommodation Based Support,Revenue,15/12/2010,681,606.4,REDACTED
Adult Social Care,Adult u65 Mental Health Needs,MH Adult PlacementCont-MitWest,Third Party Payments,Private Contractors,Accommodation Based Support,Revenue,15/12/2010,682,1240.4,REDACTED
Adult Social Care,Adult u65 Mental Health Needs,HS Adult Placements,Third Party Payments,Private Contractors,Accommodation Based Support,Revenue,15/12/2010,683,2441.04,REDACTED
Adult Social Care,Adult u65 Mental Health Needs,HS Adult Placements,Third Party Payments,Private Contractors,Accommodation Based Support,Revenue,15/12/2010,684,806.2,REDACTED
Adult Social Care,Adult u65 Mental Health Needs,HS Adult Placements,Third Party Payments,Private Contractors,Accommodation Based Support,Revenue,15/12/2010,685,848.96,REDACTED
Adult Social Care,Adult u65 Mental Health Needs,HS Adult Placements,Third Party Payments,Private Contractors,Accommodation Based Support,Revenue,15/12/2010,686,1432.76,REDACTED
Adult Social Care,Older People 65&Over inc OP-MH,OP Hosp - Residential Care Ext,Third Party Payments,Private Contractors,Miscellaneous Agency Services,Revenue,15/12/2010,687,1763.16,BLAIR HOUSE
Adult Social Care,Adlt u65 Learning Disabilities,LD Residential Care External,Third Party Payments,Private Contractors,Miscellaneous Agency Services,Revenue,15/12/2010,688,5500,CARE MANAGEMENT GROUP
Adult Social Care,Adlt u65 Learning Disabilities,LD Residential Care External,Third Party Payments,Private Contractors,Miscellaneous Agency Services,Revenue,15/12/2010,689,5044,CARE MANAGEMENT GROUP
Adult Social Care,Older People 65&Over inc OP-MH,OP East - Nursing Care,Third Party Payments,Private Contractors,Miscellaneous Agency Services,Revenue,15/12/2010,690,2341.84,HOPELIT UK LTD
Adult Social Care,Older People 65&Over inc OP-MH,OP East - Nursing Care,Third Party Payments,Private Contractors,Miscellaneous Agency Services,Revenue,15/12/2010,691,2540,LAKESIDE NURSING HOME
Adult Social Care,Older People 65&Over inc OP-MH,OP East - Nursing Care,Third Party Payments,Private Contractors,Miscellaneous Agency Services,Revenue,15/12/2010,692,2577,SOUTHERN CROSS HEALTHCARE
Adult Social Care,Older People 65&Over inc OP-MH,OP Hosp - Residential Care Ext,Third Party Payments,Private Contractors,Miscellaneous Agency Services,Revenue,15/12/2010,693,1812.4,LINDEN HOUSE
Adult Social Care,Adlt u65 Learning Disabilities,LD Residential Care External,Third Party Payments,Private Contractors,Miscellaneous Agency Services,Revenue,15/12/2010,694,750,ROYAL MENCAP SOCIETY
Adult Social Care,Older People 65&Over inc OP-MH,OP East - Residential Care Ext,Third Party Payments,Private Contractors,Miscellaneous Agency Services,Revenue,15/12/2010,695,6220.5,NORBURY HALL RESIDENTIAL HOME
Adult Social Care,Older People 65&Over inc OP-MH,OP West - Residential Care Ext,Third Party Payments,Private Contractors,Miscellaneous Agency Services,Revenue,15/12/2010,696,2288.84,OATLANDS CARE LIMITED
Adult Social Care,Adult u65 Phys/Sensory Impair,PD EAST TEAM-Residential,Third Party Payments,Private Contractors,Miscellaneous Agency Services,Revenue,15/12/2010,697,1750,THE ROYAL STAR & GARTER HOME
Adult Social Care,Older People 65&Over inc OP-MH,OP West - Residential Care Ext,Third Party Payments,Private Contractors,Miscellaneous Agency Services,Revenue,15/12/2010,698,3757.04,SOUTHERN CROSS HEALTHCARE LTD
Adult Social Care,Older People 65&Over inc OP-MH,OP Hosp - Nursing Care,Third Party Payments,Private Contractors,Miscellaneous Agency Services,Revenue,15/12/2010,699,6712.92,SOUTHERN CROSS HEALTHCARE LTD
Adult Social Care,Older People 65&Over inc OP-MH,OP West - Nursing Care,Third Party Payments,Private Contractors,Miscellaneous Agency Services,Revenue,15/12/2010,700,8950.56,SOUTHERN CROSS HEALTHCARE LTD
Adult Social Care,Older People 65&Over inc OP-MH,OP East - Nursing Care,Third Party Payments,Private Contractors,Miscellaneous Agency Services,Revenue,15/12/2010,701,10788.62,SOUTHERN CROSS HEALTHCARE LTD
Adult Social Care,Older People 65&Over inc OP-MH,OP Hosp - Residential Care Ext,Third Party Payments,Private Contractors,Miscellaneous Agency Services,Revenue,15/12/2010,702,13149.64,SOUTHERN CROSS HEALTHCARE LTD
Adult Social Care,Older People 65&Over inc OP-MH,OP East - Residential Care Ext,Third Party Payments,Private Contractors,Miscellaneous Agency Services,Revenue,15/12/2010,703,23951.13,SOUTHERN CROSS HEALTHCARE LTD
Adult Social Care,Older People 65&Over inc OP-MH,OP Hosp - Residential Care Ext,Third Party Payments,Private Contractors,Miscellaneous Agency Services,Revenue,15/12/2010,704,2160.4,SOUTHVIEW CARE HOME
Adult Social Care,Older People 65&Over inc OP-MH,OP Hosp - Residential Care Ext,Third Party Payments,Private Contractors,Miscellaneous Agency Services,Revenue,15/12/2010,705,1035.65,ST MARY'S LODGE
Adult Social Care,Older People 65&Over inc OP-MH,OP Hosp - Residential Care Ext,Third Party Payments,Private Contractors,Miscellaneous Agency Services,Revenue,15/12/2010,706,1812.4,WHITECLIFF RESID. CARE HOME
Adult Social Care,Older People 65&Over inc OP-MH,OP East - Home Care External,Third Party Payments,Private Contractors,Miscellaneous Agency Services,Revenue,15/12/2010,707,561.36,COMPASSIONATE CARING AGENCY UK
Adult Social Care,Older People 65&Over inc OP-MH,OP East - Home Care External,Third Party Payments,Private Contractors,Miscellaneous Agency Services,Revenue,15/12/2010,708,521.3,COMPASSIONATE CARING AGENCY UK
Adult Social Care,Older People 65&Over inc OP-MH,OP East - Home Care External,Third Party Payments,Private Contractors,Miscellaneous Agency Services,Revenue,15/12/2010,709,1235.03,COMPASSIONATE CARING AGENCY UK
Adult Social Care,Older People 65&Over inc OP-MH,OP West - Home Care External,Third Party Payments,Private Contractors,Miscellaneous Agency Services,Revenue,15/12/2010,710,1245.42,COMPASSIONATE CARING AGENCY UK
Adult Social Care,Older People 65&Over inc OP-MH,OP West - Home Care External,Third Party Payments,Private Contractors,Miscellaneous Agency Services,Revenue,15/12/2010,711,2170.88,COMPASSIONATE CARING AGENCY UK
Adult Social Care,Adult u65 Phys/Sensory Impair,PD EAST TEAM-Homecare,Third Party Payments,Private Contractors,Miscellaneous Agency Services,Revenue,15/12/2010,712,2201.48,COMPASSIONATE CARING AGENCY UK
Childrens & Education Services,Other Ch's & Family Services,CL Setting Up Home Allowance,Third Party Payments,Private Contractors,Miscellaneous Agency Services,Revenue,15/12/2010,713,1000,REDACTED
Childrens & Education Services,Family Support Services,CL Residence Orders,Supplies & Services,Grants and Subscriptions,Residence Orders,Revenue,15/12/2010,714,1500,REDACTED
Childrens & Education Services,Children Looked After (24hrs+),CL Residential Care Homes CLA,Third Party Payments,Private Contractors,Miscellaneous Agency Services,Revenue,15/12/2010,715,11148,REDACTED
Childrens & Education Services,Other Ch's & Family Services,CL Leaving Care/Supp Lodgings,Third Party Payments,Private Contractors,Supported Lodgings,Revenue,15/12/2010,716,600,REDACTED
Childrens & Education Services,Other Ch's & Family Services,CL Leaving Care/Supp Lodgings,Third Party Payments,Private Contractors,Supported Lodgings,Revenue,15/12/2010,717,600,REDACTED
Childrens & Education Services,Other Ch's & Family Services,CL Leaving Care/Supp Lodgings,Third Party Payments,Private Contractors,Supported Lodgings,Revenue,15/12/2010,718,600,REDACTED
Adult Social Care,Asylum seekers,AS Child Res Care  (No Grant),Third Party Payments,Private Contractors,Private Tenant/Landlord,Revenue,15/12/2010,719,689.92,REDACTED
Adult Social Care,Asylum seekers,AS Child Res Care  (No Grant),Third Party Payments,Private Contractors,Private Tenant/Landlord,Revenue,15/12/2010,720,689.92,REDACTED
Childrens & Education Services,Children Looked After (24hrs+),CL Independent Fostering,Supplies & Services,Services,Task Based Fostering,Revenue,15/12/2010,721,3491.1,BANYA
Childrens & Education Services,Children Looked After (24hrs+),CL Residential Care Homes CLA,Third Party Payments,Private Contractors,Miscellaneous Agency Services,Revenue,15/12/2010,722,13673.6,REDACTED
Childrens & Education Services,Children Looked After (24hrs+),CL Independent Fostering,Supplies & Services,Services,Task Based Fostering,Revenue,15/12/2010,723,2760,CHILDREN OF COLOUR
Childrens & Education Services,Children Looked After (24hrs+),CL Independent Fostering,Supplies & Services,Services,Task Based Fostering,Revenue,15/12/2010,724,3200,CHILDREN OF COLOUR
Childrens & Education Services,Children Looked After (24hrs+),CL Independent Fostering,Supplies & Services,Services,Task Based Fostering,Revenue,15/12/2010,725,3280,CHILDREN OF COLOUR
Childrens & Education Services,Children Looked After (24hrs+),CL Independent Fostering,Supplies & Services,Services,Task Based Fostering,Revenue,15/12/2010,726,3280,CHILDREN OF COLOUR
Childrens & Education Services,Children Looked After (24hrs+),CL Independent Fostering,Supplies & Services,Services,Task Based Fostering,Revenue,15/12/2010,727,1648.32,CROHAM SERV.FOR CHILDREN LTD
Childrens & Education Services,Children Looked After (24hrs+),CL Independent Fostering,Supplies & Services,Services,Long Term Fostering,Revenue,15/12/2010,728,3710.92,ETHELBERT SPECIALIST HOMES LTD
Childrens & Education Services,Children Looked After (24hrs+),CL Independent Fostering,Supplies & Services,Services,Long Term Fostering,Revenue,15/12/2010,729,2685.76,FOSTERPLUS LTD
Childrens & Education Services,Children Looked After (24hrs+),CL Independent Fostering,Supplies & Services,Services,Task Based Fostering,Revenue,15/12/2010,730,3136.56,FOSTERING OUTCOMES LTD
Childrens & Education Services,Children Looked After (24hrs+),CL Independent Fostering,Supplies & Services,Services,Task Based Fostering,Revenue,15/12/2010,731,4645.76,FOSTERING OUTCOMES LTD
Childrens & Education Services,Children Looked After (24hrs+),CL Independent Fostering,Supplies & Services,Services,Task Based Fostering,Revenue,15/12/2010,732,3345.3,HILLCREST CARE LTD
Childrens & Education Services,Children Looked After (24hrs+),CL Independent Fostering,Supplies & Services,Services,Task Based Fostering,Revenue,15/12/2010,733,3345.3,HILLCREST CARE LTD
Childrens & Education Services,Children Looked After (24hrs+),CL Independent Fostering,Supplies & Services,Services,Task Based Fostering,Revenue,15/12/2010,734,3477,HILLCREST CARE LTD
Childrens & Education Services,Children Looked After (24hrs+),CL Independent Fostering,Supplies & Services,Services,Task Based Fostering,Revenue,15/12/2010,735,2121.3,HILLCREST CARE LTD
Childrens & Education Services,Children Looked After (24hrs+),CL Independent Fostering,Supplies & Services,Services,Task Based Fostering,Revenue,15/12/2010,736,2121.3,HILLCREST CARE LTD
Adult Social Care,Asylum seekers,AS Child Res Care  (No Grant),Third Party Payments,Private Contractors,Supported Lodgings,Revenue,15/12/2010,737,557.14,REDACTED
Childrens & Education Services,Children Looked After (24hrs+),CL Independent Fostering,Supplies & Services,Services,Task Based Fostering,Revenue,15/12/2010,738,4800,NEXT STEP FOSTERING SERV'S LTD
Childrens & Education Services,Children Looked After (24hrs+),CL Independent Fostering,Supplies & Services,Services,Task Based Fostering,Revenue,15/12/2010,739,3199.84,ORCHIDS FOSTERING FOR CHILDREN
Childrens & Education Services,Children Looked After (24hrs+),CL Independent Fostering,Supplies & Services,Services,Task Based Fostering,Revenue,15/12/2010,740,3199.84,ORCHIDS FOSTERING FOR CHILDREN
Childrens & Education Services,Children Looked After (24hrs+),CL Independent Fostering,Supplies & Services,Services,Task Based Fostering,Revenue,15/12/2010,741,4764.12,OUTLOOK FOSTERING SERVICES LTD
Childrens & Education Services,Children Looked After (24hrs+),CL Independent Fostering,Supplies & Services,Services,Task Based Fostering,Revenue,15/12/2010,742,3034.4,SAFEHOUSES
Childrens & Education Services,Children Looked After (24hrs+),CL Independent Fostering,Supplies & Services,Services,Long Term Fostering,Revenue,15/12/2010,743,4071.42,SANKOFA CARE LTD
Childrens & Education Services,Children Looked After (24hrs+),CL Independent Fostering,Supplies & Services,Services,Long Term Fostering,Revenue,15/12/2010,744,4717.28,SANKOFA CARE LTD
Childrens & Education Services,Children Looked After (24hrs+),CL Independent Fostering,Supplies & Services,Services,Task Based Fostering,Revenue,15/12/2010,745,3144,ST CHRISTOPHERS FELLOWSHIP
Childrens & Education Services,Other Ch's & Family Services,CL Leaving Care/Supp Lodgings,Third Party Payments,Private Contractors,Supported Lodgings,Revenue,15/12/2010,746,700,REDACTED
Childrens & Education Services,Other Ch's & Family Services,CL Leaving Care/Supp Lodgings,Third Party Payments,Private Contractors,Supported Lodgings,Revenue,15/12/2010,747,700,REDACTED
Childrens & Education Services,Other Ch's & Family Services,CL Leaving Care/Supp Lodgings,Third Party Payments,Private Contractors,Supported Lodgings,Revenue,15/12/2010,748,700,REDACTED
Childrens & Education Services,Children Looked After (24hrs+),CL Secure Accommodation,Third Party Payments,Private Contractors,Miscellaneous Agency Services,Revenue,16/12/2010,749,21555.54,ESSEX COUNTY COUNCIL
Childrens & Education Services,Family Support Services,CS Day Care CWD,Third Party Payments,Private Contractors,Miscellaneous Agency Services,Revenue,16/12/2010,750,540,KIDS
Childrens & Education Services,Other Ch's & Family Services,CL Leaving Care/Supp Lodgings,Third Party Payments,Private Contractors,Supported Lodgings,Revenue,16/12/2010,751,800,REDACTED
Childrens & Education Services,Children Looked After (24hrs+),CL Independent Fostering,Supplies & Services,Services,Task Based Fostering,Revenue,16/12/2010,752,3137.12,LLOYDS TSB COMMERCIAL FINANCE
Childrens & Education Services,Children Looked After (24hrs+),CL Independent Fostering,Supplies & Services,Services,Long Term Fostering,Revenue,16/12/2010,753,3025.2,LLOYDS TSB COMMERCIAL FINANCE
Childrens & Education Services,Children Looked After (24hrs+),CL Independent Fostering,Supplies & Services,Services,Task Based Fostering,Revenue,16/12/2010,754,3682.5,LLOYDS TSB COMMERCIAL FINANCE
Childrens & Education Services,Children Looked After (24hrs+),CL Independent Fostering,Supplies & Services,Services,Long Term Fostering,Revenue,16/12/2010,755,3361.2,LLOYDS TSB COMMERCIAL FINANCE
Childrens & Education Services,Children Looked After (24hrs+),CL Independent Fostering,Supplies & Services,Services,Task Based Fostering,Revenue,16/12/2010,756,3025.2,LLOYDS TSB COMMERCIAL FINANCE
Childrens & Education Services,Children Looked After (24hrs+),CL Residential Care Homes CLA,Third Party Payments,Private Contractors,Miscellaneous Agency Services,Revenue,16/12/2010,757,7336,REDACTED
Childrens & Education Services,Children Looked After (24hrs+),CL Independent Fostering,Supplies & Services,Services,Task Based Fostering,Revenue,16/12/2010,758,784.63,CORNERWAYS FOSTERING SERV.LTD
Childrens & Education Services,Children Looked After (24hrs+),CL Independent Fostering,Supplies & Services,Services,Task Based Fostering,Revenue,16/12/2010,759,784.63,CORNERWAYS FOSTERING SERV.LTD
Childrens & Education Services,Children Looked After (24hrs+),CL Independent Fostering,Supplies & Services,Services,Long Term Fostering,Revenue,16/12/2010,760,4800,SANKOFA CARE LTD
Childrens & Education Services,Children Looked After (24hrs+),CL Independent Fostering,Supplies & Services,Services,Long Term Fostering,Revenue,16/12/2010,761,4800,SANKOFA CARE LTD
Childrens & Education Services,Children Looked After (24hrs+),CL Independent Fostering,Supplies & Services,Services,Long Term Fostering,Revenue,16/12/2010,762,4800,SANKOFA CARE LTD
Childrens & Education Services,Family Support Services,CS Day Care CWD,Third Party Payments,Private Contractors,Miscellaneous Agency Services,Revenue,16/12/2010,763,680,THE SHOOTING STAR HOSPICE
Childrens & Education Services,Children Looked After (24hrs+),CL Residential Care Homes CLA,Third Party Payments,Private Contractors,Miscellaneous Agency Services,Revenue,16/12/2010,764,12848.1,REDACTED
Adult Social Care,Older People 65&Over inc OP-MH,OP West - Residential Care Ext,Third Party Payments,Private Contractors,Miscellaneous Agency Services,Revenue,16/12/2010,765,3434.68,ABBEY HOUSE RESIDENTIAL HOMES
Adult Social Care,Adult u65 Mental Health Needs,MH ResidentialCare Ext-Morden,Third Party Payments,Private Contractors,Miscellaneous Agency Services,Revenue,16/12/2010,766,2400,ABBEY HOUSE RESIDENTIAL HOMES
Adult Social Care,Adult u65 Phys/Sensory Impair,PD WEST TEAM-Residential Care,Third Party Payments,Private Contractors,Miscellaneous Agency Services,Revenue,16/12/2010,767,3310.72,ABBEY HOUSE RESIDENTIAL HOMES
Adult Social Care,Older People 65&Over inc OP-MH,OP Hosp - Residential Care Ext,Third Party Payments,Private Contractors,Miscellaneous Agency Services,Revenue,16/12/2010,768,4400,ABBEY HOUSE RESIDENTIAL HOMES
Adult Social Care,Adlt u65 Learning Disabilities,LD Residential Care External,Third Party Payments,Private Contractors,Miscellaneous Agency Services,Revenue,16/12/2010,769,4157.24,ASHINGTON HOUSE
Adult Social Care,Adlt u65 Learning Disabilities,LD Residential Care External,Third Party Payments,Private Contractors,Miscellaneous Agency Services,Revenue,16/12/2010,770,3798.04,BRIGSTOCK HOUSE
Adult Social Care,Adlt u65 Learning Disabilities,LD Residential Care External,Third Party Payments,Private Contractors,Miscellaneous Agency Services,Revenue,16/12/2010,771,3400,BURGH HEATH LODGE
Adult Social Care,Adult u65 Mental Health Needs,MH Res Care Ext- Mitcham West,Third Party Payments,Private Contractors,Miscellaneous Agency Services,Revenue,16/12/2010,772,5681.56,COMMUNITY CARE SOLUTIONS LTD
Adult Social Care,Adlt u65 Learning Disabilities,LD Residential Care External,Third Party Payments,Private Contractors,Miscellaneous Agency Services,Revenue,16/12/2010,773,10742.43,DANESWOOD
Adult Social Care,Adult u65 Mental Health Needs,MH ResidentialCare Ext-Morden,Third Party Payments,Private Contractors,Miscellaneous Agency Services,Revenue,16/12/2010,774,3895.28,ENNIS REST HOME
Adult Social Care,Adlt u65 Learning Disabilities,LD Residential Care External,Third Party Payments,Private Contractors,Miscellaneous Agency Services,Revenue,16/12/2010,775,2552.84,FREEWAYS TRUST LTD
Adult Social Care,Adlt u65 Learning Disabilities,LD Nursing Care,Third Party Payments,Private Contractors,Miscellaneous Agency Services,Revenue,16/12/2010,776,5405.68,HIGH HURLANDS HOMES
Adult Social Care,Older People 65&Over inc OP-MH,OP East - Nursing Care,Third Party Payments,Private Contractors,Miscellaneous Agency Services,Revenue,16/12/2010,777,2540,LAKESIDE NURSING HOME
Adult Social Care,Adlt u65 Learning Disabilities,LD Residential Care External,Third Party Payments,Private Contractors,Miscellaneous Agency Services,Revenue,16/12/2010,778,3021.84,L'ARCHE
Adult Social Care,Adult u65 Mental Health Needs,MH Other Servs - Mitcham West,Third Party Payments,Private Contractors,Miscellaneous Agency Services,Revenue,16/12/2010,779,919.6,RNID
Adult Social Care,Adult u65 Phys/Sensory Impair,PD EAST TEAM-Homecare,Third Party Payments,Private Contractors,Miscellaneous Agency Services,Revenue,16/12/2010,780,1616,ABLE COMMUNITY CARE
Adult Social Care,Adult u65 Phys/Sensory Impair,PD EAST TEAM-Homecare,Third Party Payments,Private Contractors,Miscellaneous Agency Services,Revenue,16/12/2010,781,2828,ABLE COMMUNITY CARE
Adult Social Care,Adult u65 Phys/Sensory Impair,PD EAST TEAM-Homecare,Third Party Payments,Private Contractors,Miscellaneous Agency Services,Revenue,16/12/2010,782,2828,ABLE COMMUNITY CARE
Adult Social Care,Adlt u65 Learning Disabilities,LD Day Care Agency,Third Party Payments,Private Contractors,Miscellaneous Agency Services,Revenue,16/12/2010,783,648.96,ELIZABETH FITZROY HOMES
Adult Social Care,Adlt u65 Learning Disabilities,LD Home Care External,Third Party Payments,Private Contractors,Miscellaneous Agency Services,Revenue,16/12/2010,784,2488.48,ELIZABETH FITZROY HOMES
Childrens & Education Services,Children's Services - C & S W,CL IndepAssess Expert Witness,Third Party Payments,Private Contractors,Miscellaneous Agency Services,Revenue,16/12/2010,785,623.33,REDACTED
Childrens & Education Services,Other Ch's & Family Services,CL Leaving Care/Supp Lodgings,Third Party Payments,Private Contractors,Supported Lodgings,Revenue,16/12/2010,786,985.68,REDACTED
Adult Social Care,Adult u65 Mental Health Needs,MH Adult Placement Cont- NRTPF,Third Party Payments,Private Contractors,Accommodation Based Support,Revenue,16/12/2010,787,863.48,REDACTED
Adult Social Care,Adult u65 Mental Health Needs,HS Adult Placements,Third Party Payments,Private Contractors,Accommodation Based Support,Revenue,16/12/2010,788,879.28,REDACTED
Adult Social Care,Adult u65 Mental Health Needs,MH Adult Placement Cont-Morden,Third Party Payments,Private Contractors,Accommodation Based Support,Revenue,16/12/2010,789,879.28,REDACTED
Adult Social Care,Adlt u65 Learning Disabilities,LD AdultPlacementCont,Third Party Payments,Private Contractors,Accommodation Based Support,Revenue,16/12/2010,790,606.4,REDACTED
Adult Social Care,Adult u65 Mental Health Needs,HS Adult Placements,Third Party Payments,Private Contractors,Accommodation Based Support,Revenue,16/12/2010,791,1167.6,REDACTED
Adult Social Care,Adult u65 Mental Health Needs,HS Adult Placements,Third Party Payments,Private Contractors,Accommodation Based Support,Revenue,16/12/2010,792,636.72,REDACTED
Adult Social Care,Adlt u65 Learning Disabilities,LD Adult Placements - HST,Third Party Payments,Private Contractors,Accommodation Based Support,Revenue,16/12/2010,793,1121.84,REDACTED
Adult Social Care,Adlt u65 Learning Disabilities,LD Adult Placements - HST,Third Party Payments,Private Contractors,Accommodation Based Support,Revenue,16/12/2010,794,1238.16,REDACTED
Adult Social Care,Adult u65 Mental Health Needs,HS Adult Placements,Third Party Payments,Private Contractors,Accommodation Based Support,Revenue,16/12/2010,795,973,REDACTED
Adult Social Care,Adult u65 Mental Health Needs,MH Adult Placement Cont-Morden,Third Party Payments,Private Contractors,Accommodation Based Support,Revenue,16/12/2010,796,848.96,EL-SHADDAI
Adult Social Care,Adult u65 Mental Health Needs,MH Adult PlacementCont-MitWest,Third Party Payments,Private Contractors,Accommodation Based Support,Revenue,16/12/2010,797,848.96,EL-SHADDAI
Adult Social Care,Adult u65 Phys/Sensory Impair,PD WEST TEAM-Homecare,Third Party Payments,Private Contractors,Miscellaneous Agency Services,Revenue,17/12/2010,798,800.54,ALPENBEST LIMITED
Adult Social Care,Older People 65&Over inc OP-MH,OP East - Home Care External,Third Party Payments,Private Contractors,Miscellaneous Agency Services,Revenue,17/12/2010,799,2170.68,ALPENBEST LIMITED
Adult Social Care,Older People 65&Over inc OP-MH,OP West - Home Care External,Third Party Payments,Private Contractors,Miscellaneous Agency Services,Revenue,17/12/2010,800,4043.37,ALPENBEST LIMITED
Adult Social Care,Adult u65 Phys/Sensory Impair,PD WEST TEAM-Homecare,Third Party Payments,Private Contractors,Miscellaneous Agency Services,Revenue,17/12/2010,801,826.72,ALPENBEST LIMITED
Adult Social Care,Older People 65&Over inc OP-MH,OP East - Home Care External,Third Party Payments,Private Contractors,Miscellaneous Agency Services,Revenue,17/12/2010,802,2232.24,ALPENBEST LIMITED
Adult Social Care,Older People 65&Over inc OP-MH,OP West - Home Care External,Third Party Payments,Private Contractors,Miscellaneous Agency Services,Revenue,17/12/2010,803,3539.99,ALPENBEST LIMITED
Adult Social Care,Adlt u65 Learning Disabilities,LD Day Care Agency,Third Party Payments,Private Contractors,Miscellaneous Agency Services,Revenue,17/12/2010,804,954.08,BRIGSTOCK ACTIVITY CENTRE
Adult Social Care,Adult u65 Phys/Sensory Impair,PD EAST TEAM-Nursing,Third Party Payments,Private Contractors,Miscellaneous Agency Services,Revenue,17/12/2010,805,7561.44,BUPA CARE SERVICES BACS RECEIP
Adult Social Care,Adult u65 Phys/Sensory Impair,PD EAST TEAM-Homecare,Third Party Payments,Private Contractors,Miscellaneous Agency Services,Revenue,17/12/2010,806,2199.68,BUPA CARE HOMES (ANS) LTD
Adult Social Care,Adlt u65 Learning Disabilities,LD Home Care External,Third Party Payments,Private Contractors,Miscellaneous Agency Services,Revenue,17/12/2010,807,7400.4,COMMUNITY HOME CARE PROVIDER
Adult Social Care,Older People 65&Over inc OP-MH,OP East - Carer Services,Third Party Payments,Private Contractors,Miscellaneous Agency Services,Revenue,17/12/2010,808,566.94,COMMUNITY HOME CARE PROVIDER
Adult Social Care,Adult u65 Phys/Sensory Impair,PD EAST TEAM-Homecare,Third Party Payments,Private Contractors,Miscellaneous Agency Services,Revenue,17/12/2010,809,633.27,COMMUNITY HOME CARE PROVIDER
Adult Social Care,Older People 65&Over inc OP-MH,OP East - Home Care External,Third Party Payments,Private Contractors,Miscellaneous Agency Services,Revenue,17/12/2010,810,1626.93,COMMUNITY HOME CARE PROVIDER
Adult Social Care,Older People 65&Over inc OP-MH,OP East - Carer Services,Third Party Payments,Private Contractors,Miscellaneous Agency Services,Revenue,17/12/2010,811,755.15,ENARA COMMUNITY CARE
Adult Social Care,Adult u65 Phys/Sensory Impair,PD EAST TEAM-Homecare,Third Party Payments,Private Contractors,Miscellaneous Agency Services,Revenue,17/12/2010,812,953.58,ENARA COMMUNITY CARE
Adult Social Care,Adult u65 Phys/Sensory Impair,PD WEST TEAM-Homecare,Third Party Payments,Private Contractors,Miscellaneous Agency Services,Revenue,17/12/2010,813,4498.82,ENARA COMMUNITY CARE
Adult Social Care,Older People 65&Over inc OP-MH,OP West - Home Care External,Third Party Payments,Private Contractors,Miscellaneous Agency Services,Revenue,17/12/2010,814,6199.24,ENARA COMMUNITY CARE
Adult Social Care,Older People 65&Over inc OP-MH,OP East - Home Care External,Third Party Payments,Private Contractors,Miscellaneous Agency Services,Revenue,17/12/2010,815,14450.29,ENARA COMMUNITY CARE
Adult Social Care,Adult u65 Phys/Sensory Impair,PD EAST TEAM-Day Care,Third Party Payments,Private Contractors,Miscellaneous Agency Services,Revenue,17/12/2010,816,574,THE GARWOOD FOUNDATION
Adult Social Care,Adult u65 Phys/Sensory Impair,PD WEST TEAM-Day Care,Third Party Payments,Private Contractors,Miscellaneous Agency Services,Revenue,17/12/2010,817,574,THE GARWOOD FOUNDATION
Adult Social Care,Adlt u65 Learning Disabilities,LD Day Care Agency,Third Party Payments,Private Contractors,Miscellaneous Agency Services,Revenue,20/12/2010,818,954.1,GRACE EYRE FOUNDATION
Adult Social Care,Adlt u65 Learning Disabilities,LD Day Care Agency,Third Party Payments,Private Contractors,Miscellaneous Agency Services,Revenue,17/12/2010,819,618.2,HIGH HURLANDS HOMES
Adult Social Care,Older People 65&Over inc OP-MH,OP West - Home Care External,Third Party Payments,Private Contractors,Miscellaneous Agency Services,Revenue,17/12/2010,820,939.31,HFH HOMECARE LTD
Adult Social Care,Older People 65&Over inc OP-MH,OP East - Home Care External,Third Party Payments,Private Contractors,Miscellaneous Agency Services,Revenue,17/12/2010,821,1901.64,HFH HOMECARE LTD
Adult Social Care,Adult u65 Mental Health Needs,MH Day Care - Mitcham West,Third Party Payments,Private Contractors,Miscellaneous Agency Services,Revenue,17/12/2010,822,1305.36,NAS SERVICES LIMITED
Adult Social Care,Older People 65&Over inc OP-MH,OP East - Home Care External,Third Party Payments,Private Contractors,Miscellaneous Agency Services,Revenue,17/12/2010,823,960.8,ROYAL MENCAP SOCIETY
Adult Social Care,Adlt u65 Learning Disabilities,LD Day Care Agency,Third Party Payments,Private Contractors,Miscellaneous Agency Services,Revenue,20/12/2010,824,986.2,THE SHEILING TRUST
Adult Social Care,Adlt u65 Learning Disabilities,LD Comm -Home Care-Orch Hill,Third Party Payments,Private Contractors,Miscellaneous Agency Services,Revenue,17/12/2010,825,848.05,UNITED RESPONSE
Adult Social Care,Adlt u65 Learning Disabilities,LD Day Care Agency,Third Party Payments,Private Contractors,Miscellaneous Agency Services,Revenue,17/12/2010,826,646.56,UNITED RESPONSE
Adult Social Care,Adlt u65 Learning Disabilities,LD Day Care Agency,Third Party Payments,Private Contractors,Miscellaneous Agency Services,Revenue,17/12/2010,827,696.28,UNITED RESPONSE
Childrens & Education Services,Children Looked After (24hrs+),CL Secure Accommodation,Third Party Payments,Private Contractors,Miscellaneous Agency Services,Revenue,20/12/2010,828,2695.29,HAMPSHIRE COUNTY COUNCIL
Adult Social Care,Asylum seekers,AS Child Res Care  (No Grant),Third Party Payments,Private Contractors,Miscellaneous Agency Services,Revenue,17/12/2010,829,780,RBS INVOICE FINANCE LIMITED
Adult Social Care,Asylum seekers,AS Child Res Care  (No Grant),Third Party Payments,Private Contractors,Miscellaneous Agency Services,Revenue,17/12/2010,830,780,RBS INVOICE FINANCE LIMITED
Childrens & Education Services,Other Ch's & Family Services,CL Leaving Care/Supp Lodgings,Third Party Payments,Private Contractors,Supported Lodgings,Revenue,17/12/2010,831,600,REDACTED
Childrens & Education Services,Other Ch's & Family Services,CL Leaving Care/Supp Lodgings,Third Party Payments,Private Contractors,Supported Lodgings,Revenue,17/12/2010,832,600,REDACTED
Adult Social Care,Adlt u65 Learning Disabilities,LD AdultPlacementCont,Third Party Payments,Private Contractors,Accommodation Based Support,Revenue,17/12/2010,833,4680,PROVIDENCE CARE UK LTD
Adult Social Care,Older People 65&Over inc OP-MH,OP Hosp - Residential Care Ext,Third Party Payments,Private Contractors,Miscellaneous Agency Services,Revenue,17/12/2010,834,1827,ABBEYGATE RESIDENTIAL HOME
Adult Social Care,Older People 65&Over inc OP-MH,OP Hosp - Nursing Care,Third Party Payments,Private Contractors,Miscellaneous Agency Services,Revenue,17/12/2010,835,664.16,ALDERSMEAD RESID & NURS.HOME
Adult Social Care,Adlt u65 Learning Disabilities,LD Residential Care External,Third Party Payments,Private Contractors,Miscellaneous Agency Services,Revenue,17/12/2010,836,4299.88,ASHCROFT CARE SERVICES
Adult Social Care,Adlt u65 Learning Disabilities,LD Residential Care External,Third Party Payments,Private Contractors,Miscellaneous Agency Services,Revenue,17/12/2010,837,5374.92,ASHCROFT CARE SERVICES
Adult Social Care,Older People 65&Over inc OP-MH,OP West - Nursing Care,Customer and client receipts,Charges,Bd&Acc-contrib coll by home X,Revenue,17/12/2010,838,-543.5,LONDON RESIDENTIAL H/CARE LTD
Adult Social Care,Older People 65&Over inc OP-MH,OP West - Nursing Care,Third Party Payments,Private Contractors,Miscellaneous Agency Services,Revenue,17/12/2010,839,2586.76,LONDON RESIDENTIAL H/CARE LTD
Adult Social Care,Older People 65&Over inc OP-MH,OP East - Residential Care Ext,Third Party Payments,Private Contractors,Miscellaneous Agency Services,Revenue,17/12/2010,840,1873.2,BETHUNE COURT
Adult Social Care,Older People 65&Over inc OP-MH,OP East - Nursing Care,Third Party Payments,Private Contractors,Miscellaneous Agency Services,Revenue,17/12/2010,841,2254.92,BEVERLEY LODGE NURSING HOME
Adult Social Care,Older People 65&Over inc OP-MH,OP East - Residential Care Ext,Third Party Payments,Private Contractors,Miscellaneous Agency Services,Revenue,20/12/2010,842,2056.24,BOLTERS CORNER CARE HOME
Adult Social Care,Adlt u65 Learning Disabilities,LD Residential Care External,Third Party Payments,Private Contractors,Miscellaneous Agency Services,Revenue,17/12/2010,843,5680,BROADHAM CARE LTD
Adult Social Care,Older People 65&Over inc OP-MH,OP East - Nursing Care,Third Party Payments,Private Contractors,Miscellaneous Agency Services,Revenue,17/12/2010,844,3353.84,BRENDON CARE FOUNDATION
Adult Social Care,Adult u65 Mental Health Needs,MH ResidentialCare Ext-Morden,Third Party Payments,Private Contractors,Miscellaneous Agency Services,Revenue,17/12/2010,845,6320.9,BROOKDALE HEALTH CARE
Adult Social Care,Adlt u65 Learning Disabilities,LD Residential Care External,Third Party Payments,Private Contractors,Miscellaneous Agency Services,Revenue,20/12/2010,846,7094.57,CARRICKS BROOK
Adult Social Care,Adlt u65 Learning Disabilities,LD Residential Care External,Third Party Payments,Private Contractors,Miscellaneous Agency Services,Revenue,20/12/2010,847,7528.57,CARRICKS BROOK
Adult Social Care,Older People 65&Over inc OP-MH,OP East - Nursing Care,Third Party Payments,Private Contractors,Miscellaneous Agency Services,Revenue,17/12/2010,848,2074.68,BUPA CARE HOMES
Adult Social Care,Adlt u65 Learning Disabilities,LD Residential Care External,Third Party Payments,Private Contractors,Miscellaneous Agency Services,Revenue,20/12/2010,849,2928.72,CARE
Adult Social Care,Older People 65&Over inc OP-MH,OP East - Residential Care Ext,Third Party Payments,Private Contractors,Miscellaneous Agency Services,Revenue,17/12/2010,850,2764.29,CHASE HOUSE REST HOME
Adult Social Care,Adlt u65 Learning Disabilities,LD Residential Care External,Third Party Payments,Private Contractors,Miscellaneous Agency Services,Revenue,17/12/2010,851,7368,CHATSWORTH CARE
Adult Social Care,Older People 65&Over inc OP-MH,OP East - Residential Care Ext,Third Party Payments,Private Contractors,Miscellaneous Agency Services,Revenue,17/12/2010,852,2086.84,CHURCH FARM RESIDENTIAL HOME
Adult Social Care,Adlt u65 Learning Disabilities,LD Residential Care External,Third Party Payments,Private Contractors,Miscellaneous Agency Services,Revenue,17/12/2010,853,4460.92,REDACTED
Adult Social Care,Older People 65&Over inc OP-MH,OP West - Nursing Care,Third Party Payments,Private Contractors,Miscellaneous Agency Services,Revenue,17/12/2010,854,2354.8,GALLEON CARE HOMES LTD
Adult Social Care,Adult u65 Mental Health Needs,MH ResidentialCare Ext - Wim,Third Party Payments,Private Contractors,Miscellaneous Agency Services,Revenue,17/12/2010,855,3552.52,COMMUNITY HOUSING & THERAPY
Adult Social Care,Adult u65 Mental Health Needs,MH Res Care Ext- Mitcham West,Third Party Payments,Private Contractors,Miscellaneous Agency Services,Revenue,17/12/2010,856,3900,COMMUNITY HOUSING & THERAPY
Adult Social Care,Adult u65 Mental Health Needs,MH ResidentialCare Ext - Wim,Third Party Payments,Private Contractors,Miscellaneous Agency Services,Revenue,17/12/2010,857,1825.16,DEEPDENE CARE LIMITED
Adult Social Care,Older People 65&Over inc OP-MH,OP East - Residential Care Ext,Third Party Payments,Private Contractors,Miscellaneous Agency Services,Revenue,17/12/2010,858,1611.4,DONERAIL RESIDENTIAL HOME
Adult Social Care,Older People 65&Over inc OP-MH,OP Hosp - Residential Care Ext,Third Party Payments,Private Contractors,Miscellaneous Agency Services,Revenue,17/12/2010,859,2380,EASTERLEA REST HOME
Adult Social Care,Older People 65&Over inc OP-MH,OP East - Residential Care Ext,Third Party Payments,Private Contractors,Miscellaneous Agency Services,Revenue,17/12/2010,860,2233,ELM LODGE
Adult Social Care,Older People 65&Over inc OP-MH,OP West - Residential Care Ext,Third Party Payments,Private Contractors,Miscellaneous Agency Services,Revenue,20/12/2010,861,1717.4,THE ELMS REST HOME LTD
Adult Social Care,Older People 65&Over inc OP-MH,OP Hosp - Residential Care Ext,Third Party Payments,Private Contractors,Miscellaneous Agency Services,Revenue,20/12/2010,862,1880,THE ELMS REST HOME LTD
Adult Social Care,Older People 65&Over inc OP-MH,OP East - Residential Care Ext,Third Party Payments,Private Contractors,Miscellaneous Agency Services,Revenue,20/12/2010,863,1880,THE ELMS REST HOME LTD
Adult Social Care,Older People 65&Over inc OP-MH,OP East - Nursing Care,Third Party Payments,Private Contractors,Miscellaneous Agency Services,Revenue,17/12/2010,864,2332.36,ELMWOOD
Adult Social Care,Adult u65 Mental Health Needs,MH Res Care Ext- Mitcham West,Third Party Payments,Private Contractors,Miscellaneous Agency Services,Revenue,20/12/2010,865,1497.04,ENNIS REST HOME
Adult Social Care,Older People 65&Over inc OP-MH,OP East - Residential Care Ext,Third Party Payments,Private Contractors,Miscellaneous Agency Services,Revenue,17/12/2010,866,1526.6,FAIRFIELDS HOUSE LTD
Adult Social Care,Older People 65&Over inc OP-MH,OP West - Nursing Care,Third Party Payments,Private Contractors,Miscellaneous Agency Services,Revenue,20/12/2010,867,2283.2,GOFFS PARK NURSING HOME
Adult Social Care,Adlt u65 Learning Disabilities,LD Residential Care External,Third Party Payments,Private Contractors,Miscellaneous Agency Services,Revenue,17/12/2010,868,6997,CHHG LTD T/A GRETTON HOMES
Adult Social Care,Older People 65&Over inc OP-MH,OP Hosp - Nursing Care,Third Party Payments,Private Contractors,Miscellaneous Agency Services,Revenue,17/12/2010,869,2406.6,GROSVENOR PARK NURSING HOME
Adult Social Care,Older People 65&Over inc OP-MH,OP West - Nursing Care,Third Party Payments,Private Contractors,Miscellaneous Agency Services,Revenue,17/12/2010,870,2341.84,LYNTON HALL NURSING HOME
Adult Social Care,Older People 65&Over inc OP-MH,OP Hosp - Residential Care Ext,Third Party Payments,Private Contractors,Miscellaneous Agency Services,Revenue,17/12/2010,871,2200,HASLINGTON RESIDENTIAL HOME
Adult Social Care,Older People 65&Over inc OP-MH,OP West - Nursing Care,Customer and client receipts,Charges,Bd&Acc-contrib coll by home X,Revenue,17/12/2010,872,-543.5,HEADINGTON NURSING HOME
Adult Social Care,Older People 65&Over inc OP-MH,OP West - Nursing Care,Third Party Payments,Private Contractors,Miscellaneous Agency Services,Revenue,17/12/2010,873,3506.21,HEADINGTON NURSING HOME
Adult Social Care,Adult u65 Phys/Sensory Impair,PD WEST TEAM-Nursing,Customer and client receipts,Charges,Bd&Acc-contrib coll by home X,Revenue,17/12/2010,874,-774,LEONARD CHESHIRE
Adult Social Care,Adult u65 Phys/Sensory Impair,PD WEST TEAM-Nursing,Third Party Payments,Private Contractors,Miscellaneous Agency Services,Revenue,17/12/2010,875,4254.28,LEONARD CHESHIRE
Adult Social Care,Adlt u65 Learning Disabilities,LD Residential Care External,Third Party Payments,Private Contractors,Miscellaneous Agency Services,Revenue,20/12/2010,876,5931.68,THE LEO TRUST
Adult Social Care,Older People 65&Over inc OP-MH,OP Hosp - Residential Care Ext,Third Party Payments,Private Contractors,Miscellaneous Agency Services,Revenue,17/12/2010,877,1448,MARIFA LODGE
Adult Social Care,Older People 65&Over inc OP-MH,OP Hosp - Nursing Care,Third Party Payments,Private Contractors,Miscellaneous Agency Services,Revenue,17/12/2010,878,2233,MOWBRAY NURSING HOME
Adult Social Care,Adlt u65 Learning Disabilities,LD Residential Care External,Third Party Payments,Private Contractors,Miscellaneous Agency Services,Revenue,17/12/2010,879,5394.08,REDACTED
Adult Social Care,Adlt u65 Learning Disabilities,LD Residential Care External,Customer and client receipts,Charges,Bd&Acc-contrib coll by home X,Revenue,20/12/2010,880,-551.5,OAKDOWN HOUSE LTD
Adult Social Care,Adlt u65 Learning Disabilities,LD Residential Care External,Third Party Payments,Private Contractors,Miscellaneous Agency Services,Revenue,20/12/2010,881,2157.96,OAKDOWN HOUSE LTD
Adult Social Care,Adlt u65 Learning Disabilities,LD Residential Care External,Third Party Payments,Private Contractors,Miscellaneous Agency Services,Revenue,20/12/2010,882,2101.21,OAKDOWN HOUSE LTD
Adult Social Care,Older People 65&Over inc OP-MH,OP Hosp - Nursing Care,Third Party Payments,Private Contractors,Miscellaneous Agency Services,Revenue,20/12/2010,883,2305.2,OLD WALL COTTAGE RES & N/H
Adult Social Care,Adlt u65 Learning Disabilities,LD Supported Housing,Third Party Payments,Private Contractors,Miscellaneous Agency Services,Revenue,17/12/2010,884,2120.96,ROYAL MENCAP SOCIETY
Adult Social Care,Adlt u65 Learning Disabilities,LD Supported Housing,Third Party Payments,Private Contractors,Miscellaneous Agency Services,Revenue,17/12/2010,885,1906.56,ROYAL MENCAP SOCIETY
Adult Social Care,Adlt u65 Learning Disabilities,LD Supported Housing,Third Party Payments,Private Contractors,Miscellaneous Agency Services,Revenue,17/12/2010,886,1835.12,ROYAL MENCAP SOCIETY
Adult Social Care,Adlt u65 Learning Disabilities,LD Supported Housing,Third Party Payments,Private Contractors,Miscellaneous Agency Services,Revenue,17/12/2010,887,6284.04,ROYAL MENCAP SOCIETY
Adult Social Care,Adlt u65 Learning Disabilities,LD Residential Care External,Third Party Payments,Private Contractors,Miscellaneous Agency Services,Revenue,17/12/2010,888,7840,SOLAR CARE GROUP LTD - ROBINIA
Adult Social Care,Adult u65 Phys/Sensory Impair,PD EAST TEAM-Residential,Third Party Payments,Private Contractors,Miscellaneous Agency Services,Revenue,17/12/2010,889,8384.84,RNID
Adult Social Care,Older People 65&Over inc OP-MH,OP Hosp - Residential Care Ext,Third Party Payments,Private Contractors,Miscellaneous Agency Services,Revenue,17/12/2010,890,2100,ROYAL CAMBRIDGE HOME
Adult Social Care,Older People 65&Over inc OP-MH,OP West - Nursing Care,Third Party Payments,Private Contractors,Miscellaneous Agency Services,Revenue,20/12/2010,891,2258.16,RUKBA
Adult Social Care,Older People 65&Over inc OP-MH,OP East - Residential Care Ext,Third Party Payments,Private Contractors,Miscellaneous Agency Services,Revenue,17/12/2010,892,1776.2,VIRIDIAN HOUSING
Adult Social Care,Older People 65&Over inc OP-MH,OP Hosp - Residential Care Ext,Third Party Payments,Private Contractors,Miscellaneous Agency Services,Revenue,17/12/2010,893,1878.52,SOUTHERN CROSS HEALTHCARE LTD
Adult Social Care,Older People 65&Over inc OP-MH,OP Hosp - Residential Care Ext,Third Party Payments,Private Contractors,Miscellaneous Agency Services,Revenue,17/12/2010,894,1878.52,SOUTHERN CROSS HEALTHCARE LTD
Adult Social Care,Older People 65&Over inc OP-MH,OP East - Residential Care Ext,Third Party Payments,Private Contractors,Miscellaneous Agency Services,Revenue,17/12/2010,895,1878.52,SOUTHERN CROSS HEALTHCARE LTD
Adult Social Care,Older People 65&Over inc OP-MH,OP East - Nursing Care,Third Party Payments,Private Contractors,Miscellaneous Agency Services,Revenue,17/12/2010,896,2237.64,SOUTHERN CROSS HEALTHCARE LTD
Adult Social Care,Older People 65&Over inc OP-MH,OP Hosp - Nursing Care,Third Party Payments,Private Contractors,Miscellaneous Agency Services,Revenue,17/12/2010,897,2237.64,SOUTHERN CROSS HEALTHCARE LTD
Adult Social Care,Older People 65&Over inc OP-MH,OP East - Residential Care Ext,Third Party Payments,Private Contractors,Miscellaneous Agency Services,Revenue,17/12/2010,898,1878.52,SOUTHERN CROSS HEALTHCARE LTD
Adult Social Care,Older People 65&Over inc OP-MH,OP East - Residential Care Ext,Third Party Payments,Private Contractors,Miscellaneous Agency Services,Revenue,17/12/2010,899,1878.52,SOUTHERN CROSS HEALTHCARE LTD
Adult Social Care,Older People 65&Over inc OP-MH,OP Hosp - Residential Care Ext,Third Party Payments,Private Contractors,Miscellaneous Agency Services,Revenue,17/12/2010,900,2840,SOUTHERN CROSS HEALTHCARE LTD
Adult Social Care,Older People 65&Over inc OP-MH,OP West - Residential Care Ext,Third Party Payments,Private Contractors,Miscellaneous Agency Services,Revenue,17/12/2010,901,1811.43,SOUTHERN CROSS HEALTHCARE LTD
Adult Social Care,Older People 65&Over inc OP-MH,OP East - Residential Care Ext,Third Party Payments,Private Contractors,Miscellaneous Agency Services,Revenue,17/12/2010,902,1140.53,SOUTHERN CROSS HEALTHCARE LTD
Adult Social Care,Older People 65&Over inc OP-MH,OP Hosp - Nursing Care,Third Party Payments,Private Contractors,Miscellaneous Agency Services,Revenue,17/12/2010,903,1438.48,SOUTHERN CROSS HEALTHCARE LTD
Adult Social Care,Older People 65&Over inc OP-MH,OP East - Residential Care Ext,Third Party Payments,Private Contractors,Miscellaneous Agency Services,Revenue,17/12/2010,904,603.81,SOUTHERN CROSS HEALTHCARE LTD
Adult Social Care,Adlt u65 Learning Disabilities,LD Comm-Residential-Surrey Oak,Third Party Payments,Private Contractors,Miscellaneous Agency Services,Revenue,17/12/2010,905,22957.11,SURREY & BORDERS PARTNERSHIP
Adult Social Care,Adult u65 Phys/Sensory Impair,PS Nursing Care - NRTPF,Third Party Payments,Private Contractors,Miscellaneous Agency Services,Revenue,17/12/2010,906,2341.84,SUTTON COURT CARE CENTRE
Adult Social Care,Adlt u65 Learning Disabilities,LD Residential Care External,Third Party Payments,Private Contractors,Miscellaneous Agency Services,Revenue,17/12/2010,907,10995.68,AIMS CARE PARTNERSHIP
Adult Social Care,Older People 65&Over inc OP-MH,OP East - Nursing Care,Third Party Payments,Private Contractors,Miscellaneous Agency Services,Revenue,17/12/2010,908,2334.52,THE CROFT NURSING HOME
Adult Social Care,Other Adult Services,MH Residential Care Ext - SM&D,Third Party Payments,Private Contractors,Miscellaneous Agency Services,Revenue,17/12/2010,909,1760,WESTERN COUNSELLING SERVICES
Adult Social Care,Adult u65 Phys/Sensory Impair,PD WEST TEAM-Nursing,Third Party Payments,Private Contractors,Miscellaneous Agency Services,Revenue,17/12/2010,910,4540,WESTMINSTER HEALTHCARE LTD
Adult Social Care,Older People 65&Over inc OP-MH,OP West - Residential Care Ext,Third Party Payments,Private Contractors,Miscellaneous Agency Services,Revenue,17/12/2010,911,4919.37,WESTMINSTER HEALTHCARE LTD
Adult Social Care,Adult u65 Phys/Sensory Impair,PD WEST TEAM-Residential Care,Third Party Payments,Private Contractors,Miscellaneous Agency Services,Revenue,17/12/2010,912,3300.96,SCOPE
Adult Social Care,Adult u65 Phys/Sensory Impair,PD WEST TEAM-Residential Care,Third Party Payments,Private Contractors,Miscellaneous Agency Services,Revenue,17/12/2010,913,3300.96,SCOPE
Adult Social Care,Older People 65&Over inc OP-MH,OP West - Carer Services,Third Party Payments,Private Contractors,Miscellaneous Agency Services,Revenue,20/12/2010,914,504.88,ALPENBEST LIMITED
Adult Social Care,Adult u65 Phys/Sensory Impair,PD WEST TEAM-Homecare,Third Party Payments,Private Contractors,Miscellaneous Agency Services,Revenue,20/12/2010,915,826.72,ALPENBEST LIMITED
Adult Social Care,Older People 65&Over inc OP-MH,OP East - Home Care External,Third Party Payments,Private Contractors,Miscellaneous Agency Services,Revenue,20/12/2010,916,2551.34,ALPENBEST LIMITED
Adult Social Care,Older People 65&Over inc OP-MH,OP West - Home Care External,Third Party Payments,Private Contractors,Miscellaneous Agency Services,Revenue,20/12/2010,917,3497.39,ALPENBEST LIMITED
Adult Social Care,Older People 65&Over inc OP-MH,OP West - Carer Services,Third Party Payments,Private Contractors,Miscellaneous Agency Services,Revenue,20/12/2010,918,504.88,ALPENBEST LIMITED
Adult Social Care,Adult u65 Phys/Sensory Impair,PD WEST TEAM-Homecare,Third Party Payments,Private Contractors,Miscellaneous Agency Services,Revenue,20/12/2010,919,752.22,ALPENBEST LIMITED
Adult Social Care,Older People 65&Over inc OP-MH,OP East - Home Care External,Third Party Payments,Private Contractors,Miscellaneous Agency Services,Revenue,20/12/2010,920,2484.56,ALPENBEST LIMITED
Adult Social Care,Older People 65&Over inc OP-MH,OP West - Home Care External,Third Party Payments,Private Contractors,Miscellaneous Agency Services,Revenue,20/12/2010,921,3541.07,ALPENBEST LIMITED
Adult Social Care,Older People 65&Over inc OP-MH,OP East - Carer Services,Third Party Payments,Private Contractors,Miscellaneous Agency Services,Revenue,20/12/2010,922,730.41,PLAN PERSONNEL
Adult Social Care,Adult u65 Mental Health Needs,MH Home Care External - Wim,Third Party Payments,Private Contractors,Miscellaneous Agency Services,Revenue,20/12/2010,923,865.98,PLAN PERSONNEL
Adult Social Care,Adult u65 Phys/Sensory Impair,PD EAST TEAM-Homecare,Third Party Payments,Private Contractors,Miscellaneous Agency Services,Revenue,20/12/2010,924,1713.24,PLAN PERSONNEL
Adult Social Care,Older People 65&Over inc OP-MH,OP Hosp - Home Care External,Third Party Payments,Private Contractors,Miscellaneous Agency Services,Revenue,20/12/2010,925,1947.03,PLAN PERSONNEL
Adult Social Care,Adult u65 Phys/Sensory Impair,PD WEST TEAM-Homecare,Third Party Payments,Private Contractors,Miscellaneous Agency Services,Revenue,20/12/2010,926,2937.49,PLAN PERSONNEL
Adult Social Care,Adlt u65 Learning Disabilities,LD Home Care External,Third Party Payments,Private Contractors,Miscellaneous Agency Services,Revenue,20/12/2010,927,4437.95,PLAN PERSONNEL
Adult Social Care,Older People 65&Over inc OP-MH,OP East - Home Care External,Third Party Payments,Private Contractors,Miscellaneous Agency Services,Revenue,20/12/2010,928,15274.86,PLAN PERSONNEL
Adult Social Care,Older People 65&Over inc OP-MH,OP West - Home Care External,Third Party Payments,Private Contractors,Miscellaneous Agency Services,Revenue,20/12/2010,929,15797.46,PLAN PERSONNEL
Childrens & Education Services,Other Ch's & Family Services,CL Leaving Care/Supp Lodgings,Third Party Payments,Private Contractors,Supported Lodgings,Revenue,20/12/2010,930,3119.48,HEATH FARM FAMILY SVS LTD.
Childrens & Education Services,Other Ch's & Family Services,CL Leaving Care/Supp Lodgings,Third Party Payments,Private Contractors,Supported Lodgings,Revenue,20/12/2010,931,3119.48,HEATH FARM FAMILY SVS LTD.
Childrens & Education Services,Other Ch's & Family Services,CL Leaving Care/Supp Lodgings,Third Party Payments,Private Contractors,Supported Lodgings,Revenue,20/12/2010,932,1002.69,HEATH FARM FAMILY SVS LTD.
Childrens & Education Services,Other Ch's & Family Services,CL Leaving Care/Supp Lodgings,Third Party Payments,Private Contractors,Supported Lodgings,Revenue,20/12/2010,933,3119.48,HEATH FARM FAMILY SVS LTD.
Childrens & Education Services,Other Ch's & Family Services,CL Leaving Care/Supp Lodgings,Third Party Payments,Private Contractors,Miscellaneous Agency Services,Revenue,20/12/2010,934,1199.8,ON BEHALF SP HOMES LTD NO2 ACC
Childrens & Education Services,Other Ch's & Family Services,CL Leaving Care/Supp Lodgings,Third Party Payments,Private Contractors,Miscellaneous Agency Services,Revenue,20/12/2010,935,1199.8,ON BEHALF SP HOMES LTD NO2 ACC
Adult Social Care,Adlt u65 Learning Disabilities,LD Direct Payment Scheme,Third Party Payments,Private Contractors,Direct Payments,Revenue,20/12/2010,936,1400,REDACTED
Adult Social Care,Adult u65 Phys/Sensory Impair,PS Other Serv - NRTPF,Third Party Payments,Private Contractors,Miscellaneous Agency Services,Revenue,20/12/2010,937,1384.56,JOHN JOSEPH PROPERTY SERVICES
Adult Social Care,Adult u65 Phys/Sensory Impair,PD EAST TEAM-Other Services,Third Party Payments,Private Contractors,Miscellaneous Agency Services,Revenue,20/12/2010,938,692.28,JOHN JOSEPH PROPERTY SERVICES
Adult Social Care,Older People 65&Over inc OP-MH,OP East - Other services,Third Party Payments,Private Contractors,Miscellaneous Agency Services,Revenue,20/12/2010,939,1160,TOTAL PROPERTY SERVICES
Adult Social Care,Older People 65&Over inc OP-MH,OP East - Nursing Care,Third Party Payments,Private Contractors,Miscellaneous Agency Services,Revenue,20/12/2010,940,2533.72,CARE UK
Adult Social Care,Older People 65&Over inc OP-MH,OP West - Nursing Care,Third Party Payments,Private Contractors,Miscellaneous Agency Services,Revenue,20/12/2010,941,2134.6,KELSTONE COURT NURSING HOME
Adult Social Care,Older People 65&Over inc OP-MH,OP Hosp - Nursing Care,Third Party Payments,Private Contractors,Miscellaneous Agency Services,Revenue,20/12/2010,942,2341.84,KELSTONE COURT NURSING HOME
Adult Social Care,Older People 65&Over inc OP-MH,OP Hosp - Nursing Care,Third Party Payments,Private Contractors,Miscellaneous Agency Services,Revenue,20/12/2010,943,2380,KELSTONE COURT NURSING HOME
Adult Social Care,Older People 65&Over inc OP-MH,OP West - Nursing Care,Third Party Payments,Private Contractors,Miscellaneous Agency Services,Revenue,20/12/2010,944,2173.96,KELSTONE COURT NURSING HOME
Adult Social Care,Older People 65&Over inc OP-MH,OP East - Nursing Care,Third Party Payments,Private Contractors,Miscellaneous Agency Services,Revenue,20/12/2010,945,2341.84,KELSTONE COURT NURSING HOME
Adult Social Care,Older People 65&Over inc OP-MH,OP Hosp - Nursing Care,Third Party Payments,Private Contractors,Miscellaneous Agency Services,Revenue,20/12/2010,946,2341.84,KELSTONE COURT NURSING HOME
Adult Social Care,Older People 65&Over inc OP-MH,OP East - Residential Care Ext,Third Party Payments,Private Contractors,Miscellaneous Agency Services,Revenue,20/12/2010,947,1777.88,KELSTONE COURT NURSING HOME
Adult Social Care,Older People 65&Over inc OP-MH,OP East - Residential Care Ext,Third Party Payments,Private Contractors,Miscellaneous Agency Services,Revenue,20/12/2010,948,1812.4,KELSTONE COURT NURSING HOME
Adult Social Care,Older People 65&Over inc OP-MH,OP Hosp - Nursing Care,Third Party Payments,Private Contractors,Miscellaneous Agency Services,Revenue,20/12/2010,949,2341.84,KELSTONE COURT NURSING HOME
Adult Social Care,Older People 65&Over inc OP-MH,OP Hosp - Nursing Care,Third Party Payments,Private Contractors,Miscellaneous Agency Services,Revenue,20/12/2010,950,2341.84,KELSTONE COURT NURSING HOME
Adult Social Care,Older People 65&Over inc OP-MH,OP West - Nursing Care,Third Party Payments,Private Contractors,Miscellaneous Agency Services,Revenue,20/12/2010,951,2341.84,KELSTONE COURT NURSING HOME
Adult Social Care,Older People 65&Over inc OP-MH,OP Hosp - Nursing Care,Third Party Payments,Private Contractors,Miscellaneous Agency Services,Revenue,20/12/2010,952,2341.84,KELSTONE COURT NURSING HOME
Adult Social Care,Older People 65&Over inc OP-MH,OP Wim - Residential Care Ext,Third Party Payments,Private Contractors,Miscellaneous Agency Services,Revenue,20/12/2010,953,-6003.92,THE ABBEYFIELD SOCIETY
Adult Social Care,Older People 65&Over inc OP-MH,OP West - Residential Care Ext,Customer and client receipts,Charges,Bd&Acc-contrib coll by home X,Revenue,20/12/2010,954,-3983.57,THE ABBEYFIELD SOCIETY
Adult Social Care,Older People 65&Over inc OP-MH,OP Wim - Residential Care Ext,Customer and client receipts,Charges,Bd&Acc-contrib coll by home X,Revenue,20/12/2010,955,3138.57,THE ABBEYFIELD SOCIETY
Adult Social Care,Older People 65&Over inc OP-MH,OP West - Residential Care Ext,Third Party Payments,Private Contractors,Miscellaneous Agency Services,Revenue,20/12/2010,956,7620.36,THE ABBEYFIELD SOCIETY
Adult Social Care,Older People 65&Over inc OP-MH,OP East - Residential Care Ext,Third Party Payments,Private Contractors,Miscellaneous Agency Services,Revenue,20/12/2010,957,1386.08,REDACTED
Adult Social Care,Adult u65 Mental Health Needs,MH ResidentialCare Ext-Morden,Customer and client receipts,Charges,Bd&Acc-contrib coll by home X,Revenue,20/12/2010,958,-1056.04,THE MEATH
Adult Social Care,Adult u65 Mental Health Needs,MH ResidentialCare Ext-Morden,Third Party Payments,Private Contractors,Miscellaneous Agency Services,Revenue,20/12/2010,959,3248,THE MEATH
Adult Social Care,Adlt u65 Learning Disabilities,LD Residential Care External,Third Party Payments,Private Contractors,Miscellaneous Agency Services,Revenue,20/12/2010,960,2633.52,THE NAK CENTRE
Adult Social Care,Older People 65&Over inc OP-MH,OP East - Nursing Care,Third Party Payments,Private Contractors,Miscellaneous Agency Services,Revenue,20/12/2010,961,1254.56,SUTTON COURT CARE CENTRE
Adult Social Care,Older People 65&Over inc OP-MH,OP West - Residential Care Ext,Third Party Payments,Private Contractors,Miscellaneous Agency Services,Revenue,29/12/2010,962,2100,THE DEVONSHIRE RESID CARE HOME
Adult Social Care,Older People 65&Over inc OP-MH,OP West - Nursing Care,Third Party Payments,Private Contractors,Miscellaneous Agency Services,Revenue,20/12/2010,963,2312.36,WESTMINSTER HEALTHCARE LTD
Adult Social Care,Older People 65&Over inc OP-MH,OP Hosp - Nursing Care,Third Party Payments,Private Contractors,Miscellaneous Agency Services,Revenue,20/12/2010,964,3440,WIMBLEDON GUILD OF SOC WELFARE
Adult Social Care,Older People 65&Over inc OP-MH,OP West - Residential Care Ext,Third Party Payments,Private Contractors,Miscellaneous Agency Services,Revenue,20/12/2010,965,2996,WIMBLEDON GUILD OF SOC WELFARE
Childrens & Education Services,Other Ch's & Family Services,CL Adoption Allowances,Transfer Payments,Social Services clients,Adoption Allowances,Revenue,20/12/2010,966,553.84,REDACTED
Childrens & Education Services,Other Ch's & Family Services,CL Adoption Allowances,Transfer Payments,Social Services clients,Adoption Allowances,Revenue,20/12/2010,967,562.88,REDACTED
Childrens & Education Services,Other Ch's & Family Services,CL Adoption Allowances,Transfer Payments,Social Services clients,Adoption Allowances,Revenue,20/12/2010,968,607.08,REDACTED
Childrens & Education Services,Family Support Services,CL Residence Orders,Supplies & Services,Grants and Subscriptions,Residence Orders,Revenue,20/12/2010,969,606.9,REDACTED
Childrens & Education Services,Other Ch's & Family Services,CL Adoption Allowances,Transfer Payments,Social Services clients,Adoption Allowances,Revenue,20/12/2010,970,1368.6,REDACTED
Adult Social Care,Asylum seekers,AS Child - Res Care (Grant),Third Party Payments,Private Contractors,Supported Lodgings,Revenue,20/12/2010,971,600,REDACTED
Childrens & Education Services,Other Ch's & Family Services,CL Leaving Care/Supp Lodgings,Third Party Payments,Private Contractors,Supported Lodgings,Revenue,20/12/2010,972,600,REDACTED
Childrens & Education Services,Family Support Services,CL Residence Orders,Supplies & Services,Grants and Subscriptions,Residence Orders,Revenue,20/12/2010,973,779.02,REDACTED
Childrens & Education Services,Children Looked After (24hrs+),CL Fostering Services,Supplies & Services,Services,Task Based Fostering,Revenue,21/12/2010,974,780.44,REDACTED
Childrens & Education Services,Children Looked After (24hrs+),CL Fostering Services,Supplies & Services,Services,Task Based Fostering,Revenue,21/12/2010,975,780.44,REDACTED
Childrens & Education Services,Children Looked After (24hrs+),CL Fostering Services,Supplies & Services,Services,Task Based Fostering,Revenue,21/12/2010,976,1502.66,REDACTED
Childrens & Education Services,Children Looked After (24hrs+),CL Fostering Services,Supplies & Services,Services,Task Based Fostering,Revenue,21/12/2010,977,739.2,REDACTED
Childrens & Education Services,Children Looked After (24hrs+),CL Fostering Services,Supplies & Services,Services,Task Based Fostering,Revenue,21/12/2010,978,2300.08,REDACTED
Childrens & Education Services,Children Looked After (24hrs+),CL Fostering Services,Supplies & Services,Services,Task Based Fostering,Revenue,21/12/2010,979,2266.12,REDACTED
Childrens & Education Services,Children Looked After (24hrs+),CL Fostering Services,Supplies & Services,Services,Task Based Fostering,Revenue,21/12/2010,980,1519.64,REDACTED
Adult Social Care,Asylum seekers,AS Child - Foster Care(Grant),Supplies & Services,Services,Task Based Fostering,Revenue,21/12/2010,981,780.44,REDACTED
Childrens & Education Services,Children Looked After (24hrs+),CL Fostering Services,Supplies & Services,Services,Task Based Fostering,Revenue,21/12/2010,982,900.94,REDACTED
Childrens & Education Services,Children Looked After (24hrs+),CL Fostering Services,Supplies & Services,Services,Task Based Fostering,Revenue,21/12/2010,983,739.2,REDACTED
Childrens & Education Services,Children Looked After (24hrs+),CL Fostering Services,Supplies & Services,Services,Task Based Fostering,Revenue,21/12/2010,984,2307.36,REDACTED
Childrens & Education Services,Children Looked After (24hrs+),CL Fostering Services,Supplies & Services,Services,Task Based Fostering,Revenue,21/12/2010,985,763.46,REDACTED
Childrens & Education Services,Children Looked After (24hrs+),CL Fostering Services,Supplies & Services,Services,Task Based Fostering,Revenue,21/12/2010,986,780.44,REDACTED
Childrens & Education Services,Children Looked After (24hrs+),CL Fostering Services,Supplies & Services,Services,Task Based Fostering,Revenue,21/12/2010,987,2387.14,REDACTED
Childrens & Education Services,Children Looked After (24hrs+),CL Fostering Services,Supplies & Services,Services,Task Based Fostering,Revenue,21/12/2010,988,1560.88,REDACTED
Childrens & Education Services,Children Looked After (24hrs+),CL Fostering Services,Supplies & Services,Services,Task Based Fostering,Revenue,21/12/2010,989,1519.64,REDACTED
Childrens & Education Services,Children Looked After (24hrs+),CL Fostering Services,Supplies & Services,Services,Task Based Fostering,Revenue,21/12/2010,990,1478.4,REDACTED
Childrens & Education Services,Children Looked After (24hrs+),CL Fostering Services,Supplies & Services,Services,Long Term Fostering,Revenue,21/12/2010,991,780.44,REDACTED
Childrens & Education Services,Children Looked After (24hrs+),CL Fostering Services,Supplies & Services,Services,Long Term Fostering,Revenue,21/12/2010,992,780.44,REDACTED
Childrens & Education Services,Children Looked After (24hrs+),CL Fostering Services,Supplies & Services,Services,Task Based Fostering,Revenue,21/12/2010,993,1560.88,REDACTED
Childrens & Education Services,Children Looked After (24hrs+),CL Fostering Services,Supplies & Services,Services,Kinship Payments,Revenue,21/12/2010,994,710.8,REDACTED
Childrens & Education Services,Children Looked After (24hrs+),CL Fostering Services,Supplies & Services,Services,Task Based Fostering,Revenue,21/12/2010,995,780.44,REDACTED
Childrens & Education Services,Children Looked After (24hrs+),CL Fostering Services,Supplies & Services,Services,Task Based Fostering,Revenue,21/12/2010,996,1478.4,REDACTED
Childrens & Education Services,Children Looked After (24hrs+),CL Fostering Services,Supplies & Services,Services,Task Based Fostering,Revenue,21/12/2010,997,1478.4,REDACTED
Childrens & Education Services,Children Looked After (24hrs+),CL Fostering Services,Supplies & Services,Services,Task Based Fostering,Revenue,21/12/2010,998,780.44,REDACTED
Childrens & Education Services,Children Looked After (24hrs+),CL Fostering Services,Supplies & Services,Services,Long Term Fostering,Revenue,22/12/2010,999,780.44,REDACTED
Childrens & Education Services,Children Looked After (24hrs+),CL Fostering Services,Supplies & Services,Services,Task Based Fostering,Revenue,21/12/2010,1000,1599.42,REDACTED
Childrens & Education Services,Children Looked After (24hrs+),CL Fostering Services,Supplies & Services,Services,Task Based Fostering,Revenue,21/12/2010,1001,780.44,REDACTED
Childrens & Education Services,Children Looked After (24hrs+),CL Fostering Services,Supplies & Services,Services,Task Based Fostering,Revenue,21/12/2010,1002,739.2,REDACTED
Childrens & Education Services,Children Looked After (24hrs+),CL Fostering Services,Supplies & Services,Services,Task Based Fostering,Revenue,21/12/2010,1003,780.44,REDACTED
Childrens & Education Services,Children Looked After (24hrs+),CL Fostering Services,Supplies & Services,Services,Task Based Fostering,Revenue,21/12/2010,1004,739.2,REDACTED
Childrens & Education Services,Children Looked After (24hrs+),CL Fostering Services,Supplies & Services,Services,Task Based Fostering,Revenue,21/12/2010,1005,2302.47,REDACTED
Childrens & Education Services,Children Looked After (24hrs+),CL Fostering Services,Supplies & Services,Services,Task Based Fostering,Revenue,21/12/2010,1006,780.44,REDACTED
Adult Social Care,Adlt u65 Learning Disabilities,LD Home Care External,Third Party Payments,Private Contractors,Miscellaneous Agency Services,Revenue,22/12/2010,1007,655.3,BEECH HOME CARE SERVICES
Adult Social Care,Adult u65 Phys/Sensory Impair,PD EAST TEAM-Homecare,Third Party Payments,Private Contractors,Miscellaneous Agency Services,Revenue,22/12/2010,1008,2427,CAREWATCH CROYDON
Adult Social Care,Adlt u65 Learning Disabilities,LD Comm -Home Care-Orch Hill,Third Party Payments,Private Contractors,Miscellaneous Agency Services,Revenue,22/12/2010,1009,27704.96,CHOICE SUPPORT
Adult Social Care,Adlt u65 Learning Disabilities,LD Comm -Home Care-Campus Hm,Third Party Payments,Private Contractors,Miscellaneous Agency Services,Revenue,22/12/2010,1010,77189.85,CHOICE SUPPORT
Adult Social Care,Adlt u65 Learning Disabilities,LD Home Care External,Third Party Payments,Private Contractors,Miscellaneous Agency Services,Revenue,22/12/2010,1011,2619.72,HUMANITIES EXCHANGE LIMITED
Adult Social Care,Adult u65 Phys/Sensory Impair,PD WEST TEAM-Day Care,Third Party Payments,Private Contractors,Miscellaneous Agency Services,Revenue,22/12/2010,1012,631.88,GENEVA ROAD LIMITED
Adult Social Care,Adlt u65 Learning Disabilities,LD Comm -Home Care-Campus Hm,Third Party Payments,Private Contractors,Miscellaneous Agency Services,Revenue,22/12/2010,1013,8449.68,THE AVENUES TRUST GROUP
Adult Social Care,Adlt u65 Learning Disabilities,LD Comm -Home Care-Orch Hill,Third Party Payments,Private Contractors,Miscellaneous Agency Services,Revenue,22/12/2010,1014,575.32,UNITED RESPONSE
Adult Social Care,Adlt u65 Learning Disabilities,LD Day Care Agency,Third Party Payments,Private Contractors,Miscellaneous Agency Services,Revenue,22/12/2010,1015,696.28,UNITED RESPONSE
Adult Social Care,Older People 65&Over inc OP-MH,OP Mitcham - Daycare,Third Party Payments,Private Contractors,Miscellaneous Agency Services,Revenue,22/12/2010,1016,-18978.85,WOODLANDS
Adult Social Care,Older People 65&Over inc OP-MH,OP Wimbledon - Daycare,Third Party Payments,Private Contractors,Miscellaneous Agency Services,Revenue,22/12/2010,1017,-7560.17,WOODLANDS
Adult Social Care,Older People 65&Over inc OP-MH,OP Morden - Daycare,Third Party Payments,Private Contractors,Miscellaneous Agency Services,Revenue,22/12/2010,1018,-3419.33,WOODLANDS
Adult Social Care,Older People 65&Over inc OP-MH,OP - Hosp - Daycare,Third Party Payments,Private Contractors,Miscellaneous Agency Services,Revenue,22/12/2010,1019,6242.63,WOODLANDS
Adult Social Care,Older People 65&Over inc OP-MH,OP West - Daycare,Third Party Payments,Private Contractors,Miscellaneous Agency Services,Revenue,22/12/2010,1020,13018.55,WOODLANDS
Adult Social Care,Older People 65&Over inc OP-MH,OP East - Daycare,Third Party Payments,Private Contractors,Miscellaneous Agency Services,Revenue,22/12/2010,1021,41471.14,WOODLANDS
Childrens & Education Services,Family Support Services,CS Day Care CWD,Third Party Payments,Private Contractors,Miscellaneous Agency Services,Revenue,22/12/2010,1022,652.98,CORE CONNEXIONS
Childrens & Education Services,Children Looked After (24hrs+),CL Residential Care Homes CLA,Third Party Payments,Private Contractors,Miscellaneous Agency Services,Revenue,22/12/2010,1023,15600,REDACTED
Adult Social Care,Asylum seekers,AS Child Res Care  (No Grant),Third Party Payments,Private Contractors,Private Tenant/Landlord,Revenue,22/12/2010,1024,784.56,REDACTED
Adult Social Care,Asylum seekers,AS Child Res Care  (No Grant),Third Party Payments,Private Contractors,Miscellaneous Agency Services,Revenue,22/12/2010,1025,1200,LIVINGSTONE SUPPORTED HOUSING
Adult Social Care,Asylum seekers,AS Child - Res Care (Grant),Third Party Payments,Private Contractors,Miscellaneous Agency Services,Revenue,22/12/2010,1026,2600,LIVINGSTONE SUPPORTED HOUSING
Adult Social Care,Adlt u65 Learning Disabilities,LD Residential Care External,Customer and client receipts,Charges,Bd&Acc-contrib coll by home X,Revenue,22/12/2010,1027,-505.9,ASRA G.LONDON HOUSING ASS.LTD
Adult Social Care,Adlt u65 Learning Disabilities,LD Residential Care External,Third Party Payments,Private Contractors,Miscellaneous Agency Services,Revenue,22/12/2010,1028,1902.36,ASRA G.LONDON HOUSING ASS.LTD
Adult Social Care,Adlt u65 Learning Disabilities,LD Residential Care External,Third Party Payments,Private Contractors,Miscellaneous Agency Services,Revenue,22/12/2010,1029,1803.76,ASRA G.LONDON HOUSING ASS.LTD
Adult Social Care,Older People 65&Over inc OP-MH,OP East - Nursing Care,Third Party Payments,Private Contractors,Miscellaneous Agency Services,Revenue,22/12/2010,1030,5067.44,CARE UK
Adult Social Care,Older People 65&Over inc OP-MH,OP Hosp - Nursing Care,Third Party Payments,Private Contractors,Miscellaneous Agency Services,Revenue,22/12/2010,1031,1185.27,CARTER HOUSE
Adult Social Care,Older People 65&Over inc OP-MH,OP West - Residential Care Ext,Customer and client receipts,Charges,Bd&Acc-contrib coll by home X,Revenue,22/12/2010,1032,-975.92,CARTER HOUSE
Adult Social Care,Older People 65&Over inc OP-MH,OP Hosp - Nursing Care,Third Party Payments,Private Contractors,Miscellaneous Agency Services,Revenue,22/12/2010,1033,5105.76,CARTER HOUSE
Adult Social Care,Older People 65&Over inc OP-MH,OP Hosp - Residential Care Ext,Third Party Payments,Private Contractors,Miscellaneous Agency Services,Revenue,22/12/2010,1034,5403.48,CARTER HOUSE
Adult Social Care,Older People 65&Over inc OP-MH,OP East - Nursing Care,Third Party Payments,Private Contractors,Miscellaneous Agency Services,Revenue,22/12/2010,1035,8114.51,CARTER HOUSE
Adult Social Care,Older People 65&Over inc OP-MH,OP East - Residential Care Ext,Third Party Payments,Private Contractors,Miscellaneous Agency Services,Revenue,22/12/2010,1036,8696.18,CARTER HOUSE
Adult Social Care,Older People 65&Over inc OP-MH,OP West - Nursing Care,Third Party Payments,Private Contractors,Miscellaneous Agency Services,Revenue,22/12/2010,1037,10940.91,CARTER HOUSE
Adult Social Care,Older People 65&Over inc OP-MH,OP West - Residential Care Ext,Third Party Payments,Private Contractors,Miscellaneous Agency Services,Revenue,22/12/2010,1038,24221.92,CARTER HOUSE
Adult Social Care,Older People 65&Over inc OP-MH,OP East - Residential Care Ext,Third Party Payments,Private Contractors,Miscellaneous Agency Services,Revenue,22/12/2010,1039,1840,CHARLTON HOUSE
Adult Social Care,Adlt u65 Learning Disabilities,LD Residential Care External,Third Party Payments,Private Contractors,Miscellaneous Agency Services,Revenue,22/12/2010,1040,7468.76,CORICH COMMUNITY CARE LTD
Adult Social Care,Adlt u65 Learning Disabilities,LD Comm-Residential-Surrey Oak,Third Party Payments,Private Contractors,Miscellaneous Agency Services,Revenue,22/12/2010,1041,4610.56,COTTISBRAINE HOUSE
Adult Social Care,Adlt u65 Learning Disabilities,LD Residential Care External,Third Party Payments,Private Contractors,Miscellaneous Agency Services,Revenue,22/12/2010,1042,2352.24,COTTISBRAINE HOUSE
Adult Social Care,Adlt u65 Learning Disabilities,LD Residential Care External,Third Party Payments,Private Contractors,Miscellaneous Agency Services,Revenue,22/12/2010,1043,6890.99,EVERGREEN PARTNERSHIP
Adult Social Care,Adlt u65 Learning Disabilities,LD Residential Care External,Third Party Payments,Private Contractors,Miscellaneous Agency Services,Revenue,22/12/2010,1044,3521.24,HAYDON PARK LODGE
Adult Social Care,Adlt u65 Learning Disabilities,LD Residential Care External,Third Party Payments,Private Contractors,Miscellaneous Agency Services,Revenue,22/12/2010,1045,2719.32,HAYDON PARK LODGE
Adult Social Care,Adlt u65 Learning Disabilities,LD Residential Care External,Third Party Payments,Private Contractors,Miscellaneous Agency Services,Revenue,22/12/2010,1046,1975.24,HAYDON PARK LODGE
Adult Social Care,Adlt u65 Learning Disabilities,LD Residential Care External,Third Party Payments,Private Contractors,Miscellaneous Agency Services,Revenue,22/12/2010,1047,2458.36,HAYDON PARK LODGE
Adult Social Care,Adlt u65 Learning Disabilities,LD Residential Care External,Third Party Payments,Private Contractors,Miscellaneous Agency Services,Revenue,22/12/2010,1048,2816,HAYDON PARK LODGE
Adult Social Care,Adlt u65 Learning Disabilities,LD Residential Care External,Third Party Payments,Private Contractors,Miscellaneous Agency Services,Revenue,22/12/2010,1049,3532.48,HAYDON PARK LODGE
Adult Social Care,Adlt u65 Learning Disabilities,LD Residential Care External,Third Party Payments,Private Contractors,Miscellaneous Agency Services,Revenue,22/12/2010,1050,3451,HAYDON PARK LODGE
Adult Social Care,Adult u65 Mental Health Needs,MH ResidentialCare Ext-Morden,Third Party Payments,Private Contractors,Miscellaneous Agency Services,Revenue,30/12/2010,1051,2839,REDACTED
Adult Social Care,Adult u65 Mental Health Needs,MH ResidentialCare Ext-Morden,Third Party Payments,Private Contractors,Miscellaneous Agency Services,Revenue,22/12/2010,1052,2839,REDACTED
Adult Social Care,Adult u65 Mental Health Needs,MH Nursing Care - Wim,Third Party Payments,Private Contractors,Miscellaneous Agency Services,Revenue,22/12/2010,1053,2175.16,JESMUND NURSING HOME
Adult Social Care,Older People 65&Over inc OP-MH,OP East - Nursing Care,Third Party Payments,Private Contractors,Miscellaneous Agency Services,Revenue,22/12/2010,1054,2268.72,JESMUND NURSING HOME
Adult Social Care,Older People 65&Over inc OP-MH,OP East - Residential Care Ext,Third Party Payments,Private Contractors,Miscellaneous Agency Services,Revenue,22/12/2010,1055,1664.6,KINGSDALE NURSING HOME
Adult Social Care,Older People 65&Over inc OP-MH,OP Mitcham - Nursing Care,Third Party Payments,Private Contractors,Miscellaneous Agency Services,Revenue,22/12/2010,1056,2499.32,LODORE NURSING HOME
Adult Social Care,Older People 65&Over inc OP-MH,OP East - Nursing Care,Third Party Payments,Private Contractors,Miscellaneous Agency Services,Revenue,22/12/2010,1057,2499.32,LODORE NURSING HOME
Adult Social Care,Older People 65&Over inc OP-MH,OP East - Nursing Care,Third Party Payments,Private Contractors,Miscellaneous Agency Services,Revenue,22/12/2010,1058,2499.32,LODORE NURSING HOME
Adult Social Care,Older People 65&Over inc OP-MH,OP East - Nursing Care,Third Party Payments,Private Contractors,Miscellaneous Agency Services,Revenue,22/12/2010,1059,2499.32,LODORE NURSING HOME
